Ref No,Fund Type,Dept,Cost Centre Description    ,Description    ,Creditor Name    ,GL Code Net Amount,Payment date        
2,Revenue,CAHD,Central - Commissioned Services,Permanent Residential,1 St Georges House,13333.52, 24-Aug-2021
3,Revenue,CAHD,Early Years High Needs Support,Other Private Contractors,100 Acre Wood Day Nursery,637.05, 19-Aug-2021
4,Revenue,CAHD,South - Commissioned Services,Permanent Residential,2Nd Floor Building,5630.76, 24-Aug-2021
5,Revenue,CAHD,South - Commissioned Services,Permanent Residential,2Nd Floor Building,2806.12, 24-Aug-2021
6,Revenue,CAHD,Central - Commissioned Services,Other Small Contracts,3 Trees Community Support Ltd,7666.07, 06-Aug-2021
7,Revenue,CAHD,Central - Commissioned Services,Supported Living,3 Trees Community Support Ltd,3005.78, 06-Aug-2021
8,Revenue,CAHD,Central - Commissioned Services,Other Small Contracts,3 Trees Community Support Ltd,7532.21, 09-Aug-2021
9,Revenue,CAHD,Central - Commissioned Services,Supported Living,3 Trees Community Support Ltd,3008.32, 09-Aug-2021
10,Revenue,CAHD,Central - Commissioned Services,Other Small Contracts,3 Trees Community Support Ltd,7528.64, 17-Aug-2021
11,Revenue,CAHD,Central - Commissioned Services,Supported Living,3 Trees Community Support Ltd,3010.86, 17-Aug-2021
12,Revenue,CAHD,Central - Commissioned Services,Other Small Contracts,3 Trees Community Support Ltd,7660.98, 27-Aug-2021
13,Revenue,CAHD,Central - Commissioned Services,Supported Living,3 Trees Community Support Ltd,3004.69, 27-Aug-2021
14,Revenue,CAHD,Central - Commissioned Services,Other Small Contracts,3 Trees Community Support Ltd,7666.07, 31-Aug-2021
15,Revenue,CAHD,Central - Commissioned Services,Supported Living,3 Trees Community Support Ltd,3004.69, 31-Aug-2021
16,Revenue,CAHD,Central - Commissioned Services,Permanent Residential,5Th Floor Harlech Court,15254.92, 24-Aug-2021
17,Revenue,CAHD,South - Commissioned Services,Permanent Residential,5Th Floor Harlech Court,17391.48, 24-Aug-2021
18,Revenue,CAHD,South - Commissioned Services,Permanent Residential,5Th Floor Harlech Court,18290.84, 24-Aug-2021
19,Revenue,CAHD,S28A cases,Permanent Residential,5Th Floor Harlech Court,11378.60, 24-Aug-2021
20,Revenue,CAHD,South - Commissioned Services,Permanent Residential,5Th Floor Harlech Court,11933.40, 24-Aug-2021
21,Revenue,CAHD,North - Community based support,Permanent Residential,5Th Floor Harlech Court,12498.56, 24-Aug-2021
22,Revenue,CAHD,North - Community based support,Permanent Residential,5Th Floor Harlech Court,10537.24, 24-Aug-2021
23,Revenue,CAHD,North - Community based support,Permanent Residential,5Th Floor Harlech Court,9071.12, 24-Aug-2021
24,Revenue,CAHD,Early Years High Needs Support,Other Private Contractors,Abacus Pre-School (Meadowbrook),910.07, 19-Aug-2021
25,Revenue,CAHD,South - Commissioned Services,Permanent Nursing,Acacia House,3085.88, 24-Aug-2021
26,Revenue,CAHD,South - Commissioned Services,Fees & Charges Income - General,Acacia House,4398.37, 24-Aug-2021
27,Revenue,CAHD,CSC - Residential Placements,Permanent Residential,Acorn Care & Education Ltd,19877.75, 23-Aug-2021
28,Revenue,CAHD,CSC - Residential Placements,Permanent Residential,Acorn Care & Education Ltd,20540.34, 23-Aug-2021
29,Revenue,CAHD,CSC - Residential Placements,Permanent Residential,Acorn Care & Education Ltd,19877.75, 23-Aug-2021
30,Revenue,CAHD,CSC - Residential Placements,Permanent Residential,Acorn Care & Education Ltd,20540.34, 23-Aug-2021
31,Revenue,CAHD,CSC - Residential Placements,Permanent Residential,Acorn Care & Education Ltd,17005.71, 26-Aug-2021
32,Revenue,CAHD,Jointly Funded H&SC Packages,Permanent Residential,Acorn Care Providers,2366.36, 24-Aug-2021
33,Revenue,CAHD,Section 117 Placements MH Younger,Permanent Residential,Acorn Care Providers,5605.08, 24-Aug-2021
34,Revenue,CAHD,North - S117,Permanent Residential,Acorn Care Providers,4067.36, 24-Aug-2021
35,Revenue,CAHD,Jointly Funded H&SC Packages,Permanent Residential,Acorn Care Providers,2193.40, 24-Aug-2021
36,Revenue,CAHD,MH Purchasing - Younger,Permanent Residential,Acorn Care Providers,6528.83, 24-Aug-2021
37,Revenue,CAHD,Jointly Funded H&SC Packages,Permanent Residential,Acorn Care Providers,3515.53, 24-Aug-2021
38,Revenue,CAHD,MH Purchasing - Younger,Permanent Residential,Acorn Care Providers,6411.00, 24-Aug-2021
39,Revenue,CAHD,Training Budget - Children`s Social Serv,Training Expenses,Acorn Health & Safety Limited,449.00, 24-Aug-2021
40,Revenue,CAHD,Training Budget - Children`s Social Serv,Training Expenses,Acorn Health & Safety Limited,449.00, 24-Aug-2021
41,Revenue,CAHD,Training - Adult Services,Training Expenses,Acorn Health & Safety Limited,477.00, 12-Aug-2021
42,Revenue,CAHD,Training - Adult Services,Training Expenses,Acorn Health & Safety Limited,477.00, 19-Aug-2021
43,Revenue,CAHD,Training Budget - Children`s Social Serv,Training Expenses,Acorn Health & Safety Limited,449.00, 24-Aug-2021
44,Revenue,CAHD,CSC - Agency Fostering,Foster Parent Allowances,Action for Children,3897.01, 18-Aug-2021
45,Revenue,CAHD,Central - Commissioned Services,Respite Planned - Residential,Administration And Revenue Centre,728.57, 24-Aug-2021
46,Revenue,CAHD,South - Commissioned Services,Other Small Contracts,Advantedge Commercial Finance Limited,994.84, 27-Aug-2021
47,Revenue,CAHD,South - Commissioned Services,Other Small Contracts,Advantedge Commercial Finance Limited,1242.50, 11-Aug-2021
48,Revenue,CAHD,South - Commissioned Services,Other Small Contracts,Advantedge Commercial Finance Limited,1113.28, 09-Aug-2021
49,Revenue,CAHD,South - Commissioned Services,Other Small Contracts,Advantedge Commercial Finance Limited,2475.06, 11-Aug-2021
50,Revenue,CAHD,South - Commissioned Services,Other Small Contracts,Advantedge Commercial Finance Limited,665.98, 09-Aug-2021
51,Revenue,CAHD,South - Commissioned Services,Other Small Contracts,Advantedge Commercial Finance Limited,636.16, 19-Aug-2021
52,Revenue,CAHD,South - Commissioned Services,Other Small Contracts,Advantedge Commercial Finance Limited,775.32, 11-Aug-2021
53,Revenue,CAHD,South - Commissioned Services,Other Small Contracts,Advantedge Commercial Finance Limited,556.64, 09-Aug-2021
54,Revenue,CAHD,South - Commissioned Services,Other Small Contracts,Advantedge Commercial Finance Limited,1366.75, 11-Aug-2021
55,Revenue,CAHD,South - Commissioned Services,Other Small Contracts,Advantedge Commercial Finance Limited,1113.28, 27-Aug-2021
56,Revenue,CAHD,Central - Commissioned Services,Other Small Contracts,Advantedge Commercial Finance Limited,2067.52, 31-Aug-2021
57,Revenue,CAHD,South - Commissioned Services,Other Small Contracts,Advantedge Commercial Finance Limited,695.80, 27-Aug-2021
58,Revenue,CAHD,South - Commissioned Services,Other Small Contracts,Advantedge Commercial Finance Limited,636.16, 31-Aug-2021
59,Revenue,CAHD,South - Commissioned Services,Other Small Contracts,Advantedge Commercial Finance Limited,869.75, 27-Aug-2021
60,Revenue,CAHD,South - Commissioned Services,Other Small Contracts,Advantedge Commercial Finance Limited,546.70, 27-Aug-2021
61,Revenue,CAHD,Covid - ASC - Infection Control,Grants to Voluntary Bodies,Advantedge Commercial Finance Limited,1976.13, 24-Aug-2021
62,Revenue,CAHD,ASC Rapid Testing Fund,Grants to Voluntary Bodies,Advantedge Commercial Finance Limited,2075.19, 24-Aug-2021
63,Revenue,CAHD,CSC - Vinney Green Secure Unit,Refuse Collection Charges,Affordable Skip Hire Bristol Ltd,820.00, 24-Aug-2021
64,Revenue,CAHD,South - Commissioned Services,Day Care / Social Activities,Age Concern,648.64, 24-Aug-2021
65,Revenue,CAHD,Central - Commissioned Services,Day Care / Social Activities,Age Concern,559.36, 24-Aug-2021
66,Revenue,CAHD,Central - Commissioned Services,Day Care / Social Activities,Age Concern,559.36, 24-Aug-2021
67,Revenue,CAHD,Covid 19 -Adult Social Care,Day Care / Social Activities,Age UK South Gloucestershire,7256.87, 03-Aug-2021
68,Revenue,CAHD,Covid 19 -Adult Social Care,Day Care / Social Activities,Age UK South Gloucestershire,7256.87, 03-Aug-2021
69,Revenue,CAHD,South - Commissioned Services,Day Care / Social Activities,Age UK South Gloucestershire,7531.87, 26-Aug-2021
70,Revenue,CAHD,South - Commissioned Services,Other Small Contracts,Agincare UK Limited,503.88, 06-Aug-2021
71,Revenue,CAHD,Younger MH non-res purchasing,Other Small Contracts,Agincare UK Limited,93.86, 06-Aug-2021
72,Revenue,CAHD,South - Commissioned Services,Other Small Contracts,Agincare UK Limited,523.64, 27-Aug-2021
73,Revenue,CAHD,Younger MH non-res purchasing,Other Small Contracts,Agincare UK Limited,39.52, 27-Aug-2021
74,Revenue,CAHD,Extra Care Housing,Private & Voluntary Home Care,Agincare UK Limited,29078.70, 04-Aug-2021
75,Revenue,CAHD,Extra Care Housing,Private & Voluntary Home Care,Agincare UK Limited,847.35, 12-Aug-2021
76,Revenue,CAHD,Extra Care Housing,Private & Voluntary Home Care,Agincare UK Limited,1000.28, 06-Aug-2021
77,Revenue,CAHD,Extra Care Housing,Private & Voluntary Home Care,Agincare UK Limited,2616.50, 06-Aug-2021
78,Revenue,CAHD,Extra Care Housing,Private & Voluntary Home Care,Agincare UK Limited,3024.91, 11-Aug-2021
79,Revenue,CAHD,Prison Assessments & Costs,Other Supplies & Services,Agincare UK Limited,4400.00, 20-Aug-2021
80,Revenue,CAHD,Prison Assessments & Costs,Other Supplies & Services,Agincare UK Limited,4400.00, 24-Aug-2021
81,Revenue,CAHD,Prison Assessments & Costs,Other Supplies & Services,Agincare UK Limited,26891.25, 23-Aug-2021
82,Revenue,CAHD,Statemented Support Payments to OLAs,Other L.A.s - General,Air Balloon Hill Primary School,801.92, 19-Aug-2021
83,Revenue,CAHD,CSC - Adoption Support Fund,Post Adoption,Individual,573.00, 04-Aug-2021
84,Revenue,CAHD,Covid 19 -Adult Social Care,Other Small Contracts,AliMo Care Ltd,9.78, 17-Aug-2021
85,Revenue,CAHD,South - Commissioned Services,Other Small Contracts,AliMo Care Ltd,1188.27, 17-Aug-2021
86,Revenue,CAHD,North - Community based support,Other Small Contracts,AliMo Care Ltd,136.92, 17-Aug-2021
87,Revenue,CAHD,Covid 19 -Adult Social Care,Other Small Contracts,AliMo Care Ltd,9.78, 17-Aug-2021
88,Revenue,CAHD,South - Commissioned Services,Other Small Contracts,AliMo Care Ltd,1242.06, 17-Aug-2021
89,Revenue,CAHD,North - Community based support,Other Small Contracts,AliMo Care Ltd,132.03, 17-Aug-2021
90,Revenue,CAHD,Covid 19 -Adult Social Care,Other Small Contracts,AliMo Care Ltd,9.78, 18-Aug-2021
91,Revenue,CAHD,South - Commissioned Services,Other Small Contracts,AliMo Care Ltd,1198.05, 18-Aug-2021
92,Revenue,CAHD,North - Community based support,Other Small Contracts,AliMo Care Ltd,122.25, 18-Aug-2021
93,Revenue,CAHD,Covid - ASC - Infection Control,Grants to Voluntary Bodies,AliMo Care Ltd,2786.85, 17-Aug-2021
94,Revenue,CAHD,Covid - ASC - Infection Control,Grants to Voluntary Bodies,AliMo Care Ltd,2926.55, 17-Aug-2021
95,Revenue,CAHD,Covid Winter Grant Funding,Other Supplies & Services,Allpay Limited - Trust Fund,60000.00, 23-Aug-2021
96,Revenue,CAHD,Drug and Alcohol Programme,Other Small Contracts,Alveston Pharmacy,675.00, 25-Aug-2021
97,Revenue,CAHD,Central - Commissioned Services,Permanent Residential,Alvony House Residential Care Home,3000.00, 24-Aug-2021
98,Revenue,CAHD,Early Years High Needs Support,Other Private Contractors,Ambourne House Day Nursery,637.05, 19-Aug-2021
99,Revenue,CAHD,CSC - Agency Fostering,Foster Parent Allowances,Amicus Foster Care Ltd,4879.00, 03-Aug-2021
100,Revenue,CAHD,CSC - Agency Fostering,Foster Parent Allowances,Amicus Foster Care Ltd,4796.44, 03-Aug-2021
101,Revenue,CAHD,North - Community based support,Other Supplies & Services,Anchor Hanover,692.88, 09-Aug-2021
102,Revenue,CAHD,North - Community based support,Other Supplies & Services,Anchor Hanover,2181.29, 09-Aug-2021
103,Revenue,CAHD,North - Community based support,Other Supplies & Services,Anchor Hanover,1103.48, 09-Aug-2021
104,Revenue,CAHD,Social Lettings Agency,Rent,Individual,822.73, 20-Aug-2021
105,Revenue,CAHD,Social Lettings Agency,Fees & Charges Income - General,Individual,-65.82, 20-Aug-2021
106,Revenue,CAHD,Younger MH non-res purchasing,Supported Living,Archcare Rehab Limited,2002.44, 24-Aug-2021
107,Revenue,CAHD,North - Community based support,Permanent Residential,Argentum Lodge,4935.68, 24-Aug-2021
108,Revenue,CAHD,North - Community based support,Permanent Nursing,Argentum Lodge,4000.00, 24-Aug-2021
109,Revenue,CAHD,South - Commissioned Services,Permanent Residential,Ash View House,5655.48, 24-Aug-2021
110,Revenue,CAHD,Jointly Funded H&SC Packages,Permanent Residential,Ash View House,1160.84, 24-Aug-2021
111,Revenue,CAHD,S117 Placements PCT,Permanent Residential,Ash View House,7884.72, 24-Aug-2021
112,Revenue,CAHD,North - Community based support,Permanent Residential,Ash View House,7099.52, 24-Aug-2021
113,Revenue,CAHD,North - Community based support,Permanent Residential,Ash View House,7120.00, 24-Aug-2021
114,Revenue,CAHD,Section 117 Placements MH Younger,Permanent Residential,Ash View House,5135.96, 24-Aug-2021
115,Revenue,CAHD,Jointly Funded H&SC Packages,Permanent Residential,Ash View House,2204.28, 24-Aug-2021
116,Revenue,CAHD,South - S117,Permanent Residential,Ash View House,6983.64, 24-Aug-2021
117,Revenue,CAHD,South - Commissioned Services,Permanent Residential,Ash View House,6903.04, 24-Aug-2021
118,Revenue,CAHD,18-25 Year Olds,Other Small Contracts,Aspirations,3179.20, 09-Aug-2021
119,Revenue,CAHD,18-25 Year Olds,Supported Living,Aspirations,361.86, 09-Aug-2021
120,Revenue,CAHD,Central - Commissioned Services,Other Small Contracts,Aspirations,138.00, 09-Aug-2021
121,Revenue,CAHD,South - Commissioned Services,Day Care / Social Activities,Aspirations,1467.00, 09-Aug-2021
122,Revenue,CAHD,South - Commissioned Services,Supported Living,Aspirations,15567.47, 09-Aug-2021
123,Revenue,CAHD,North - Community based support,Supported Living,Aspirations,3402.57, 09-Aug-2021
124,Revenue,CAHD,18-25 Year Olds,Other Small Contracts,Aspirations,3404.14, 17-Aug-2021
125,Revenue,CAHD,18-25 Year Olds,Supported Living,Aspirations,273.84, 17-Aug-2021
126,Revenue,CAHD,Central - Commissioned Services,Other Small Contracts,Aspirations,144.00, 17-Aug-2021
127,Revenue,CAHD,South - Commissioned Services,Day Care / Social Activities,Aspirations,1496.34, 17-Aug-2021
128,Revenue,CAHD,South - Commissioned Services,Other Small Contracts,Aspirations,206.16, 17-Aug-2021
129,Revenue,CAHD,South - Commissioned Services,Supported Living,Aspirations,17041.46, 17-Aug-2021
130,Revenue,CAHD,North - Community based support,Supported Living,Aspirations,3438.72, 17-Aug-2021
131,Revenue,CAHD,Covid - ASC - Infection Control,Grants to Voluntary Bodies,Aspirations,506.70, 10-Aug-2021
132,Revenue,CAHD,ASC Rapid Testing Fund,Grants to Voluntary Bodies,Aspirations,532.10, 10-Aug-2021
133,Revenue,CAHD,CSC - Vinney Green Secure Unit,Service Contracts (Premises),Assa Abloy Limited,854.20, 20-Aug-2021
134,Revenue,CAHD,CSC - Vinney Green Secure Unit,Service Contracts (Premises),Assa Abloy Limited,815.00, 20-Aug-2021
135,Revenue,CAHD,South - Commissioned Services,Adults - Family Support,Ategi Limited,17042.85, 18-Aug-2021
136,Revenue,CAHD,Statemented Support Academies,Other Public Bodies,Athelstan Trust,825.30, 20-Aug-2021
137,Revenue,CAHD,Statemented Support Academies,Other Public Bodies,Athelstan Trust,1101.42, 20-Aug-2021
138,Revenue,CAHD,Statemented Support Academies,Other Public Bodies,Athelstan Trust,1367.64, 20-Aug-2021
139,Revenue,CAHD,Statemented Support Academies,Other Public Bodies,Athelstan Trust,1436.25, 20-Aug-2021
140,Revenue,CAHD,Statemented Support Academies,Other Public Bodies,Athelstan Trust,588.75, 20-Aug-2021
141,Revenue,CAHD,Statemented Support Academies,Other Public Bodies,Athelstan Trust,1155.42, 20-Aug-2021
142,Revenue,CAHD,Statemented Support Academies,Other Public Bodies,Athelstan Trust,1556.28, 20-Aug-2021
143,Revenue,CAHD,Statemented Support Academies,Other Public Bodies,Athelstan Trust,926.58, 20-Aug-2021
144,Revenue,CAHD,Statemented Support Academies,Other Public Bodies,Athelstan Trust,624.87, 20-Aug-2021
145,Revenue,CAHD,Academy Resource Base Funding,Other Public Bodies,Athelstan Trust,2547.96, 24-Aug-2021
146,Revenue,CAHD,Academy Resource Base Funding,Other Public Bodies,Athelstan Trust,2513.88, 24-Aug-2021
147,Revenue,CAHD,Academy Resource Base Funding,Other Public Bodies,Athelstan Trust,2513.88, 24-Aug-2021
148,Revenue,CAHD,Academy Resource Base Funding,Other Public Bodies,Athelstan Trust,2513.88, 24-Aug-2021
149,Revenue,CAHD,Academy Resource Base Funding,Other Public Bodies,Athelstan Trust,2513.88, 24-Aug-2021
150,Revenue,CAHD,Academy Resource Base Funding,Other Public Bodies,Athelstan Trust,2513.88, 24-Aug-2021
151,Revenue,CAHD,Academy Resource Base Funding,Other Public Bodies,Athelstan Trust,2513.88, 24-Aug-2021
152,Revenue,CAHD,Academy Resource Base Funding,Other Public Bodies,Athelstan Trust,2513.88, 24-Aug-2021
153,Revenue,CAHD,Academy Resource Base Funding,Other Public Bodies,Athelstan Trust,2513.88, 24-Aug-2021
154,Revenue,CAHD,Academy Resource Base Funding,Other Public Bodies,Athelstan Trust,2513.88, 24-Aug-2021
155,Revenue,CAHD,Academy Resource Base Funding,Other Public Bodies,Athelstan Trust,2513.88, 24-Aug-2021
156,Revenue,CAHD,Academy Resource Base Funding,Other Public Bodies,Athelstan Trust,2513.88, 24-Aug-2021
157,Revenue,CAHD,Academy Resource Base Funding,Other Public Bodies,Athelstan Trust,2513.88, 24-Aug-2021
158,Revenue,CAHD,Academy Resource Base Funding,Other Public Bodies,Athelstan Trust,2513.88, 24-Aug-2021
159,Revenue,CAHD,Academy Resource Base Funding,Other Public Bodies,Athelstan Trust,6600.00, 27-Aug-2021
160,Revenue,CAHD,CSC - Vinney Green Secure Unit,Service Contracts (Premises),Atus Systems Limited,2050.00, 27-Aug-2021
161,Revenue,CAHD,South - Commissioned Services,Permanent Residential,Autism Specialised Care Homes,6506.88, 24-Aug-2021
162,Revenue,CAHD,Younger Adult Mental Health,Agency Staff (Admin/Support Staff) Pay,Avon & Wiltshire Mental Health,4813.00, 04-Aug-2021
163,Revenue,CAHD,Younger Adult Mental Health,Agency Staff (Admin/Support Staff) Pay,Avon & Wiltshire Mental Health,5024.00, 20-Aug-2021
164,Revenue,CAHD,Younger Adult Mental Health,Agency Staff (Admin/Support Staff) Pay,Avon & Wiltshire Mental Health,3476.00, 26-Aug-2021
165,Revenue,CAHD,Younger Adult Mental Health,Health Services (Third Party Payments),Avon & Wiltshire Mental Health,1693.33, 26-Aug-2021
166,Revenue,CAHD,CSC - LAC - Counselling & Therapy,Other Supplies & Services,Avon & Wiltshire Mental Health,15000.00, 27-Aug-2021
167,Revenue,CAHD,South - Commissioned Services,Permanent Nursing,Avon Lodge Care Centre,4441.20, 24-Aug-2021
168,Revenue,CAHD,South Glos Users in South Glos Homes,Permanent Nursing,Avon Lodge Care Centre,750.40, 24-Aug-2021
169,Revenue,CAHD,South Glos Users in South Glos Homes,Permanent Nursing,Avon Lodge Care Centre,750.40, 24-Aug-2021
170,Revenue,CAHD,South Glos Users in South Glos Homes,Permanent Nursing,Avon Lodge Care Centre,750.40, 24-Aug-2021
171,Revenue,CAHD,South Glos Users in South Glos Homes,Permanent Nursing,Avon Lodge Care Centre,750.40, 24-Aug-2021
172,Revenue,CAHD,South Glos Users in South Glos Homes,Permanent Nursing,Avon Lodge Care Centre,750.40, 24-Aug-2021
173,Revenue,CAHD,South - Commissioned Services,Permanent Nursing,Avon Lodge Care Centre,3339.08, 24-Aug-2021
174,Revenue,CAHD,South Glos Users in South Glos Homes,Permanent Nursing,Avon Lodge Care Centre,750.40, 24-Aug-2021
175,Revenue,CAHD,South - Commissioned Services,Permanent Nursing,Avon Lodge Care Centre,4296.00, 24-Aug-2021
176,Revenue,CAHD,South Glos Users in South Glos Homes,Permanent Nursing,Avon Lodge Care Centre,2144.00, 24-Aug-2021
177,Revenue,CAHD,South Glos Users in South Glos Homes,Permanent Nursing,Avon Lodge Care Centre,750.40, 24-Aug-2021
178,Revenue,CAHD,South - Commissioned Services,Permanent Nursing,Avon Lodge Care Centre,3539.60, 24-Aug-2021
179,Revenue,CAHD,South Glos Users in South Glos Homes,Permanent Nursing,Avon Lodge Care Centre,750.40, 24-Aug-2021
180,Revenue,CAHD,South Glos Users in South Glos Homes,Permanent Nursing,Avon Lodge Care Centre,750.40, 24-Aug-2021
181,Revenue,CAHD,South - Commissioned Services,Permanent Nursing,Avon Lodge Care Centre,4447.88, 24-Aug-2021
182,Revenue,CAHD,South Glos Users in South Glos Homes,Permanent Nursing,Avon Lodge Care Centre,750.40, 24-Aug-2021
183,Revenue,CAHD,South Glos Users in South Glos Homes,Permanent Nursing,Avon Lodge Care Centre,750.40, 24-Aug-2021
184,Revenue,CAHD,South - Commissioned Services,Permanent Nursing,Avon Lodge Care Centre,4505.12, 24-Aug-2021
185,Revenue,CAHD,South Glos Users in South Glos Homes,Permanent Nursing,Avon Lodge Care Centre,750.40, 24-Aug-2021
186,Revenue,CAHD,South Glos Users in South Glos Homes,Permanent Nursing,Avon Lodge Care Centre,750.40, 24-Aug-2021
187,Revenue,CAHD,South - Commissioned Services,Permanent Nursing,Avon Lodge Care Centre,4410.32, 24-Aug-2021
188,Revenue,CAHD,South Glos Users in South Glos Homes,Permanent Nursing,Avon Lodge Care Centre,750.40, 24-Aug-2021
189,Revenue,CAHD,South Glos Users in South Glos Homes,Permanent Nursing,Avon Lodge Care Centre,750.40, 24-Aug-2021
190,Revenue,CAHD,South Glos Users in South Glos Homes,Permanent Nursing,Avon Lodge Care Centre,750.40, 24-Aug-2021
191,Revenue,CAHD,South Glos Users in South Glos Homes,Permanent Nursing,Avon Lodge Care Centre,750.40, 24-Aug-2021
192,Revenue,CAHD,Central - Commissioned Services,Permanent Nursing,Avon Lodge Care Centre,3974.16, 24-Aug-2021
193,Revenue,CAHD,South Glos Users in South Glos Homes,Permanent Nursing,Avon Lodge Care Centre,750.40, 24-Aug-2021
194,Revenue,CAHD,South Glos Users in South Glos Homes,Permanent Nursing,Avon Lodge Care Centre,750.40, 24-Aug-2021
195,Revenue,CAHD,Central - Commissioned Services,Permanent Residential,Avon Lodge Care Centre,3478.20, 24-Aug-2021
196,Revenue,CAHD,South - Commissioned Services,Permanent Nursing,Avon Lodge Care Centre,3887.40, 24-Aug-2021
197,Revenue,CAHD,South Glos Users in South Glos Homes,Permanent Nursing,Avon Lodge Care Centre,750.40, 24-Aug-2021
198,Revenue,CAHD,South Glos Users in South Glos Homes,Permanent Nursing,Avon Lodge Care Centre,1259.60, 24-Aug-2021
199,Revenue,CAHD,South Glos Users in South Glos Homes,Permanent Nursing,Avon Lodge Care Centre,750.40, 24-Aug-2021
200,Revenue,CAHD,South Glos Users in South Glos Homes,Permanent Nursing,Avon Lodge Care Centre,750.40, 24-Aug-2021
201,Revenue,CAHD,Central - Commissioned Services,Permanent Nursing,Avon Lodge Care Centre,3887.40, 24-Aug-2021
202,Revenue,CAHD,South Glos Users in South Glos Homes,Permanent Nursing,Avon Lodge Care Centre,750.40, 24-Aug-2021
203,Revenue,CAHD,North - Community based support,Permanent Residential,Avon Lodge Care Centre,3539.60, 24-Aug-2021
204,Revenue,CAHD,South Glos Users in South Glos Homes,Permanent Nursing,Avon Lodge Care Centre,750.40, 24-Aug-2021
205,Revenue,CAHD,South Glos Users in South Glos Homes,Permanent Nursing,Avon Lodge Care Centre,750.40, 24-Aug-2021
206,Revenue,CAHD,South - Commissioned Services,Permanent Nursing,Avon Lodge Care Centre,4634.24, 24-Aug-2021
207,Revenue,CAHD,South Glos Users in South Glos Homes,Permanent Nursing,Avon Lodge Care Centre,750.40, 24-Aug-2021
208,Revenue,CAHD,South - S117,Permanent Nursing,Avon Lodge Care Centre,3974.84, 24-Aug-2021
209,Revenue,CAHD,South Glos Users in South Glos Homes,Permanent Nursing,Avon Lodge Care Centre,750.40, 24-Aug-2021
210,Revenue,CAHD,South Glos Users in South Glos Homes,Permanent Nursing,Avon Lodge Care Centre,750.40, 24-Aug-2021
211,Revenue,CAHD,North - Community based support,Permanent Nursing,Avon Lodge Care Centre,3887.40, 24-Aug-2021
212,Revenue,CAHD,South Glos Users in South Glos Homes,Permanent Nursing,Avon Lodge Care Centre,750.40, 24-Aug-2021
213,Revenue,CAHD,South - Commissioned Services,Permanent Residential,Avon Lodge Care Centre,3130.40, 24-Aug-2021
214,Revenue,CAHD,South Glos Users in South Glos Homes,Permanent Nursing,Avon Lodge Care Centre,750.40, 24-Aug-2021
215,Revenue,CAHD,South Glos Users in South Glos Homes,Permanent Nursing,Avon Lodge Care Centre,750.40, 24-Aug-2021
216,Revenue,CAHD,South - Commissioned Services,Permanent Nursing,Avon Lodge Care Centre,3800.00, 24-Aug-2021
217,Revenue,CAHD,South Glos Users in South Glos Homes,Permanent Nursing,Avon Lodge Care Centre,750.40, 24-Aug-2021
218,Revenue,CAHD,South - Commissioned Services,Permanent Residential,Avon Valley Care Home,4092.00, 24-Aug-2021
219,Revenue,CAHD,South - Commissioned Services,Permanent Residential,Avon Valley Care Home,4270.00, 24-Aug-2021
220,Revenue,CAHD,South - S117,Permanent Residential,Avon Valley Care Home,4092.00, 24-Aug-2021
221,Revenue,CAHD,South - Commissioned Services,Permanent Residential,Avon Valley Care Home,4051.08, 24-Aug-2021
222,Revenue,CAHD,South - Commissioned Services,Permanent Residential,Avon Valley Care Home,4230.00, 24-Aug-2021
223,Revenue,CAHD,South - Commissioned Services,Permanent Residential,Avon Valley Care Home,4051.08, 24-Aug-2021
224,Revenue,CAHD,South - Commissioned Services,Permanent Residential,Avon Valley Care Home,4092.00, 24-Aug-2021
225,Revenue,CAHD,South - Commissioned Services,Permanent Residential,Avon Valley Care Home,4270.00, 24-Aug-2021
226,Revenue,CAHD,South - Commissioned Services,Permanent Residential,Avon Valley Care Home,4910.40, 24-Aug-2021
227,Revenue,CAHD,South - Commissioned Services,Permanent Residential,Avon Valley Care Home,4230.00, 24-Aug-2021
228,Revenue,CAHD,South - Commissioned Services,Permanent Residential,Avon Valley Care Home,4051.08, 24-Aug-2021
229,Revenue,CAHD,South - Commissioned Services,Respite Planned - Residential,Avon Valley Care Home,2135.00, 24-Aug-2021
230,Revenue,CAHD,South - Commissioned Services,Permanent Residential,Avon Valley Care Home,4051.08, 24-Aug-2021
231,Revenue,CAHD,South - Commissioned Services,Permanent Residential,Avon Valley Care Home,7251.43, 24-Aug-2021
232,Revenue,CAHD,South - Commissioned Services,Permanent Residential,Avon Valley Care Home,3323.57, 24-Aug-2021
233,Revenue,CAHD,South - Commissioned Services,Permanent Residential,Avon Valley Care Home,906.43, 24-Aug-2021
234,Revenue,CAHD,Central - Commissioned Services,Permanent Residential,Avon Valley Care Home,4092.00, 24-Aug-2021
235,Revenue,CAHD,South - Commissioned Services,Permanent Residential,Avon Valley Care Home,3215.14, 24-Aug-2021
236,Revenue,CAHD,South - Commissioned Services,Permanent Residential,Avon Valley Care Home,876.86, 24-Aug-2021
237,Revenue,CAHD,South - Commissioned Services,Permanent Residential,Avon Valley Care Home,4230.00, 24-Aug-2021
238,Revenue,CAHD,North - Community based support,Permanent Residential,Avonmere Care Home,4680.00, 24-Aug-2021
239,Revenue,CAHD,North - Community based support,Permanent Residential,Avonmere Care Home,4892.00, 24-Aug-2021
240,Revenue,CAHD,North - Community based support,Permanent Residential,Avonmere Care Home,4521.68, 24-Aug-2021
241,Revenue,CAHD,South - Commissioned Services,Permanent Nursing,Avonmere Care Home,4800.00, 24-Aug-2021
242,Revenue,CAHD,North - Community based support,Permanent Residential,Avonmere Care Home,4600.00, 24-Aug-2021
243,Revenue,CAHD,North - Community based support,Permanent Residential,Avonmere Care Home,4720.00, 24-Aug-2021
244,Revenue,CAHD,Central - Commissioned Services,Respite Planned - Residential,Avonmere Care Home,2985.71, 24-Aug-2021
245,Revenue,CAHD,North - Community based support,Permanent Residential,Avonmere Care Home,4892.00, 24-Aug-2021
246,Revenue,CAHD,North - Community based support,Permanent Nursing,Badminton Place,4864.32, 24-Aug-2021
247,Revenue,CAHD,South Glos Users in South Glos Homes,Permanent Nursing,Badminton Place,750.40, 24-Aug-2021
248,Revenue,CAHD,Early Years High Needs Support,Other Private Contractors,Baker Street Nursery & Pre-School,788.73, 19-Aug-2021
249,Revenue,CAHD,Children & Young People`s Health,Other Small Contracts,Barnardos,7650.00, 27-Aug-2021
250,Revenue,CAHD,Pensions - Non DSG,Annual Pension,Bath & North East Somerset Council,103748.76, 31-Aug-2021
251,Revenue,CAHD,Pensions - Non DSG,Annual Pension,Bath & North East Somerset Council,102013.76, 31-Aug-2021
252,Revenue,CAHD,South Glos Users in South Glos Homes,Permanent Nursing,Beaufort Grange Care Home,750.40, 24-Aug-2021
253,Revenue,CAHD,South Glos Users in South Glos Homes,Permanent Nursing,Beaufort Grange Care Home,750.40, 24-Aug-2021
254,Revenue,CAHD,South Glos Users in South Glos Homes,Permanent Nursing,Beaufort Grange Care Home,750.40, 24-Aug-2021
255,Revenue,CAHD,South Glos Users in South Glos Homes,Permanent Nursing,Beaufort Grange Care Home,750.40, 24-Aug-2021
256,Revenue,CAHD,South Glos Users in South Glos Homes,Permanent Nursing,Beaufort Grange Care Home,750.40, 24-Aug-2021
257,Revenue,CAHD,North - S117,Permanent Nursing,Beaufort Grange Care Home,4877.04, 24-Aug-2021
258,Revenue,CAHD,South Glos Users in South Glos Homes,Permanent Nursing,Beaufort Grange Care Home,750.40, 24-Aug-2021
259,Revenue,CAHD,Central - Commissioned Services,Permanent Nursing,Beaufort Grange Care Home,5400.00, 24-Aug-2021
260,Revenue,CAHD,South Glos Users in South Glos Homes,Permanent Nursing,Beaufort Grange Care Home,750.40, 24-Aug-2021
261,Revenue,CAHD,South Glos Users in South Glos Homes,Permanent Nursing,Beaufort Grange Care Home,750.40, 24-Aug-2021
262,Revenue,CAHD,South Glos Users in South Glos Homes,Permanent Nursing,Beaufort Grange Care Home,750.40, 24-Aug-2021
263,Revenue,CAHD,South Glos Users in South Glos Homes,Permanent Nursing,Beaufort Grange Care Home,750.40, 24-Aug-2021
264,Revenue,CAHD,South Glos Users in South Glos Homes,Permanent Nursing,Beaufort Grange Care Home,750.40, 24-Aug-2021
265,Revenue,CAHD,South Glos Users in South Glos Homes,Permanent Nursing,Beaufort Grange Care Home,750.40, 24-Aug-2021
266,Revenue,CAHD,South Glos Users in South Glos Homes,Permanent Nursing,Beaufort Grange Care Home,750.40, 24-Aug-2021
267,Revenue,CAHD,South Glos Users in South Glos Homes,Permanent Nursing,Beaufort Grange Care Home,750.40, 24-Aug-2021
268,Revenue,CAHD,South Glos Users in South Glos Homes,Permanent Nursing,Beaufort Grange Care Home,750.40, 24-Aug-2021
269,Revenue,CAHD,South Glos Users in South Glos Homes,Permanent Nursing,Beaufort Grange Care Home,750.40, 24-Aug-2021
270,Revenue,CAHD,South Glos Users in South Glos Homes,Permanent Nursing,Beaufort Grange Care Home,750.40, 24-Aug-2021
271,Revenue,CAHD,South Glos Users in South Glos Homes,Permanent Nursing,Beaufort Grange Care Home,750.40, 24-Aug-2021
272,Revenue,CAHD,South Glos Users in South Glos Homes,Permanent Nursing,Beaufort Grange Care Home,750.40, 24-Aug-2021
273,Revenue,CAHD,South Glos Users in South Glos Homes,Permanent Nursing,Beaufort Grange Care Home,750.40, 24-Aug-2021
274,Revenue,CAHD,South Glos Users in South Glos Homes,Permanent Nursing,Beaufort Grange Care Home,750.40, 24-Aug-2021
275,Revenue,CAHD,South Glos Users in South Glos Homes,Permanent Nursing,Beaufort Grange Care Home,750.40, 24-Aug-2021
276,Revenue,CAHD,North - S117,Permanent Nursing,Beaufort Grange Care Home,5400.00, 24-Aug-2021
277,Revenue,CAHD,South Glos Users in South Glos Homes,Permanent Nursing,Beaufort Grange Care Home,750.40, 24-Aug-2021
278,Revenue,CAHD,Central - Commissioned Services,Permanent Nursing,Beaufort Grange Care Home,5500.00, 24-Aug-2021
279,Revenue,CAHD,South Glos Users in South Glos Homes,Permanent Nursing,Beaufort Grange Care Home,750.40, 24-Aug-2021
280,Revenue,CAHD,North - Community based support,Permanent Nursing,Beaufort Grange Care Home,10620.00, 24-Aug-2021
281,Revenue,CAHD,South Glos Users in South Glos Homes,Permanent Nursing,Beaufort Grange Care Home,750.40, 24-Aug-2021
282,Revenue,CAHD,South Glos Users in South Glos Homes,Permanent Nursing,Beaufort Grange Care Home,750.40, 24-Aug-2021
283,Revenue,CAHD,South Glos Users in South Glos Homes,Permanent Nursing,Beaufort Grange Care Home,750.40, 24-Aug-2021
284,Revenue,CAHD,South Glos Users in South Glos Homes,Permanent Nursing,Beaufort Grange Care Home,750.40, 24-Aug-2021
285,Revenue,CAHD,South Glos Users in South Glos Homes,Permanent Nursing,Beaufort Grange Care Home,750.40, 24-Aug-2021
286,Revenue,CAHD,South Glos Users in South Glos Homes,Permanent Nursing,Beaufort Grange Care Home,750.40, 24-Aug-2021
287,Revenue,CAHD,South Glos Users in South Glos Homes,Permanent Nursing,Beaufort Grange Care Home,750.40, 24-Aug-2021
288,Revenue,CAHD,South Glos Users in South Glos Homes,Permanent Nursing,Beaufort Grange Care Home,750.40, 24-Aug-2021
289,Revenue,CAHD,South Glos Users in South Glos Homes,Permanent Nursing,Beaufort Grange Care Home,750.40, 24-Aug-2021
290,Revenue,CAHD,South Glos Users in South Glos Homes,Permanent Nursing,Beaufort Grange Care Home,750.40, 24-Aug-2021
291,Revenue,CAHD,South Glos Users in South Glos Homes,Permanent Nursing,Beaufort Grange Care Home,750.40, 24-Aug-2021
292,Revenue,CAHD,South Glos Users in South Glos Homes,Permanent Nursing,Beaufort Grange Care Home,750.40, 24-Aug-2021
293,Revenue,CAHD,South Glos Users in South Glos Homes,Permanent Nursing,Beaufort Grange Care Home,750.40, 24-Aug-2021
294,Revenue,CAHD,South Glos Users in South Glos Homes,Permanent Nursing,Beaufort Grange Care Home,1393.60, 24-Aug-2021
295,Revenue,CAHD,South Glos Users in South Glos Homes,Permanent Nursing,Beaufort Grange Care Home,750.40, 24-Aug-2021
296,Revenue,CAHD,South Glos Users in South Glos Homes,Permanent Nursing,Beaufort Grange Care Home,750.40, 24-Aug-2021
297,Revenue,CAHD,Central - Commissioned Services,Permanent Nursing,Beaufort Grange Care Home,5332.32, 24-Aug-2021
298,Revenue,CAHD,South Glos Users in South Glos Homes,Permanent Nursing,Beaufort Grange Care Home,750.40, 24-Aug-2021
299,Revenue,CAHD,Central - Commissioned Services,Permanent Residential,Beaufort House,2991.84, 24-Aug-2021
300,Revenue,CAHD,Central - Commissioned Services,Permanent Residential,Beaufort House,2896.24, 24-Aug-2021
301,Revenue,CAHD,North - Community based support,Permanent Residential,Beaufort House,2683.16, 24-Aug-2021
302,Revenue,CAHD,Central - Commissioned Services,Permanent Residential,Beaufort House,3800.00, 24-Aug-2021
303,Revenue,CAHD,North - Community based support,Permanent Residential,Beaufort House,4000.00, 24-Aug-2021
304,Revenue,CAHD,North - Community based support,Permanent Residential,Beaufort House,2817.28, 24-Aug-2021
305,Revenue,CAHD,Central - Commissioned Services,Permanent Residential,Beaufort House,4000.00, 24-Aug-2021
306,Revenue,CAHD,Central - Commissioned Services,Permanent Residential,Beaufort House,3200.00, 24-Aug-2021
307,Revenue,CAHD,Central - Commissioned Services,Permanent Residential,Beaufort House,3600.00, 24-Aug-2021
308,Revenue,CAHD,Central - Commissioned Services,Permanent Residential,Beaufort House,24571.42, 24-Aug-2021
309,Revenue,CAHD,Central - Commissioned Services,Permanent Residential,Beaufort House,4000.00, 24-Aug-2021
310,Revenue,CAHD,Central - Commissioned Services,Fees & Charges Income - General,Beaufort House,1848.14, 24-Aug-2021
311,Revenue,CAHD,North - Community based support,Permanent Residential,Beaufort House,6000.00, 24-Aug-2021
312,Revenue,CAHD,North - Community based support,Permanent Residential,Beaufort House,4000.00, 24-Aug-2021
313,Revenue,CAHD,Central - Commissioned Services,Permanent Residential,Beaufort House,3600.00, 24-Aug-2021
314,Revenue,CAHD,Central - Commissioned Services,Permanent Residential,Beaufort House,3478.20, 24-Aug-2021
315,Revenue,CAHD,South - Commissioned Services,Permanent Residential,Beech House,3088.28, 24-Aug-2021
316,Revenue,CAHD,South Glos Users in South Glos Homes,Permanent Nursing,Beech House,750.40, 24-Aug-2021
317,Revenue,CAHD,South Glos Users in South Glos Homes,Permanent Nursing,Beech House,750.40, 24-Aug-2021
318,Revenue,CAHD,South Glos Users in South Glos Homes,Permanent Nursing,Beech House,750.40, 24-Aug-2021
319,Revenue,CAHD,South Glos Users in South Glos Homes,Permanent Nursing,Beech House,750.40, 24-Aug-2021
320,Revenue,CAHD,South Glos Users in South Glos Homes,Permanent Nursing,Beech House,750.40, 24-Aug-2021
321,Revenue,CAHD,South Glos Users in South Glos Homes,Permanent Nursing,Beech House,750.40, 24-Aug-2021
322,Revenue,CAHD,South Glos Users in South Glos Homes,Permanent Nursing,Beech House,750.40, 24-Aug-2021
323,Revenue,CAHD,North - Community based support,Permanent Nursing,Beech House,4378.44, 24-Aug-2021
324,Revenue,CAHD,South Glos Users in South Glos Homes,Permanent Nursing,Beech House,750.40, 24-Aug-2021
325,Revenue,CAHD,South Glos Users in South Glos Homes,Permanent Nursing,Beech House,750.40, 24-Aug-2021
326,Revenue,CAHD,North - Community based support,Permanent Nursing,Beech House,4378.44, 24-Aug-2021
327,Revenue,CAHD,South Glos Users in South Glos Homes,Permanent Nursing,Beech House,750.40, 24-Aug-2021
328,Revenue,CAHD,North - Community based support,Permanent Nursing,Beech House,4407.12, 24-Aug-2021
329,Revenue,CAHD,South Glos Users in South Glos Homes,Permanent Nursing,Beech House,750.40, 24-Aug-2021
330,Revenue,CAHD,South Glos Users in South Glos Homes,Permanent Nursing,Beech House,1474.00, 24-Aug-2021
331,Revenue,CAHD,South Glos Users in South Glos Homes,Permanent Nursing,Beech House,750.40, 24-Aug-2021
332,Revenue,CAHD,South Glos Users in South Glos Homes,Permanent Nursing,Beech House,750.40, 24-Aug-2021
333,Revenue,CAHD,South Glos Users in South Glos Homes,Permanent Nursing,Beech House,750.40, 24-Aug-2021
334,Revenue,CAHD,South Glos Users in South Glos Homes,Permanent Nursing,Beech House,750.40, 24-Aug-2021
335,Revenue,CAHD,South Glos Users in South Glos Homes,Permanent Nursing,Beech House,750.40, 24-Aug-2021
336,Revenue,CAHD,South Glos Users in South Glos Homes,Permanent Nursing,Beech House,750.40, 24-Aug-2021
337,Revenue,CAHD,South Glos Users in South Glos Homes,Permanent Nursing,Beech House,750.40, 24-Aug-2021
338,Revenue,CAHD,South Glos Users in South Glos Homes,Permanent Nursing,Beech House,750.40, 24-Aug-2021
339,Revenue,CAHD,South Glos Users in South Glos Homes,Permanent Nursing,Beech House,750.40, 24-Aug-2021
340,Revenue,CAHD,North - Community based support,Permanent Residential,Beech House,4460.28, 24-Aug-2021
341,Revenue,CAHD,South Glos Users in South Glos Homes,Permanent Nursing,Beechwood Care Home,1122.00, 24-Aug-2021
342,Revenue,CAHD,18-25 Year Olds,Permanent Residential,Beechwood Court Ltd,14586.31, 03-Aug-2021
343,Revenue,CAHD,18-25 Year Olds,Permanent Residential,Beechwood Court Ltd,21854.54, 23-Aug-2021
344,Revenue,CAHD,South - Commissioned Services,Permanent Nursing,Begbrook House Nursing Home,3593.88, 24-Aug-2021
345,Revenue,CAHD,Central - Commissioned Services,Fees & Charges Income - General,Begbrook House Nursing Home,622.82, 24-Aug-2021
346,Revenue,CAHD,North - Community based support,Permanent Nursing,Begbrook House Nursing Home,3234.72, 24-Aug-2021
347,Revenue,CAHD,South - Commissioned Services,Permanent Residential,Begbrook House Nursing Home,3400.00, 24-Aug-2021
348,Revenue,CAHD,Central - Commissioned Services,Permanent Nursing,Begbrook House Nursing Home,3400.00, 24-Aug-2021
349,Revenue,CAHD,Schools Specific Grant Income,Other Public Bodies,Biddenham International School & Sports College,630.00, 23-Aug-2021
350,Revenue,CAHD,South - S117,Permanent Residential,Bidna House,3774.24, 24-Aug-2021
351,Revenue,CAHD,Tobacco Control,Other Small Contracts,Bionical Solutions Limited,3375.00, 18-Aug-2021
352,Revenue,CAHD,Placements OLA Special Schools and RB,Other L.A.s - General,Blaise High School,834.87, 19-Aug-2021
353,Revenue,CAHD,Statemented Support Payments to OLAs,Other L.A.s - General,Blaise High School,907.83, 19-Aug-2021
354,Revenue,CAHD,Central - Commissioned Services,Other Small Contracts,Blakehill Healthcare Ltd,6356.25, 04-Aug-2021
355,Revenue,CAHD,South - Commissioned Services,Other Small Contracts,Blakehill Healthcare Ltd,3100.19, 04-Aug-2021
356,Revenue,CAHD,North - Community based support,Other Small Contracts,Blakehill Healthcare Ltd,4342.50, 04-Aug-2021
357,Revenue,CAHD,Central - Commissioned Services,Other Small Contracts,Blakehill Healthcare Ltd,6976.90, 13-Aug-2021
358,Revenue,CAHD,South - Commissioned Services,Other Small Contracts,Blakehill Healthcare Ltd,3049.45, 13-Aug-2021
359,Revenue,CAHD,North - Community based support,Other Small Contracts,Blakehill Healthcare Ltd,4317.50, 13-Aug-2021
360,Revenue,CAHD,Central - Commissioned Services,Other Small Contracts,Blakehill Healthcare Ltd,6993.76, 13-Aug-2021
361,Revenue,CAHD,South - Commissioned Services,Other Small Contracts,Blakehill Healthcare Ltd,3052.48, 13-Aug-2021
362,Revenue,CAHD,North - Community based support,Other Small Contracts,Blakehill Healthcare Ltd,4130.00, 13-Aug-2021
363,Revenue,CAHD,Central - Commissioned Services,Other Small Contracts,Blakehill Healthcare Ltd,7250.00, 27-Aug-2021
364,Revenue,CAHD,South - Commissioned Services,Other Small Contracts,Blakehill Healthcare Ltd,3016.06, 27-Aug-2021
365,Revenue,CAHD,North - Community based support,Other Small Contracts,Blakehill Healthcare Ltd,4318.95, 27-Aug-2021
366,Revenue,CAHD,Central - Commissioned Services,Other Small Contracts,Blakehill Healthcare Ltd,718.75, 03-Aug-2021
367,Revenue,CAHD,Central - Commissioned Services,Other Small Contracts,Blakehill Healthcare Ltd,831.25, 03-Aug-2021
368,Revenue,CAHD,Central - Commissioned Services,Other Small Contracts,Blakehill Healthcare Ltd,3150.00, 24-Aug-2021
369,Revenue,CAHD,Covid - ASC - Infection Control,Grants to Voluntary Bodies,Blakehill Healthcare Ltd,1520.10, 24-Aug-2021
370,Revenue,CAHD,ASC Rapid Testing Fund,Grants to Voluntary Bodies,Blakehill Healthcare Ltd,1596.30, 24-Aug-2021
371,Revenue,CAHD,South Glos Users in South Glos Homes,Permanent Nursing,Blossom Fields Nursing Home,750.40, 24-Aug-2021
372,Revenue,CAHD,South Glos Users in South Glos Homes,Permanent Nursing,Blossom Fields Nursing Home,750.40, 24-Aug-2021
373,Revenue,CAHD,North - Community based support,Permanent Nursing,Blossom Fields Nursing Home,5000.00, 24-Aug-2021
374,Revenue,CAHD,South Glos Users in South Glos Homes,Permanent Nursing,Blossom Fields Nursing Home,750.40, 24-Aug-2021
375,Revenue,CAHD,North - Community based support,Permanent Nursing,Blossom Fields Nursing Home,4880.12, 24-Aug-2021
376,Revenue,CAHD,South Glos Users in South Glos Homes,Permanent Nursing,Blossom Fields Nursing Home,750.40, 24-Aug-2021
377,Revenue,CAHD,North - Community based support,Respite Planned - Nursing,Blossom Fields Nursing Home,7821.51, 24-Aug-2021
378,Revenue,CAHD,North - Community based support,Respite Planned - Nursing,Blossom Fields Nursing Home,2740.89, 24-Aug-2021
379,Revenue,CAHD,South Glos Users in South Glos Homes,Permanent Nursing,Blossom Fields Nursing Home,750.40, 24-Aug-2021
380,Revenue,CAHD,South Glos Users in South Glos Homes,Permanent Nursing,Blossom Fields Nursing Home,750.40, 24-Aug-2021
381,Revenue,CAHD,South - Commissioned Services,Permanent Nursing,Blossom Fields Nursing Home,3600.00, 24-Aug-2021
382,Revenue,CAHD,South - Commissioned Services,Permanent Nursing,Blossom Fields Nursing Home,1671.43, 24-Aug-2021
383,Revenue,CAHD,North - Community based support,Permanent Nursing,Blossom Fields Nursing Home,4910.28, 24-Aug-2021
384,Revenue,CAHD,South Glos Users in South Glos Homes,Permanent Nursing,Blossom Fields Nursing Home,750.40, 24-Aug-2021
385,Revenue,CAHD,South Glos Users in South Glos Homes,Permanent Nursing,Blossom Fields Nursing Home,750.40, 24-Aug-2021
386,Revenue,CAHD,North - Community based support,Permanent Nursing,Blossom Fields Nursing Home,4910.40, 24-Aug-2021
387,Revenue,CAHD,South Glos Users in South Glos Homes,Permanent Nursing,Blossom Fields Nursing Home,750.40, 24-Aug-2021
388,Revenue,CAHD,South Glos Users in South Glos Homes,Permanent Nursing,Blossom Fields Nursing Home,750.40, 24-Aug-2021
389,Revenue,CAHD,South Glos Users in South Glos Homes,Permanent Nursing,Blossom Fields Nursing Home,750.40, 24-Aug-2021
390,Revenue,CAHD,South Glos Users in South Glos Homes,Permanent Nursing,Blossom Fields Nursing Home,750.40, 24-Aug-2021
391,Revenue,CAHD,North - Community based support,Permanent Residential,Blossom Fields Nursing Home,4132.12, 24-Aug-2021
392,Revenue,CAHD,South Glos Users in South Glos Homes,Permanent Nursing,Blossom Fields Nursing Home,750.40, 24-Aug-2021
393,Revenue,CAHD,South Glos Users in South Glos Homes,Permanent Nursing,Blossom Fields Nursing Home,750.40, 24-Aug-2021
394,Revenue,CAHD,North - Community based support,Permanent Nursing,Blossom Fields Nursing Home,4132.12, 24-Aug-2021
395,Revenue,CAHD,South Glos Users in South Glos Homes,Permanent Nursing,Blossom Fields Nursing Home,750.40, 24-Aug-2021
396,Revenue,CAHD,South Glos Users in South Glos Homes,Permanent Nursing,Blossom Fields Nursing Home,750.40, 24-Aug-2021
397,Revenue,CAHD,South Glos Users in South Glos Homes,Permanent Nursing,Blossom Fields Nursing Home,1313.20, 24-Aug-2021
398,Revenue,CAHD,South Glos Users in South Glos Homes,Permanent Nursing,Blossom Fields Nursing Home,750.40, 24-Aug-2021
399,Revenue,CAHD,South Glos Users in South Glos Homes,Permanent Nursing,Blossom Fields Nursing Home,750.40, 24-Aug-2021
400,Revenue,CAHD,Central - Commissioned Services,Permanent Nursing,Blossom Fields Nursing Home,4132.12, 24-Aug-2021
401,Revenue,CAHD,South Glos Users in South Glos Homes,Permanent Nursing,Blossom Fields Nursing Home,750.40, 24-Aug-2021
402,Revenue,CAHD,South Glos Users in South Glos Homes,Permanent Nursing,Blossom Fields Nursing Home,750.40, 24-Aug-2021
403,Revenue,CAHD,South Glos Users in South Glos Homes,Permanent Nursing,Blossom Fields Nursing Home,750.40, 24-Aug-2021
404,Revenue,CAHD,South Glos Users in South Glos Homes,Permanent Nursing,Blossom Fields Nursing Home,750.40, 24-Aug-2021
405,Revenue,CAHD,South Glos Users in South Glos Homes,Permanent Nursing,Blossom Fields Nursing Home,750.40, 24-Aug-2021
406,Revenue,CAHD,South - Commissioned Services,Respite Emergency - Residential,Blossom Fields Nursing Home,3541.82, 24-Aug-2021
407,Revenue,CAHD,South - Commissioned Services,Respite Emergency - Residential,Blossom Fields Nursing Home,590.30, 24-Aug-2021
408,Revenue,CAHD,Central - Commissioned Services,Permanent Nursing,Blossom Fields Nursing Home,7200.00, 24-Aug-2021
409,Revenue,CAHD,Central - Commissioned Services,Permanent Nursing,Blossom Fields Nursing Home,3600.00, 24-Aug-2021
410,Revenue,CAHD,South Glos Users in South Glos Homes,Permanent Nursing,Blossom Fields Nursing Home,750.40, 24-Aug-2021
411,Revenue,CAHD,Central - Commissioned Services,Fees & Charges Income - General,Blossom Fields Nursing Home,1252.12, 24-Aug-2021
412,Revenue,CAHD,South Glos Users in South Glos Homes,Permanent Nursing,Blossom Fields Nursing Home,750.40, 24-Aug-2021
413,Revenue,CAHD,North - Community based support,Fees & Charges Income - General,Blossom Fields Nursing Home,1153.30, 24-Aug-2021
414,Revenue,CAHD,Central - Commissioned Services,Permanent Nursing,Blossom Fields Nursing Home,4132.12, 24-Aug-2021
415,Revenue,CAHD,South Glos Users in South Glos Homes,Permanent Nursing,Blossom Fields Nursing Home,750.40, 24-Aug-2021
416,Revenue,CAHD,South Glos Users in South Glos Homes,Permanent Nursing,Blossom Fields Nursing Home,750.40, 24-Aug-2021
417,Revenue,CAHD,North - Community based support,Permanent Nursing,Blossom Fields Nursing Home,3792.92, 24-Aug-2021
418,Revenue,CAHD,South Glos Users in South Glos Homes,Permanent Nursing,Blossom Fields Nursing Home,750.40, 24-Aug-2021
419,Revenue,CAHD,South Glos Users in South Glos Homes,Permanent Nursing,Blossom Fields Nursing Home,750.40, 24-Aug-2021
420,Revenue,CAHD,South Glos Users in South Glos Homes,Permanent Nursing,Blossom Fields Nursing Home,750.40, 24-Aug-2021
421,Revenue,CAHD,North - Community based support,Permanent Residential,Blossom Fields Nursing Home,3800.00, 24-Aug-2021
422,Revenue,CAHD,South Glos Users in South Glos Homes,Permanent Nursing,Blossom Fields Nursing Home,750.40, 24-Aug-2021
423,Revenue,CAHD,South - S117,Permanent Residential,Blossom Fields Nursing Home,4400.00, 24-Aug-2021
424,Revenue,CAHD,South - S117,Permanent Residential,Blossom Fields Nursing Home,2200.00, 24-Aug-2021
425,Revenue,CAHD,South Glos Users in South Glos Homes,Permanent Nursing,Blossom Fields Nursing Home,750.40, 24-Aug-2021
426,Revenue,CAHD,South - Commissioned Services,Respite Planned - Nursing,Blossom Fields Nursing Home,900.00, 24-Aug-2021
427,Revenue,CAHD,Central - Commissioned Services,Respite Emergency - Residential,Blossom Fields Nursing Home,1764.29, 24-Aug-2021
428,Revenue,CAHD,Central - Commissioned Services,Permanent Residential,Blossom Fields Nursing Home,3800.00, 24-Aug-2021
429,Revenue,CAHD,South Glos Users in South Glos Homes,Permanent Nursing,Blossom Fields Nursing Home,750.40, 24-Aug-2021
430,Revenue,CAHD,Central - Commissioned Services,Permanent Nursing,Blossom Fields Nursing Home,4132.12, 24-Aug-2021
431,Revenue,CAHD,South Glos Users in South Glos Homes,Permanent Nursing,Blossom Fields Nursing Home,750.40, 24-Aug-2021
432,Revenue,CAHD,South Glos Users in South Glos Homes,Permanent Nursing,Blossom Fields Nursing Home,750.40, 24-Aug-2021
433,Revenue,CAHD,South - Commissioned Services,Permanent Nursing,Blossom Fields Nursing Home,4790.76, 24-Aug-2021
434,Revenue,CAHD,South Glos Users in South Glos Homes,Permanent Nursing,Blossom Fields Nursing Home,750.40, 24-Aug-2021
435,Revenue,CAHD,Central - Commissioned Services,Permanent Nursing,Blossom Fields Nursing Home,5123.80, 24-Aug-2021
436,Revenue,CAHD,South Glos Users in South Glos Homes,Permanent Nursing,Blossom Fields Nursing Home,750.40, 24-Aug-2021
437,Revenue,CAHD,Central - Commissioned Services,Permanent Nursing,Blossom Fields Nursing Home,4132.12, 24-Aug-2021
438,Revenue,CAHD,South Glos Users in South Glos Homes,Permanent Nursing,Blossom Fields Nursing Home,750.40, 24-Aug-2021
439,Revenue,CAHD,South - Commissioned Services,Permanent Nursing,Blossom Fields Nursing Home,3943.04, 24-Aug-2021
440,Revenue,CAHD,South Glos Users in South Glos Homes,Permanent Nursing,Blossom Fields Nursing Home,750.40, 24-Aug-2021
441,Revenue,CAHD,South Glos Users in South Glos Homes,Permanent Nursing,Blossom Fields Nursing Home,1841.31, 24-Aug-2021
442,Revenue,CAHD,North - Community based support,Permanent Nursing,Blossom Fields Nursing Home,4132.12, 24-Aug-2021
443,Revenue,CAHD,South Glos Users in South Glos Homes,Permanent Nursing,Blossom Fields Nursing Home,750.40, 24-Aug-2021
444,Revenue,CAHD,Central - Commissioned Services,Respite Emergency - Residential,Blossom Fields Nursing Home,21350.06, 24-Aug-2021
445,Revenue,CAHD,Central - Commissioned Services,Permanent Nursing,Blossom Fields Nursing Home,4132.12, 24-Aug-2021
446,Revenue,CAHD,South Glos Users in South Glos Homes,Permanent Nursing,Blossom Fields Nursing Home,750.40, 24-Aug-2021
447,Revenue,CAHD,Central - Commissioned Services,Permanent Nursing,Blossom Fields Nursing Home,4790.76, 24-Aug-2021
448,Revenue,CAHD,South Glos Users in South Glos Homes,Permanent Nursing,Blossom Fields Nursing Home,750.40, 24-Aug-2021
449,Revenue,CAHD,South - Commissioned Services,Permanent Residential,Blossom Fields Nursing Home,5115.00, 24-Aug-2021
450,Revenue,CAHD,South Glos Users in South Glos Homes,Permanent Nursing,Blossom Fields Nursing Home,750.40, 24-Aug-2021
451,Revenue,CAHD,South Glos Users in South Glos Homes,Permanent Nursing,Blossom Fields Nursing Home,750.40, 24-Aug-2021
452,Revenue,CAHD,Central - Commissioned Services,Permanent Nursing,Blossom Fields Nursing Home,4782.96, 24-Aug-2021
453,Revenue,CAHD,South Glos Users in South Glos Homes,Permanent Nursing,Blossom Fields Nursing Home,750.40, 24-Aug-2021
454,Revenue,CAHD,North - Community based support,Permanent Nursing,Blossom Fields Nursing Home,5319.60, 24-Aug-2021
455,Revenue,CAHD,South Glos Users in South Glos Homes,Permanent Nursing,Blossom Fields Nursing Home,750.40, 24-Aug-2021
456,Revenue,CAHD,North - Community based support,Permanent Residential,Blossom Fields Nursing Home,5092.86, 24-Aug-2021
457,Revenue,CAHD,North - S117,Permanent Residential,Blossom Fields Nursing Home,4910.40, 24-Aug-2021
458,Revenue,CAHD,South Glos Users in South Glos Homes,Permanent Nursing,Blossom Fields Nursing Home,750.40, 24-Aug-2021
459,Revenue,CAHD,South Glos Users in South Glos Homes,Permanent Nursing,Blossom Fields Nursing Home,2438.80, 24-Aug-2021
460,Revenue,CAHD,South Glos Users in South Glos Homes,Permanent Nursing,Blossom Fields Nursing Home,750.40, 24-Aug-2021
461,Revenue,CAHD,South Glos Users in South Glos Homes,Permanent Nursing,Blossom Fields Nursing Home,750.40, 24-Aug-2021
462,Revenue,CAHD,North - S117,Permanent Residential,Blossom Fields Nursing Home,5115.00, 24-Aug-2021
463,Revenue,CAHD,South Glos Users in South Glos Homes,Permanent Nursing,Blossom Fields Nursing Home,750.40, 24-Aug-2021
464,Revenue,CAHD,South Glos Users in South Glos Homes,Permanent Nursing,Blossom Fields Nursing Home,750.40, 24-Aug-2021
465,Revenue,CAHD,Central - Commissioned Services,Permanent Nursing,Blossom Fields Nursing Home,4818.72, 24-Aug-2021
466,Revenue,CAHD,South Glos Users in South Glos Homes,Permanent Nursing,Blossom Fields Nursing Home,750.40, 24-Aug-2021
467,Revenue,CAHD,South Glos Users in South Glos Homes,Permanent Nursing,Blossom Fields Nursing Home,750.40, 24-Aug-2021
468,Revenue,CAHD,Central - Commissioned Services,Permanent Nursing,Blossom Fields Nursing Home,4132.12, 24-Aug-2021
469,Revenue,CAHD,South Glos Users in South Glos Homes,Permanent Nursing,Blossom Fields Nursing Home,750.40, 24-Aug-2021
470,Revenue,CAHD,Central - Commissioned Services,Permanent Nursing,Blossom Fields Nursing Home,6242.86, 24-Aug-2021
471,Revenue,CAHD,Central - Commissioned Services,Permanent Nursing,Blossom Fields Nursing Home,4600.00, 24-Aug-2021
472,Revenue,CAHD,South Glos Users in South Glos Homes,Permanent Nursing,Blossom Fields Nursing Home,750.40, 24-Aug-2021
473,Revenue,CAHD,South Glos Users in South Glos Homes,Permanent Nursing,Blossom Fields Nursing Home,750.40, 24-Aug-2021
474,Revenue,CAHD,South Glos Users in South Glos Homes,Permanent Nursing,Blossom Fields Nursing Home,750.40, 24-Aug-2021
475,Revenue,CAHD,South Glos Users in South Glos Homes,Permanent Nursing,Blossom Fields Nursing Home,750.40, 24-Aug-2021
476,Revenue,CAHD,South Glos Users in South Glos Homes,Permanent Nursing,Blossom Fields Nursing Home,750.40, 24-Aug-2021
477,Revenue,CAHD,South - Commissioned Services,Permanent Nursing,Blossom Fields Nursing Home,12350.00, 24-Aug-2021
478,Revenue,CAHD,South - Commissioned Services,Permanent Nursing,Blossom Fields Nursing Home,3800.00, 24-Aug-2021
479,Revenue,CAHD,South Glos Users in South Glos Homes,Permanent Nursing,Blossom Fields Nursing Home,750.40, 24-Aug-2021
480,Revenue,CAHD,South - Commissioned Services,Permanent Nursing,Blossom Fields Nursing Home,5000.00, 24-Aug-2021
481,Revenue,CAHD,South Glos Users in South Glos Homes,Permanent Nursing,Blossom Fields Nursing Home,750.40, 24-Aug-2021
482,Revenue,CAHD,Central - Commissioned Services,Permanent Residential,Blossom Fields Nursing Home,5115.00, 24-Aug-2021
483,Revenue,CAHD,South Glos Users in South Glos Homes,Permanent Nursing,Blossom Fields Nursing Home,750.40, 24-Aug-2021
484,Revenue,CAHD,Central - Commissioned Services,Permanent Nursing,Blossom Fields Nursing Home,4910.40, 24-Aug-2021
485,Revenue,CAHD,South Glos Users in South Glos Homes,Permanent Nursing,Blossom Fields Nursing Home,750.40, 24-Aug-2021
486,Revenue,CAHD,Central - Commissioned Services,Permanent Nursing,Blossom Fields Nursing Home,4132.12, 24-Aug-2021
487,Revenue,CAHD,South Glos Users in South Glos Homes,Permanent Nursing,Blossom Fields Nursing Home,750.40, 24-Aug-2021
488,Revenue,CAHD,Central - Commissioned Services,Permanent Nursing,Blossom Fields Nursing Home,3600.00, 24-Aug-2021
489,Revenue,CAHD,Central - Commissioned Services,Permanent Nursing,Blossom Fields Nursing Home,3085.71, 24-Aug-2021
490,Revenue,CAHD,South Glos Users in South Glos Homes,Permanent Nursing,Blossom Fields Nursing Home,3484.00, 24-Aug-2021
491,Revenue,CAHD,South Glos Users in South Glos Homes,Permanent Nursing,Blossom Fields Nursing Home,750.40, 24-Aug-2021
492,Revenue,CAHD,South Glos Users in South Glos Homes,Permanent Nursing,Blossom Fields Nursing Home,938.00, 24-Aug-2021
493,Revenue,CAHD,South Glos Users in South Glos Homes,Permanent Nursing,Blossom Fields Nursing Home,750.40, 24-Aug-2021
494,Revenue,CAHD,Central - Commissioned Services,Permanent Nursing,Blossom Fields Nursing Home,5115.00, 24-Aug-2021
495,Revenue,CAHD,South Glos Users in South Glos Homes,Permanent Nursing,Blossom Fields Nursing Home,750.40, 24-Aug-2021
496,Revenue,CAHD,Central - Commissioned Services,Permanent Nursing,Blossom Fields Nursing Home,4132.12, 24-Aug-2021
497,Revenue,CAHD,South Glos Users in South Glos Homes,Permanent Nursing,Blossom Fields Nursing Home,750.40, 24-Aug-2021
498,Revenue,CAHD,Statemented Support Payments to OLAs,Other L.A.s - General,Blue Coat CE VA Primary School,837.09, 19-Aug-2021
499,Revenue,CAHD,Statemented Support Payments to OLAs,Other L.A.s - General,Blue Coat CE VA Primary School,1292.50, 19-Aug-2021
500,Revenue,CAHD,North - Community based support,Permanent Residential,Bluebells,3699.60, 24-Aug-2021
501,Revenue,CAHD,Central - Commissioned Services,Other Small Contracts,Bluebird Care (South Gloucestershire),11383.39, 04-Aug-2021
502,Revenue,CAHD,South - Commissioned Services,Other Small Contracts,Bluebird Care (South Gloucestershire),4843.89, 04-Aug-2021
503,Revenue,CAHD,North - Community based support,Other Small Contracts,Bluebird Care (South Gloucestershire),3640.97, 04-Aug-2021
504,Revenue,CAHD,Resilience Team,Other Small Contracts,Bluebird Care (South Gloucestershire),120.80, 04-Aug-2021
505,Revenue,CAHD,Central - Commissioned Services,Other Small Contracts,Bluebird Care (South Gloucestershire),11579.69, 04-Aug-2021
506,Revenue,CAHD,South - Commissioned Services,Other Small Contracts,Bluebird Care (South Gloucestershire),4813.69, 04-Aug-2021
507,Revenue,CAHD,North - Community based support,Other Small Contracts,Bluebird Care (South Gloucestershire),3659.07, 04-Aug-2021
508,Revenue,CAHD,Resilience Team,Other Small Contracts,Bluebird Care (South Gloucestershire),120.80, 04-Aug-2021
509,Revenue,CAHD,Central - Commissioned Services,Other Small Contracts,Bluebird Care (South Gloucestershire),12947.03, 06-Aug-2021
510,Revenue,CAHD,South - Commissioned Services,Other Small Contracts,Bluebird Care (South Gloucestershire),4836.34, 06-Aug-2021
511,Revenue,CAHD,North - Community based support,Other Small Contracts,Bluebird Care (South Gloucestershire),3127.79, 06-Aug-2021
512,Revenue,CAHD,Resilience Team,Other Small Contracts,Bluebird Care (South Gloucestershire),120.80, 06-Aug-2021
513,Revenue,CAHD,Central - Commissioned Services,Other Small Contracts,Bluebird Care (South Gloucestershire),13436.49, 09-Aug-2021
514,Revenue,CAHD,South - Commissioned Services,Other Small Contracts,Bluebird Care (South Gloucestershire),4730.64, 09-Aug-2021
515,Revenue,CAHD,North - Community based support,Other Small Contracts,Bluebird Care (South Gloucestershire),2827.14, 09-Aug-2021
516,Revenue,CAHD,Resilience Team,Other Small Contracts,Bluebird Care (South Gloucestershire),113.25, 09-Aug-2021
517,Revenue,CAHD,Central - Commissioned Services,Other Small Contracts,Bluebird Care (South Gloucestershire),13800.17, 17-Aug-2021
518,Revenue,CAHD,South - Commissioned Services,Other Small Contracts,Bluebird Care (South Gloucestershire),4670.24, 17-Aug-2021
519,Revenue,CAHD,North - Community based support,Other Small Contracts,Bluebird Care (South Gloucestershire),2848.14, 17-Aug-2021
520,Revenue,CAHD,Resilience Team,Other Small Contracts,Bluebird Care (South Gloucestershire),120.80, 17-Aug-2021
521,Revenue,CAHD,Central - Commissioned Services,Other Small Contracts,Bluebird Care (South Gloucestershire),13170.59, 27-Aug-2021
522,Revenue,CAHD,South - Commissioned Services,Other Small Contracts,Bluebird Care (South Gloucestershire),4723.09, 27-Aug-2021
523,Revenue,CAHD,North - Community based support,Other Small Contracts,Bluebird Care (South Gloucestershire),2758.82, 27-Aug-2021
524,Revenue,CAHD,Resilience Team,Other Small Contracts,Bluebird Care (South Gloucestershire),113.25, 27-Aug-2021
525,Revenue,CAHD,Central - Commissioned Services,Other Small Contracts,Bluebird Care (South Gloucestershire),12491.09, 31-Aug-2021
526,Revenue,CAHD,South - Commissioned Services,Other Small Contracts,Bluebird Care (South Gloucestershire),4405.99, 31-Aug-2021
527,Revenue,CAHD,North - Community based support,Other Small Contracts,Bluebird Care (South Gloucestershire),2735.34, 31-Aug-2021
528,Revenue,CAHD,Resilience Team,Other Small Contracts,Bluebird Care (South Gloucestershire),128.35, 31-Aug-2021
529,Revenue,CAHD,Covid - ASC - Infection Control,Grants to Voluntary Bodies,Bluebird Care (South Gloucestershire),7347.15, 17-Aug-2021
530,Revenue,CAHD,Covid - ASC - Infection Control,Grants to Voluntary Bodies,Bluebird Care (South Gloucestershire),7715.45, 17-Aug-2021
531,Revenue,CAHD,Sexual Health,Other Small Contracts,Boots UK Ltd,752.71, 18-Aug-2021
532,Revenue,CAHD,Sexual Health,Other Small Contracts,Boots UK Ltd,1342.64, 18-Aug-2021
533,Revenue,CAHD,Drug and Alcohol Programme,Other Small Contracts,Boots UK Ltd,525.00, 25-Aug-2021
534,Revenue,CAHD,Drug and Alcohol Programme,Other Small Contracts,Boots UK Ltd,750.00, 25-Aug-2021
535,Revenue,CAHD,S28A cases,Permanent Residential,Bradbury House,6505.16, 24-Aug-2021
536,Revenue,CAHD,Jointly Funded H&SC Packages,Permanent Residential,Bradbury House,8441.92, 24-Aug-2021
537,Revenue,CAHD,North - S117,Permanent Residential,Bradbury House,5772.00, 24-Aug-2021
538,Revenue,CAHD,South - Commissioned Services,Permanent Residential,Bradbury House,10168.08, 24-Aug-2021
539,Revenue,CAHD,Drug and Alcohol Programme,Other Small Contracts,Bradley Stoke Surgery,1218.00, 25-Aug-2021
540,Revenue,CAHD,CSC - Child Arrangement Orders (prev RO),Residence Order Allowances,Individual,2538.54, 06-Aug-2021
541,Revenue,CAHD,Social Lettings Agency,Rent,Individual,822.73, 25-Aug-2021
542,Revenue,CAHD,Social Lettings Agency,Fees & Charges Income - General,Individual,-102.80, 25-Aug-2021
543,Revenue,CAHD,Social Lettings Agency,Rent,Individual,915.00, 03-Aug-2021
544,Revenue,CAHD,Social Lettings Agency,Fees & Charges Income - General,Individual,-73.20, 03-Aug-2021
545,Revenue,CAHD,Placements OLA Special Schools and RB,Other L.A.s - General,Briarwood School,1268.03, 19-Aug-2021
546,Revenue,CAHD,Placements OLA Special Schools and RB,Other L.A.s - General,Briarwood School,2774.72, 19-Aug-2021
547,Revenue,CAHD,Placements OLA Special Schools and RB,Other L.A.s - General,Briarwood School,1268.03, 19-Aug-2021
548,Revenue,CAHD,North - Community based support,Permanent Residential,Bridge House Care Home,2913.52, 24-Aug-2021
549,Revenue,CAHD,North - Community based support,Permanent Residential,Bridgwater Court Care Home,10773.64, 24-Aug-2021
550,Revenue,CAHD,Statemented Support Academies,Other Public Bodies,Bristol & South Gloucestershire UTC,635.08, 20-Aug-2021
551,Revenue,CAHD,Statemented Support Academies,Other Public Bodies,Bristol & South Gloucestershire UTC,907.83, 20-Aug-2021
552,Revenue,CAHD,Statemented Support Payments to OLAs,Other L.A.s - General,Bristol Cathedral Choir School,942.58, 19-Aug-2021
553,Revenue,CAHD,Statemented Support Payments to OLAs,Other L.A.s - General,Bristol Cathedral Choir School,880.08, 19-Aug-2021
554,Revenue,CAHD,EHCP Co-ordination Team,Interpreting & Translation,Bristol City Council,476.43, 19-Aug-2021
555,Revenue,CAHD,EHCP Co-ordination Team,Interpreting & Translation,Bristol City Council,566.18, 27-Aug-2021
556,Revenue,CAHD,Early Years High Needs Support,Other Private Contractors,Bristol City Council,728.06, 19-Aug-2021
557,Revenue,CAHD,Statemented Support Payments to OLAs,Other L.A.s - General,Bristol City Council Schools General,897.42, 19-Aug-2021
558,Revenue,CAHD,Statemented Support Payments to OLAs,Other L.A.s - General,Bristol City Council Schools General,635.33, 19-Aug-2021
559,Revenue,CAHD,SEN High Needs - Not at School Base,Other Private Contractors,Bristol Tuition Limited,456.00, 27-Aug-2021
560,Revenue,CAHD,CSC - Section 17 - NORTH,Other Supplies & Services,Bristol Tuition Limited,658.80, 16-Aug-2021
561,Revenue,CAHD,Statemented Support Payments to OLAs,Other L.A.s - General,Broadlands Academy,835.17, 19-Aug-2021
562,Revenue,CAHD,North - Community based support,Permanent Residential,Brockhills Farm,3300.00, 24-Aug-2021
563,Revenue,CAHD,North - Community based support,Permanent Residential,Brockhills Farm,3200.00, 24-Aug-2021
564,Revenue,CAHD,Parent Partnership & Disagreement Resolutions,Fees - General,Individual,1655.50, 26-Aug-2021
565,Revenue,CAHD,Parent Partnership & Disagreement Resolutions,Fees - General,Individual,877.50, 26-Aug-2021
566,Revenue,CAHD,Central - Commissioned Services,Other Small Contracts,Brunelcare,430.92, 04-Aug-2021
567,Revenue,CAHD,South - Commissioned Services,Other Small Contracts,Brunelcare,15486.52, 04-Aug-2021
568,Revenue,CAHD,South - Commissioned Services,Mentoring,Brunelcare,127.68, 04-Aug-2021
569,Revenue,CAHD,North - Community based support,Other Small Contracts,Brunelcare,414.96, 04-Aug-2021
570,Revenue,CAHD,Central - Commissioned Services,Other Small Contracts,Brunelcare,414.96, 04-Aug-2021
571,Revenue,CAHD,South - Commissioned Services,Other Small Contracts,Brunelcare,15896.16, 04-Aug-2021
572,Revenue,CAHD,South - Commissioned Services,Mentoring,Brunelcare,148.96, 04-Aug-2021
573,Revenue,CAHD,North - Community based support,Other Small Contracts,Brunelcare,393.68, 04-Aug-2021
574,Revenue,CAHD,Central - Commissioned Services,Other Small Contracts,Brunelcare,399.00, 27-Aug-2021
575,Revenue,CAHD,South - Commissioned Services,Other Small Contracts,Brunelcare,15295.00, 27-Aug-2021
576,Revenue,CAHD,South - Commissioned Services,Mentoring,Brunelcare,117.04, 27-Aug-2021
577,Revenue,CAHD,North - Community based support,Other Small Contracts,Brunelcare,420.28, 27-Aug-2021
578,Revenue,CAHD,Central - Commissioned Services,Other Small Contracts,Brunelcare,414.96, 31-Aug-2021
579,Revenue,CAHD,South - Commissioned Services,Other Small Contracts,Brunelcare,15029.00, 31-Aug-2021
580,Revenue,CAHD,South - Commissioned Services,Mentoring,Brunelcare,122.36, 31-Aug-2021
581,Revenue,CAHD,North - Community based support,Other Small Contracts,Brunelcare,420.28, 31-Aug-2021
582,Revenue,CAHD,Central - Commissioned Services,Other Small Contracts,Brunelcare,393.68, 31-Aug-2021
583,Revenue,CAHD,South - Commissioned Services,Other Small Contracts,Brunelcare,14624.68, 31-Aug-2021
584,Revenue,CAHD,South - Commissioned Services,Mentoring,Brunelcare,53.20, 31-Aug-2021
585,Revenue,CAHD,North - Community based support,Other Small Contracts,Brunelcare,399.00, 31-Aug-2021
586,Revenue,CAHD,Covid 19- Spend on behalf of NHS,Other Small Contracts,Brunelcare,253736.00, 09-Aug-2021
587,Revenue,CAHD,North - S117,Permanent Residential,Buckland Care,3600.00, 24-Aug-2021
588,Revenue,CAHD,Early Years High Needs Support,Other Private Contractors,Busy Bees,910.07, 19-Aug-2021
589,Revenue,CAHD,CSC - Vinney Green Secure Unit,Service Contracts (Premises),BWS Standfast Fire & Security Systems,2972.70, 05-Aug-2021
590,Revenue,CAHD,CSC - Vinney Green Secure Unit,R & M by Departments,BWS Standfast Fire & Security Systems,842.20, 24-Aug-2021
591,Revenue,CAHD,CSC - Vinney Green Secure Unit,R & M by Departments,BWS Standfast Fire & Security Systems,8602.00, 26-Aug-2021
592,Revenue,CAHD,CSC - Vinney Green Secure Unit,R & M by Departments,BWS Standfast Fire & Security Systems,5120.00, 24-Aug-2021
593,Revenue,CAHD,CSC - Vinney Green Secure Unit,R & M by Departments,BWS Standfast Fire & Security Systems,30961.40, 06-Aug-2021
594,Revenue,CAHD,CSC - Vinney Green Secure Unit,Service Contracts (Premises),BWS Standfast Fire & Security Systems,1242.24, 27-Aug-2021
595,Revenue,CAHD,CSC - Agency Fostering,Foster Parent Allowances,By the Bridge Ltd,4360.15, 31-Aug-2021
596,Revenue,CAHD,CSC - Agency Fostering,Foster Parent Allowances,By the Bridge Ltd,4242.66, 31-Aug-2021
597,Revenue,CAHD,Social Lettings Agency,Rent,Individual,947.40, 16-Aug-2021
598,Revenue,CAHD,Social Lettings Agency,Fees & Charges Income - General,Individual,-94.74, 16-Aug-2021
599,Revenue,CAHD,North - Community based support,Permanent Nursing,Clevedon Court Nursing Home,3448.16, 24-Aug-2021
600,Revenue,CAHD,Statemented Support Academies,Other Public Bodies,Cabot Learning Federation,918.71, 20-Aug-2021
601,Revenue,CAHD,Statemented Support Academies,Other Public Bodies,Cabot Learning Federation,1202.39, 20-Aug-2021
602,Revenue,CAHD,Statemented Support Academies,Other Public Bodies,Cabot Learning Federation,908.00, 20-Aug-2021
603,Revenue,CAHD,Statemented Support Academies,Other Public Bodies,Cabot Learning Federation,1666.67, 20-Aug-2021
604,Revenue,CAHD,Statemented Support Academies,Other Public Bodies,Cabot Learning Federation,1103.25, 20-Aug-2021
605,Revenue,CAHD,Statemented Support Academies,Other Public Bodies,Cabot Learning Federation,907.83, 20-Aug-2021
606,Revenue,CAHD,Statemented Support Academies,Other Public Bodies,Cabot Learning Federation,1899.58, 20-Aug-2021
607,Revenue,CAHD,Statemented Support Academies,Other Public Bodies,Cabot Learning Federation,788.22, 20-Aug-2021
608,Revenue,CAHD,Statemented Support Academies,Other Public Bodies,Cabot Learning Federation,957.92, 20-Aug-2021
609,Revenue,CAHD,Statemented Support Academies,Other Public Bodies,Cabot Learning Federation,917.67, 20-Aug-2021
610,Revenue,CAHD,Statemented Support Academies,Other Public Bodies,Cabot Learning Federation,1654.33, 20-Aug-2021
611,Revenue,CAHD,Statemented Support Academies,Other Public Bodies,Cabot Learning Federation,2206.25, 20-Aug-2021
612,Revenue,CAHD,Statemented Support Academies,Other Public Bodies,Cabot Learning Federation,658.75, 20-Aug-2021
613,Revenue,CAHD,Statemented Support Academies,Other Public Bodies,Cabot Learning Federation,1854.42, 20-Aug-2021
614,Revenue,CAHD,Statemented Support Academies,Other Public Bodies,Cabot Learning Federation,632.67, 20-Aug-2021
615,Revenue,CAHD,Statemented Support Academies,Other Public Bodies,Cabot Learning Federation,695.61, 20-Aug-2021
616,Revenue,CAHD,Statemented Support Academies,Other Public Bodies,Cabot Learning Federation,918.75, 20-Aug-2021
617,Revenue,CAHD,Statemented Support Academies,Other Public Bodies,Cabot Learning Federation,975.58, 20-Aug-2021
618,Revenue,CAHD,Statemented Support Academies,Other Public Bodies,Cabot Learning Federation,1052.92, 20-Aug-2021
619,Revenue,CAHD,Academy Resource Base Funding,Other Public Bodies,Cabot Learning Federation,5945.24, 24-Aug-2021
620,Revenue,CAHD,Academy Resource Base Funding,Other Public Bodies,Cabot Learning Federation,1175.87, 24-Aug-2021
621,Revenue,CAHD,Academy Resource Base Funding,Other Public Bodies,Cabot Learning Federation,1702.96, 24-Aug-2021
622,Revenue,CAHD,Academy Resource Base Funding,Other Public Bodies,Cabot Learning Federation,1540.83, 24-Aug-2021
623,Revenue,CAHD,Academy Resource Base Funding,Other Public Bodies,Cabot Learning Federation,1175.87, 24-Aug-2021
624,Revenue,CAHD,Academy Resource Base Funding,Other Public Bodies,Cabot Learning Federation,1175.87, 24-Aug-2021
625,Revenue,CAHD,Academy Resource Base Funding,Other Public Bodies,Cabot Learning Federation,1540.83, 24-Aug-2021
626,Revenue,CAHD,Academy Resource Base Funding,Other Public Bodies,Cabot Learning Federation,1175.87, 24-Aug-2021
627,Revenue,CAHD,Academy Resource Base Funding,Other Public Bodies,Cabot Learning Federation,1175.87, 24-Aug-2021
628,Revenue,CAHD,Academy Resource Base Funding,Other Public Bodies,Cabot Learning Federation,1702.96, 24-Aug-2021
629,Revenue,CAHD,Academy Resource Base Funding,Other Public Bodies,Cabot Learning Federation,648.70, 24-Aug-2021
630,Revenue,CAHD,Academy Resource Base Funding,Other Public Bodies,Cabot Learning Federation,1013.74, 24-Aug-2021
631,Revenue,CAHD,Academy Resource Base Funding,Other Public Bodies,Cabot Learning Federation,648.70, 24-Aug-2021
632,Revenue,CAHD,Academy Resource Base Funding,Other Public Bodies,Cabot Learning Federation,1540.83, 24-Aug-2021
633,Revenue,CAHD,Academy Resource Base Funding,Other Public Bodies,Cabot Learning Federation,2189.53, 24-Aug-2021
634,Revenue,CAHD,Academy Resource Base Funding,Other Public Bodies,Cabot Learning Federation,1175.87, 24-Aug-2021
635,Revenue,CAHD,Academy Resource Base Funding,Other Public Bodies,Cabot Learning Federation,1175.87, 24-Aug-2021
636,Revenue,CAHD,Academy Resource Base Funding,Other Public Bodies,Cabot Learning Federation,1175.87, 24-Aug-2021
637,Revenue,CAHD,Academy Resource Base Funding,Other Public Bodies,Cabot Learning Federation,1175.87, 24-Aug-2021
638,Revenue,CAHD,Academy Resource Base Funding,Other Public Bodies,Cabot Learning Federation,1702.96, 24-Aug-2021
639,Revenue,CAHD,Academy Resource Base Funding,Other Public Bodies,Cabot Learning Federation,1702.96, 24-Aug-2021
640,Revenue,CAHD,Academy Resource Base Funding,Other Public Bodies,Cabot Learning Federation,1702.96, 24-Aug-2021
641,Revenue,CAHD,Academy Resource Base Funding,Other Public Bodies,Cabot Learning Federation,1702.96, 24-Aug-2021
642,Revenue,CAHD,Academy Resource Base Funding,Other Public Bodies,Cabot Learning Federation,12375.00, 27-Aug-2021
643,Revenue,CAHD,Statemented Support Payments to OLAs,Other L.A.s - General,Cabot Learning Federation,872.46, 20-Aug-2021
644,Revenue,CAHD,Statemented Support Academies,Other Public Bodies,Cabot Learning Federation,1626.67, 20-Aug-2021
645,Revenue,CAHD,Statemented Support Academies,Other Public Bodies,Cabot Learning Federation,710.58, 20-Aug-2021
646,Revenue,CAHD,Statemented Support Academies,Other Public Bodies,Cabot Learning Federation,804.08, 20-Aug-2021
647,Revenue,CAHD,Statemented Support Academies,Other Public Bodies,Cabot Learning Federation,15675.00, 20-Aug-2021
648,Revenue,CAHD,Statemented Support Academies,Other Public Bodies,Cabot Learning Federation,554.13, 20-Aug-2021
649,Revenue,CAHD,Statemented Support Academies,Other Public Bodies,Cabot Learning Federation,742.77, 20-Aug-2021
650,Revenue,CAHD,Statemented Support Academies,Other Public Bodies,Cabot Learning Federation,778.14, 20-Aug-2021
651,Revenue,CAHD,Statemented Support Academies,Other Public Bodies,Cabot Learning Federation,813.51, 20-Aug-2021
652,Revenue,CAHD,Schools Specific Grant Income - from OLA,Other Public Bodies,Cabot Learning Federation,1950.00, 16-Aug-2021
653,Revenue,CAHD,Statemented Support Payments to OLAs,Other L.A.s - General,Cabot Learning Federation,601.29, 20-Aug-2021
654,Revenue,CAHD,Statemented Support Academies,Other Public Bodies,Cabot Learning Federation,1131.84, 20-Aug-2021
655,Revenue,CAHD,Statemented Support Academies,Other Public Bodies,Cabot Learning Federation,554.13, 20-Aug-2021
656,Revenue,CAHD,Statemented Support Academies,Other Public Bodies,Cabot Learning Federation,801.72, 20-Aug-2021
657,Revenue,CAHD,Statemented Support Academies,Other Public Bodies,Cabot Learning Federation,1096.47, 20-Aug-2021
658,Revenue,CAHD,Statemented Support Academies,Other Public Bodies,Cabot Learning Federation,730.98, 20-Aug-2021
659,Revenue,CAHD,Statemented Support Academies,Other Public Bodies,Cabot Learning Federation,907.83, 20-Aug-2021
660,Revenue,CAHD,Statemented Support Academies,Other Public Bodies,Cabot Learning Federation,1150.25, 20-Aug-2021
661,Revenue,CAHD,Statemented Support Academies,Other Public Bodies,Cabot Learning Federation,801.92, 20-Aug-2021
662,Revenue,CAHD,Statemented Support Academies,Other Public Bodies,Cabot Learning Federation,530.55, 20-Aug-2021
663,Revenue,CAHD,Statemented Support Academies,Other Public Bodies,Cabot Learning Federation,931.41, 20-Aug-2021
664,Revenue,CAHD,Statemented Support Payments to OLAs,Other L.A.s - General,Cabot Learning Federation,1062.33, 20-Aug-2021
665,Revenue,CAHD,Statemented Support Payments to OLAs,Other L.A.s - General,Cabot Learning Federation,888.33, 20-Aug-2021
666,Revenue,CAHD,Statemented Support Academies,Other Public Bodies,Cabot Learning Federation,577.50, 20-Aug-2021
667,Revenue,CAHD,Statemented Support Academies,Other Public Bodies,Cabot Learning Federation,1297.08, 20-Aug-2021
668,Revenue,CAHD,Statemented Support Academies,Other Public Bodies,Cabot Learning Federation,966.83, 20-Aug-2021
669,Revenue,CAHD,Statemented Support Academies,Other Public Bodies,Cabot Learning Federation,872.46, 20-Aug-2021
670,Revenue,CAHD,Schools Specific Grant Income - from OLA,Other Public Bodies,Cabot Learning Federation,1950.00, 16-Aug-2021
671,Revenue,CAHD,Statemented Support Payments to OLAs,Other L.A.s - General,Cabot Learning Federation,665.33, 20-Aug-2021
672,Revenue,CAHD,Drug and Alcohol Programme,Other Small Contracts,Cadbury Heath Healthcare,3248.00, 25-Aug-2021
673,Revenue,CAHD,Early Years High Needs Support,Other Private Contractors,Caerleon Childcare,515.71, 19-Aug-2021
674,Revenue,CAHD,North - Community based support,Permanent Nursing,Caernarvon House,4710.40, 24-Aug-2021
675,Revenue,CAHD,North - S117,Permanent Nursing,Caernarvon House,3990.24, 24-Aug-2021
676,Revenue,CAHD,South - Commissioned Services,Permanent Nursing,Caernarvon House,4915.20, 24-Aug-2021
677,Revenue,CAHD,South - S117,Permanent Nursing,Caernarvon House,4915.20, 24-Aug-2021
678,Revenue,CAHD,South - Commissioned Services,Permanent Nursing,Caernarvon House,2960.00, 24-Aug-2021
679,Revenue,CAHD,South - Commissioned Services,Permanent Nursing,Caernarvon House,4800.00, 24-Aug-2021
680,Revenue,CAHD,CSC - Residential Placements,Permanent Residential,Cambian Childcare Ltd,19042.99, 20-Aug-2021
681,Revenue,CAHD,Post 16 High Needs Placements,Other Private Contractors,Cambian Whinfell School Limited,79439.24, 03-Aug-2021
682,Revenue,CAHD,North - Community based support,Day Care / Social Activities,Camphill Communities Thornbury Limited,617.50, 27-Aug-2021
683,Revenue,CAHD,North - Community based support,Other Small Contracts,Camphill Communities Thornbury Limited,1640.08, 27-Aug-2021
684,Revenue,CAHD,North - Community based support,Supported Living,Camphill Communities Thornbury Limited,908.96, 27-Aug-2021
685,Revenue,CAHD,CSC - Agency Fostering,Foster Parent Allowances,Capstone Foster Care (South West) Limited,3671.33, 31-Aug-2021
686,Revenue,CAHD,CSC - Agency Fostering,Foster Parent Allowances,Capstone Foster Care (South West) Limited,3498.66, 31-Aug-2021
687,Revenue,CAHD,CSC - Agency Fostering,Foster Parent Allowances,Capstone Foster Care (South West) Limited,3498.66, 31-Aug-2021
688,Revenue,CAHD,CSC - Agency Fostering,Foster Parent Allowances,Capstone Foster Care (South West) Limited,3671.33, 31-Aug-2021
689,Revenue,CAHD,Central - Commissioned Services,Other Small Contracts,Care 1st Homecare,3066.70, 04-Aug-2021
690,Revenue,CAHD,South - Commissioned Services,Other Small Contracts,Care 1st Homecare,3150.48, 04-Aug-2021
691,Revenue,CAHD,Central - Commissioned Services,Other Small Contracts,Care 1st Homecare,2402.40, 17-Aug-2021
692,Revenue,CAHD,South - Commissioned Services,Other Small Contracts,Care 1st Homecare,3150.48, 17-Aug-2021
693,Revenue,CAHD,Central - Commissioned Services,Other Small Contracts,Care 1st Homecare,1528.80, 27-Aug-2021
694,Revenue,CAHD,South - Commissioned Services,Other Small Contracts,Care 1st Homecare,3150.48, 27-Aug-2021
695,Revenue,CAHD,Planning and Partnerships Procurement,Membership Fees,Care and Support West,3000.00, 05-Aug-2021
696,Revenue,CAHD,Covid - ASC - Infection Control,Grants to Voluntary Bodies,Care Futures,557.37, 17-Aug-2021
697,Revenue,CAHD,Covid - ASC - Infection Control,Grants to Voluntary Bodies,Care Futures,585.31, 17-Aug-2021
698,Revenue,CAHD,North - Community based support,Supported Living,Care Horizons,5560.28, 24-Aug-2021
699,Revenue,CAHD,North - Community based support,Supported Living,Care Horizons,5560.28, 24-Aug-2021
700,Revenue,CAHD,Central - Commissioned Services,Other Small Contracts,Care Horizons Limited,4362.32, 04-Aug-2021
701,Revenue,CAHD,South - Commissioned Services,Other Small Contracts,Care Horizons Limited,564.48, 04-Aug-2021
702,Revenue,CAHD,South - Commissioned Services,Mentoring,Care Horizons Limited,80.64, 04-Aug-2021
703,Revenue,CAHD,North - Community based support,Day Care / Social Activities,Care Horizons Limited,695.52, 04-Aug-2021
704,Revenue,CAHD,North - Community based support,Other Small Contracts,Care Horizons Limited,655.20, 04-Aug-2021
705,Revenue,CAHD,North - Community based support,Mentoring,Care Horizons Limited,120.96, 04-Aug-2021
706,Revenue,CAHD,Younger MH non-res purchasing,Other Small Contracts,Care Horizons Limited,257.04, 04-Aug-2021
707,Revenue,CAHD,Central - Commissioned Services,Other Small Contracts,Care Horizons Limited,4459.28, 04-Aug-2021
708,Revenue,CAHD,South - Commissioned Services,Other Small Contracts,Care Horizons Limited,942.48, 04-Aug-2021
709,Revenue,CAHD,South - Commissioned Services,Mentoring,Care Horizons Limited,40.32, 04-Aug-2021
710,Revenue,CAHD,North - Community based support,Day Care / Social Activities,Care Horizons Limited,705.60, 04-Aug-2021
711,Revenue,CAHD,North - Community based support,Other Small Contracts,Care Horizons Limited,786.24, 04-Aug-2021
712,Revenue,CAHD,North - Community based support,Mentoring,Care Horizons Limited,120.96, 04-Aug-2021
713,Revenue,CAHD,Younger MH non-res purchasing,Other Small Contracts,Care Horizons Limited,241.92, 04-Aug-2021
714,Revenue,CAHD,Central - Commissioned Services,Other Small Contracts,Care Horizons Limited,4560.48, 18-Aug-2021
715,Revenue,CAHD,South - Commissioned Services,Other Small Contracts,Care Horizons Limited,796.32, 18-Aug-2021
716,Revenue,CAHD,South - Commissioned Services,Mentoring,Care Horizons Limited,40.32, 18-Aug-2021
717,Revenue,CAHD,North - Community based support,Day Care / Social Activities,Care Horizons Limited,700.56, 18-Aug-2021
718,Revenue,CAHD,North - Community based support,Other Small Contracts,Care Horizons Limited,791.28, 18-Aug-2021
719,Revenue,CAHD,North - Community based support,Mentoring,Care Horizons Limited,120.96, 18-Aug-2021
720,Revenue,CAHD,Younger MH non-res purchasing,Other Small Contracts,Care Horizons Limited,262.08, 18-Aug-2021
721,Revenue,CAHD,18-25 Year Olds,Other Small Contracts,Care Horizons Limited,75.60, 18-Aug-2021
722,Revenue,CAHD,Central - Commissioned Services,Other Small Contracts,Care Horizons Limited,4237.52, 18-Aug-2021
723,Revenue,CAHD,South - Commissioned Services,Other Small Contracts,Care Horizons Limited,816.48, 18-Aug-2021
724,Revenue,CAHD,South - Commissioned Services,Mentoring,Care Horizons Limited,40.32, 18-Aug-2021
725,Revenue,CAHD,North - Community based support,Other Small Contracts,Care Horizons Limited,2701.44, 18-Aug-2021
726,Revenue,CAHD,North - Community based support,Mentoring,Care Horizons Limited,120.96, 18-Aug-2021
727,Revenue,CAHD,Younger MH non-res purchasing,Other Small Contracts,Care Horizons Limited,267.12, 18-Aug-2021
728,Revenue,CAHD,Covid - ASC - Infection Control,Grants to Voluntary Bodies,Care Horizons Limited,2280.15, 17-Aug-2021
729,Revenue,CAHD,Covid - ASC - Infection Control,Grants to Voluntary Bodies,Care Horizons Limited,2394.45, 17-Aug-2021
730,Revenue,CAHD,South - Commissioned Services,Other Small Contracts,Care Unite Ltd t/a Home Instead Senior Care,619.08, 27-Aug-2021
731,Revenue,CAHD,Covid - ASC - Infection Control,Grants to Voluntary Bodies,Care Unite Ltd t/a Home Instead Senior Care,1317.42, 10-Aug-2021
732,Revenue,CAHD,ASC Rapid Testing Fund,Grants to Voluntary Bodies,Care Unite Ltd t/a Home Instead Senior Care,1383.46, 10-Aug-2021
733,Revenue,CAHD,Central - Commissioned Services,Other Small Contracts,Carepride Ltd,443.52, 06-Aug-2021
734,Revenue,CAHD,South - Commissioned Services,Other Small Contracts,Carepride Ltd,136.08, 06-Aug-2021
735,Revenue,CAHD,North - Community based support,Other Small Contracts,Carepride Ltd,206.64, 06-Aug-2021
736,Revenue,CAHD,Central - Commissioned Services,Other Small Contracts,Carepride Ltd,504.00, 06-Aug-2021
737,Revenue,CAHD,South - Commissioned Services,Other Small Contracts,Carepride Ltd,211.68, 06-Aug-2021
738,Revenue,CAHD,North - Community based support,Other Small Contracts,Carepride Ltd,362.88, 06-Aug-2021
739,Revenue,CAHD,Central - Commissioned Services,Other Small Contracts,Carepride Ltd,504.00, 06-Aug-2021
740,Revenue,CAHD,South - Commissioned Services,Other Small Contracts,Carepride Ltd,216.72, 06-Aug-2021
741,Revenue,CAHD,North - Community based support,Other Small Contracts,Carepride Ltd,357.84, 06-Aug-2021
742,Revenue,CAHD,Central - Commissioned Services,Other Small Contracts,Carepride Ltd,493.92, 09-Aug-2021
743,Revenue,CAHD,South - Commissioned Services,Other Small Contracts,Carepride Ltd,226.80, 09-Aug-2021
744,Revenue,CAHD,North - Community based support,Other Small Contracts,Carepride Ltd,342.72, 09-Aug-2021
745,Revenue,CAHD,Central - Commissioned Services,Other Small Contracts,Carepride Ltd,483.84, 09-Aug-2021
746,Revenue,CAHD,South - Commissioned Services,Other Small Contracts,Carepride Ltd,196.56, 09-Aug-2021
747,Revenue,CAHD,North - Community based support,Other Small Contracts,Carepride Ltd,272.16, 09-Aug-2021
748,Revenue,CAHD,Central - Commissioned Services,Other Small Contracts,Carepride Ltd,478.80, 27-Aug-2021
749,Revenue,CAHD,South - Commissioned Services,Other Small Contracts,Carepride Ltd,221.76, 27-Aug-2021
750,Revenue,CAHD,North - Community based support,Other Small Contracts,Carepride Ltd,257.04, 27-Aug-2021
751,Revenue,CAHD,Central - Commissioned Services,Other Small Contracts,Carepride Ltd,498.96, 27-Aug-2021
752,Revenue,CAHD,South - Commissioned Services,Other Small Contracts,Carepride Ltd,156.24, 27-Aug-2021
753,Revenue,CAHD,North - Community based support,Other Small Contracts,Carepride Ltd,322.56, 27-Aug-2021
754,Revenue,CAHD,Covid - ASC - Infection Control,Grants to Voluntary Bodies,Carepride Ltd,2482.83, 17-Aug-2021
755,Revenue,CAHD,Covid - ASC - Infection Control,Grants to Voluntary Bodies,Carepride Ltd,2607.29, 17-Aug-2021
756,Revenue,CAHD,Covid 19 -Adult Social Care,Grants to Voluntary Bodies,Carers Support Centre,8662.00, 02-Aug-2021
757,Revenue,CAHD,CSC - Care Leavers Independent Living,Independent Living,Caretech Community Services,535.72, 27-Aug-2021
758,Revenue,CAHD,CSC - Care Leavers Independent Living,Independent Living,Caretech Community Services,3214.32, 27-Aug-2021
759,Revenue,CAHD,CSC - Care Leavers Independent Living,Independent Living,Caretech Community Services,4139.34, 27-Aug-2021
760,Revenue,CAHD,CSC - Care Leavers Independent Living,Independent Living,Caretech Community Services,6753.66, 27-Aug-2021
761,Revenue,CAHD,Supporting People Programme,Grants to Voluntary Bodies,Caring for Communities and People,12256.75, 04-Aug-2021
762,Revenue,CAHD,CSC - Adoption Support Fund,Post Adoption,Individual,825.00, 03-Aug-2021
763,Revenue,CAHD,Social Lettings Agency,Rent,Individual,822.73, 20-Aug-2021
764,Revenue,CAHD,Social Lettings Agency,Fees & Charges Income - General,Individual,-102.84, 20-Aug-2021
765,Revenue,CAHD,Statemented Support Academies,Other Public Bodies,Castle School Education Trust,530.55, 20-Aug-2021
766,Revenue,CAHD,Statemented Support Academies,Other Public Bodies,Castle School Education Trust,778.14, 20-Aug-2021
767,Revenue,CAHD,Statemented Support Academies,Other Public Bodies,Castle School Education Trust,821.50, 20-Aug-2021
768,Revenue,CAHD,Statemented Support Academies,Other Public Bodies,Castle School Education Trust,672.03, 20-Aug-2021
769,Revenue,CAHD,Statemented Support Academies,Other Public Bodies,Castle School Education Trust,577.71, 20-Aug-2021
770,Revenue,CAHD,Statemented Support Academies,Other Public Bodies,Castle School Education Trust,505.08, 20-Aug-2021
771,Revenue,CAHD,Statemented Support Academies,Other Public Bodies,Castle School Education Trust,613.08, 20-Aug-2021
772,Revenue,CAHD,Statemented Support Academies,Other Public Bodies,Castle School Education Trust,672.03, 20-Aug-2021
773,Revenue,CAHD,Statemented Support Academies,Other Public Bodies,Castle School Education Trust,1120.05, 20-Aug-2021
774,Revenue,CAHD,Statemented Support Academies,Other Public Bodies,Castle School Education Trust,636.66, 20-Aug-2021
775,Revenue,CAHD,Statemented Support Academies,Other Public Bodies,Castle School Education Trust,589.08, 20-Aug-2021
776,Revenue,CAHD,Statemented Support Academies,Other Public Bodies,Castle School Education Trust,954.99, 20-Aug-2021
777,Revenue,CAHD,Statemented Support Academies,Other Public Bodies,Castle School Education Trust,577.71, 20-Aug-2021
778,Revenue,CAHD,Statemented Support Academies,Other Public Bodies,Castle School Education Trust,1248.33, 20-Aug-2021
779,Revenue,CAHD,Statemented Support Academies,Other Public Bodies,Castle School Education Trust,624.87, 20-Aug-2021
780,Revenue,CAHD,Statemented Support Academies,Other Public Bodies,Castle School Education Trust,1190.79, 20-Aug-2021
781,Revenue,CAHD,Statemented Support Academies,Other Public Bodies,Castle School Education Trust,841.00, 20-Aug-2021
782,Revenue,CAHD,Statemented Support Academies,Other Public Bodies,Castle School Education Trust,1237.95, 20-Aug-2021
783,Revenue,CAHD,Statemented Support Academies,Other Public Bodies,Castle School Education Trust,1061.10, 20-Aug-2021
784,Revenue,CAHD,Statemented Support Academies,Other Public Bodies,Castle School Education Trust,518.76, 20-Aug-2021
785,Revenue,CAHD,Statemented Support Academies,Other Public Bodies,Castle School Education Trust,577.71, 20-Aug-2021
786,Revenue,CAHD,Statemented Support Academies,Other Public Bodies,Castle School Education Trust,1143.63, 20-Aug-2021
787,Revenue,CAHD,Statemented Support Academies,Other Public Bodies,Castle School Education Trust,943.33, 20-Aug-2021
788,Revenue,CAHD,Statemented Support Academies,Other Public Bodies,Castle School Education Trust,754.25, 20-Aug-2021
789,Revenue,CAHD,Statemented Support Academies,Other Public Bodies,Castle School Education Trust,1485.54, 20-Aug-2021
790,Revenue,CAHD,Statemented Support Academies,Other Public Bodies,Castle School Education Trust,1177.50, 20-Aug-2021
791,Revenue,CAHD,Statemented Support Academies,Other Public Bodies,Castle School Education Trust,888.75, 20-Aug-2021
792,Revenue,CAHD,Statemented Support Academies,Other Public Bodies,Castle School Education Trust,1261.75, 20-Aug-2021
793,Revenue,CAHD,Statemented Support Academies,Other Public Bodies,Castle School Education Trust,801.92, 20-Aug-2021
794,Revenue,CAHD,Statemented Support Academies,Other Public Bodies,Castle School Education Trust,943.17, 20-Aug-2021
795,Revenue,CAHD,Statemented Support Academies,Other Public Bodies,Castle School Education Trust,1267.50, 20-Aug-2021
796,Revenue,CAHD,Academy Resource Base Funding,Other Public Bodies,Castle School Education Trust,3397.28, 24-Aug-2021
797,Revenue,CAHD,Academy Resource Base Funding,Other Public Bodies,Castle School Education Trust,1702.96, 24-Aug-2021
798,Revenue,CAHD,Academy Resource Base Funding,Other Public Bodies,Castle School Education Trust,1702.96, 24-Aug-2021
799,Revenue,CAHD,Academy Resource Base Funding,Other Public Bodies,Castle School Education Trust,1702.96, 24-Aug-2021
800,Revenue,CAHD,Academy Resource Base Funding,Other Public Bodies,Castle School Education Trust,1702.96, 24-Aug-2021
801,Revenue,CAHD,Academy Resource Base Funding,Other Public Bodies,Castle School Education Trust,1702.96, 24-Aug-2021
802,Revenue,CAHD,Academy Resource Base Funding,Other Public Bodies,Castle School Education Trust,1702.96, 24-Aug-2021
803,Revenue,CAHD,Academy Resource Base Funding,Other Public Bodies,Castle School Education Trust,2189.53, 24-Aug-2021
804,Revenue,CAHD,Academy Resource Base Funding,Other Public Bodies,Castle School Education Trust,1702.96, 24-Aug-2021
805,Revenue,CAHD,Academy Resource Base Funding,Other Public Bodies,Castle School Education Trust,1702.96, 24-Aug-2021
806,Revenue,CAHD,Academy Resource Base Funding,Other Public Bodies,Castle School Education Trust,1702.96, 24-Aug-2021
807,Revenue,CAHD,Academy Resource Base Funding,Other Public Bodies,Castle School Education Trust,2513.88, 24-Aug-2021
808,Revenue,CAHD,Academy Resource Base Funding,Other Public Bodies,Castle School Education Trust,1702.96, 24-Aug-2021
809,Revenue,CAHD,Academy Resource Base Funding,Other Public Bodies,Castle School Education Trust,2513.88, 24-Aug-2021
810,Revenue,CAHD,Academy Resource Base Funding,Other Public Bodies,Castle School Education Trust,2513.88, 24-Aug-2021
811,Revenue,CAHD,Academy Resource Base Funding,Other Public Bodies,Castle School Education Trust,2513.88, 24-Aug-2021
812,Revenue,CAHD,Academy Resource Base Funding,Other Public Bodies,Castle School Education Trust,7920.00, 27-Aug-2021
813,Revenue,CAHD,Statemented Support Academies,Other Public Bodies,Castle School Education Trust,672.03, 20-Aug-2021
814,Revenue,CAHD,Statemented Support Academies,Other Public Bodies,Castle School Education Trust,822.50, 20-Aug-2021
815,Revenue,CAHD,Statemented Support Academies,Other Public Bodies,Castle School Education Trust,872.46, 20-Aug-2021
816,Revenue,CAHD,Statemented Support Academies,Other Public Bodies,Castle School Education Trust,848.88, 20-Aug-2021
817,Revenue,CAHD,Statemented Support Academies,Other Public Bodies,Castle School Education Trust,541.58, 20-Aug-2021
818,Revenue,CAHD,Statemented Support Academies,Other Public Bodies,Castle School Education Trust,723.17, 20-Aug-2021
819,Revenue,CAHD,Statemented Support Academies,Other Public Bodies,Castle School Education Trust,956.00, 20-Aug-2021
820,Revenue,CAHD,Statemented Support Academies,Other Public Bodies,Castle School Education Trust,1628.42, 20-Aug-2021
821,Revenue,CAHD,Statemented Support Academies,Other Public Bodies,Castle School Education Trust,560.17, 20-Aug-2021
822,Revenue,CAHD,Statemented Support Academies,Other Public Bodies,Castle School Education Trust,630.58, 20-Aug-2021
823,Revenue,CAHD,Statemented Support Academies,Other Public Bodies,Castle School Education Trust,778.14, 20-Aug-2021
824,Revenue,CAHD,Statemented Support Academies,Other Public Bodies,Castle School Education Trust,941.58, 20-Aug-2021
825,Revenue,CAHD,Statemented Support Academies,Other Public Bodies,Castle School Education Trust,613.08, 20-Aug-2021
826,Revenue,CAHD,A & CL - Engagement Provision 20/21,Reimbursements to Schools - Recharges,Castle School Educational Academy Trust,10000.00, 09-Aug-2021
827,Revenue,CAHD,Statemented Support Academies,Other Public Bodies,Castle School Educational Academy Trust,1129.92, 20-Aug-2021
828,Revenue,CAHD,Statemented Support Academies,Other Public Bodies,Castle School Educational Academy Trust,854.00, 20-Aug-2021
829,Revenue,CAHD,Statemented Support Academies,Other Public Bodies,Castle School Educational Academy Trust,790.58, 20-Aug-2021
830,Revenue,CAHD,Statemented Support Academies,Other Public Bodies,Castle School Educational Academy Trust,508.67, 20-Aug-2021
831,Revenue,CAHD,Statemented Support Academies,Other Public Bodies,Castle School Educational Academy Trust,1148.20, 20-Aug-2021
832,Revenue,CAHD,Statemented Support Academies,Other Public Bodies,Castle School Educational Academy Trust,1097.25, 20-Aug-2021
833,Revenue,CAHD,Statemented Support Academies,Other Public Bodies,Castle School Educational Academy Trust,580.67, 20-Aug-2021
834,Revenue,CAHD,Statemented Support Academies,Other Public Bodies,Castle School Educational Academy Trust,925.08, 20-Aug-2021
835,Revenue,CAHD,South - Commissioned Services,Day Care / Social Activities,Causeway House,5481.44, 24-Aug-2021
836,Revenue,CAHD,18-25 Year Olds,Day Care / Social Activities,Causeway House,4606.48, 24-Aug-2021
837,Revenue,CAHD,Central - Commissioned Services,Day Care / Social Activities,Causeway House,4060.72, 24-Aug-2021
838,Revenue,CAHD,North - Community based support,Day Care / Social Activities,Causeway House,3366.40, 24-Aug-2021
839,Revenue,CAHD,North - Community based support,Day Care / Social Activities,Causeway House,5015.32, 24-Aug-2021
840,Revenue,CAHD,Central - Commissioned Services,Day Care / Social Activities,Causeway House,3810.84, 24-Aug-2021
841,Revenue,CAHD,North - Community based support,Day Care / Social Activities,Causeway House,3285.96, 24-Aug-2021
842,Revenue,CAHD,North - Community based support,Day Care / Social Activities,Causeway House,593.04, 24-Aug-2021
843,Revenue,CAHD,Central - Commissioned Services,Permanent Residential,Cepen Lodge,2741.48, 24-Aug-2021
844,Revenue,CAHD,South - Commissioned Services,Permanent Residential,Challenge House,2894.80, 24-Aug-2021
845,Revenue,CAHD,North - S117,Permanent Residential,Challenge House,2626.16, 24-Aug-2021
846,Revenue,CAHD,North - Community based support,Permanent Residential,Challenge House,2314.96, 24-Aug-2021
847,Revenue,CAHD,North - Community based support,Permanent Residential,Challenge House,2902.76, 24-Aug-2021
848,Revenue,CAHD,Central - Commissioned Services,Permanent Residential,Challenge House,2452.44, 24-Aug-2021
849,Revenue,CAHD,Central - Commissioned Services,Permanent Residential,Challenge House,2819.84, 24-Aug-2021
850,Revenue,CAHD,North - Community based support,Permanent Residential,Challenge House,2894.76, 24-Aug-2021
851,Revenue,CAHD,North - S117,Permanent Nursing,Challenge House,2505.52, 24-Aug-2021
852,Revenue,CAHD,North - Community based support,Permanent Nursing,Challenge House,2505.52, 24-Aug-2021
853,Revenue,CAHD,North - Community based support,Permanent Nursing,Challenge House,3205.48, 24-Aug-2021
854,Revenue,CAHD,South Glos Users in South Glos Homes,Permanent Nursing,Challenge House,750.40, 24-Aug-2021
855,Revenue,CAHD,Central - Commissioned Services,Respite Planned - Residential,Challenge House,3885.71, 24-Aug-2021
856,Revenue,CAHD,Central - Commissioned Services,Respite Planned - Residential,Challenge House,1366.44, 24-Aug-2021
857,Revenue,CAHD,Covid 19- Spend on behalf of NHS,Respite Planned - Nursing,Challenge House,6658.86, 24-Aug-2021
858,Revenue,CAHD,South Glos Users in South Glos Homes,Permanent Nursing,Challenge House,750.40, 24-Aug-2021
859,Revenue,CAHD,South Glos Users in South Glos Homes,Permanent Nursing,Challenge House,750.40, 24-Aug-2021
860,Revenue,CAHD,South Glos Users in South Glos Homes,Permanent Nursing,Challenge House,750.40, 24-Aug-2021
861,Revenue,CAHD,Central - Commissioned Services,Respite Planned - Nursing,Challenge House,4800.00, 24-Aug-2021
862,Revenue,CAHD,North - Community based support,Permanent Nursing,Challenge House,3478.20, 24-Aug-2021
863,Revenue,CAHD,South Glos Users in South Glos Homes,Permanent Nursing,Challenge House,750.40, 24-Aug-2021
864,Revenue,CAHD,South Glos Users in South Glos Homes,Permanent Nursing,Challenge House,750.40, 24-Aug-2021
865,Revenue,CAHD,South - Commissioned Services,Permanent Nursing,Challenge House,3009.56, 24-Aug-2021
866,Revenue,CAHD,South Glos Users in South Glos Homes,Permanent Nursing,Challenge House,750.40, 24-Aug-2021
867,Revenue,CAHD,North - Community based support,Permanent Nursing,Challenge House,3347.92, 24-Aug-2021
868,Revenue,CAHD,South Glos Users in South Glos Homes,Permanent Nursing,Challenge House,750.40, 24-Aug-2021
869,Revenue,CAHD,North - Community based support,Permanent Residential,Challenge House,3478.20, 24-Aug-2021
870,Revenue,CAHD,South - Commissioned Services,Permanent Residential,Challenge House,3130.40, 24-Aug-2021
871,Revenue,CAHD,South Glos Users in South Glos Homes,Permanent Nursing,Challenge House,750.40, 24-Aug-2021
872,Revenue,CAHD,South Glos Users in South Glos Homes,Permanent Nursing,Challenge House,750.40, 24-Aug-2021
873,Revenue,CAHD,South Glos Users in South Glos Homes,Permanent Nursing,Challenge House,750.40, 24-Aug-2021
874,Revenue,CAHD,North - Community based support,Permanent Nursing,Challenge House,3400.00, 24-Aug-2021
875,Revenue,CAHD,South Glos Users in South Glos Homes,Permanent Nursing,Challenge House,750.40, 24-Aug-2021
876,Revenue,CAHD,South Glos Users in South Glos Homes,Permanent Nursing,Challenge House,750.40, 24-Aug-2021
877,Revenue,CAHD,North - Community based support,Respite Planned - Residential,Challenge House,4735.71, 24-Aug-2021
878,Revenue,CAHD,South - Commissioned Services,Permanent Residential,Challenge House,3400.00, 24-Aug-2021
879,Revenue,CAHD,North - Community based support,Permanent Residential,Challenge House,3800.00, 24-Aug-2021
880,Revenue,CAHD,South Glos Users in South Glos Homes,Permanent Nursing,Challenge House,750.40, 24-Aug-2021
881,Revenue,CAHD,South - Commissioned Services,Permanent Residential,Challenge House,3600.00, 24-Aug-2021
882,Revenue,CAHD,Central - Commissioned Services,Respite Planned - Residential,Challenge House,7585.71, 24-Aug-2021
883,Revenue,CAHD,Central - Commissioned Services,Respite Planned - Residential,Challenge House,2828.57, 24-Aug-2021
884,Revenue,CAHD,South Glos Users in South Glos Homes,Permanent Nursing,Challenge House,750.40, 24-Aug-2021
885,Revenue,CAHD,South - Commissioned Services,Respite Planned - Nursing,Challenge House,3400.00, 24-Aug-2021
886,Revenue,CAHD,North - Community based support,Permanent Nursing,Challenge House,2950.40, 24-Aug-2021
887,Revenue,CAHD,South Glos Users in South Glos Homes,Permanent Nursing,Challenge House,750.40, 24-Aug-2021
888,Revenue,CAHD,North - Community based support,Permanent Nursing,Challenge House,3318.20, 24-Aug-2021
889,Revenue,CAHD,South Glos Users in South Glos Homes,Permanent Nursing,Challenge House,750.40, 24-Aug-2021
890,Revenue,CAHD,Central - Commissioned Services,Respite Emergency - Residential,Challenge House,4500.00, 24-Aug-2021
891,Revenue,CAHD,Central - Commissioned Services,Respite Emergency - Residential,Challenge House,900.00, 24-Aug-2021
892,Revenue,CAHD,North - Community based support,Permanent Nursing,Challenge House,3483.92, 24-Aug-2021
893,Revenue,CAHD,South Glos Users in South Glos Homes,Permanent Nursing,Challenge House,750.40, 24-Aug-2021
894,Revenue,CAHD,South Glos Users in South Glos Homes,Permanent Nursing,Challenge House,750.40, 24-Aug-2021
895,Revenue,CAHD,North - Community based support,Permanent Residential,Challenge House,3193.00, 24-Aug-2021
896,Revenue,CAHD,South Glos Users in South Glos Homes,Permanent Nursing,Challenge House,750.40, 24-Aug-2021
897,Revenue,CAHD,North - Community based support,Permanent Nursing,Challenge House,1335.71, 24-Aug-2021
898,Revenue,CAHD,North - Community based support,Permanent Nursing,Challenge House,2950.40, 24-Aug-2021
899,Revenue,CAHD,South Glos Users in South Glos Homes,Permanent Nursing,Challenge House,750.40, 24-Aug-2021
900,Revenue,CAHD,Covid - ASC - Infection Control,Grants to Voluntary Bodies,Challenge House,6729.20, 17-Aug-2021
901,Revenue,CAHD,ASC Rapid Testing Fund,Grants to Voluntary Bodies,Challenge House,6848.00, 17-Aug-2021
902,Revenue,CAHD,Central - Commissioned Services,Permanent Nursing,Challenge House,2490.00, 24-Aug-2021
903,Revenue,CAHD,North - Community based support,Permanent Residential,Challenge House,2254.00, 24-Aug-2021
904,Revenue,CAHD,Central - Commissioned Services,Permanent Nursing,Challenge House,3200.00, 24-Aug-2021
905,Revenue,CAHD,South Glos Users in South Glos Homes,Permanent Nursing,Challenge House,1072.00, 24-Aug-2021
906,Revenue,CAHD,South Glos Users in South Glos Homes,Permanent Nursing,Challenge House,750.40, 24-Aug-2021
907,Revenue,CAHD,Early Years High Needs Support,Other Private Contractors,Charfield Pre-School,637.05, 19-Aug-2021
908,Revenue,CAHD,Training - Adult Services,Training Expenses,Individual,1150.00, 05-Aug-2021
909,Revenue,CAHD,Training - Adult Services,Training Expenses,Individual,600.00, 31-Aug-2021
910,Revenue,CAHD,Statemented Support Academies,Other Public Bodies,Charlton Wood Primary Academy,702.17, 20-Aug-2021
911,Revenue,CAHD,Central - Commissioned Services,Other Small Contracts,Cherish Able Care Limited,2213.12, 04-Aug-2021
912,Revenue,CAHD,South - Commissioned Services,Other Small Contracts,Cherish Able Care Limited,7054.39, 04-Aug-2021
913,Revenue,CAHD,North - Community based support,Other Small Contracts,Cherish Able Care Limited,661.96, 04-Aug-2021
914,Revenue,CAHD,Central - Commissioned Services,Other Small Contracts,Cherish Able Care Limited,770.64, 06-Aug-2021
915,Revenue,CAHD,South - Commissioned Services,Other Small Contracts,Cherish Able Care Limited,8611.31, 06-Aug-2021
916,Revenue,CAHD,North - Community based support,Other Small Contracts,Cherish Able Care Limited,696.54, 06-Aug-2021
917,Revenue,CAHD,Central - Commissioned Services,Other Small Contracts,Cherish Able Care Limited,424.84, 13-Aug-2021
918,Revenue,CAHD,South - Commissioned Services,Other Small Contracts,Cherish Able Care Limited,8637.81, 13-Aug-2021
919,Revenue,CAHD,North - Community based support,Other Small Contracts,Cherish Able Care Limited,671.84, 13-Aug-2021
920,Revenue,CAHD,South - Commissioned Services,Other Small Contracts,Cherish Able Care Limited,8882.89, 27-Aug-2021
921,Revenue,CAHD,North - Community based support,Other Small Contracts,Cherish Able Care Limited,573.04, 27-Aug-2021
922,Revenue,CAHD,South - Commissioned Services,Other Small Contracts,Cherish Able Care Limited,9039.05, 31-Aug-2021
923,Revenue,CAHD,North - Community based support,Other Small Contracts,Cherish Able Care Limited,182.78, 31-Aug-2021
924,Revenue,CAHD,North - Community based support,Other Small Contracts,Cherry Orchards,1649.96, 17-Aug-2021
925,Revenue,CAHD,South - Commissioned Services,Other Small Contracts,Cherry Orchards,6639.36, 06-Aug-2021
926,Revenue,CAHD,South - Commissioned Services,Other Small Contracts,Cherry Orchards,1679.60, 25-Aug-2021
927,Revenue,CAHD,South - Commissioned Services,Other Small Contracts,Cherry Orchards,1304.16, 25-Aug-2021
928,Revenue,CAHD,South - Commissioned Services,Supported Living,Cherry Orchards,1938.52, 24-Aug-2021
929,Revenue,CAHD,South - Commissioned Services,Supported Living,Cherry Orchards,1049.08, 24-Aug-2021
930,Revenue,CAHD,Younger MH non-res purchasing,Supported Living,Cherry Orchards,1958.12, 24-Aug-2021
931,Revenue,CAHD,Central - Commissioned Services,Supported Living,Cherry Orchards,2367.92, 24-Aug-2021
932,Revenue,CAHD,18-25 Year Olds,Supported Living,Cherry Orchards,2077.24, 24-Aug-2021
933,Revenue,CAHD,North - Community based support,Supported Living,Cherry Orchards,1066.96, 24-Aug-2021
934,Revenue,CAHD,North - Community based support,Supported Living,Cherry Orchards,1938.52, 24-Aug-2021
935,Revenue,CAHD,S28A cases,Permanent Residential,Chescombe Trust Ltd,10188.80, 24-Aug-2021
936,Revenue,CAHD,Covid - ASC - Infection Control,Grants to Voluntary Bodies,Chescombe Trust Ltd,3196.37, 17-Aug-2021
937,Revenue,CAHD,ASC Rapid Testing Fund,Grants to Voluntary Bodies,Chescombe Trust Ltd,3252.80, 17-Aug-2021
938,Revenue,CAHD,Statemented Support Payments to OLAs,Other L.A.s - General,Chester Park Junior School,1625.17, 19-Aug-2021
939,Revenue,CAHD,SEN High Needs - Not at School Base,Other Private Contractors,Children`s Specialist Therapy Ltd,555.00, 27-Aug-2021
940,Revenue,CAHD,Early Years High Needs Support,Other Private Contractors,Chipping Sodbury Pre School,1174.28, 19-Aug-2021
941,Revenue,CAHD,CSC - Care Leavers Support Costs,Personal Needs of Clients,Individual,618.70, 20-Aug-2021
942,Revenue,CAHD,18-25 Year Olds,Other Small Contracts,Cintre,920.57, 04-Aug-2021
943,Revenue,CAHD,Central - Commissioned Services,Other Small Contracts,Cintre,81.44, 04-Aug-2021
944,Revenue,CAHD,South - Commissioned Services,Other Small Contracts,Cintre,1303.04, 04-Aug-2021
945,Revenue,CAHD,18-25 Year Olds,Other Small Contracts,Cintre,916.20, 06-Aug-2021
946,Revenue,CAHD,Central - Commissioned Services,Other Small Contracts,Cintre,142.52, 06-Aug-2021
947,Revenue,CAHD,South - Commissioned Services,Other Small Contracts,Cintre,1364.12, 06-Aug-2021
948,Revenue,CAHD,18-25 Year Olds,Other Small Contracts,Cintre,916.20, 09-Aug-2021
949,Revenue,CAHD,Central - Commissioned Services,Other Small Contracts,Cintre,162.88, 09-Aug-2021
950,Revenue,CAHD,South - Commissioned Services,Other Small Contracts,Cintre,1353.94, 09-Aug-2021
951,Revenue,CAHD,18-25 Year Olds,Other Small Contracts,Cintre,916.20, 27-Aug-2021
952,Revenue,CAHD,Central - Commissioned Services,Other Small Contracts,Cintre,203.60, 27-Aug-2021
953,Revenue,CAHD,South - Commissioned Services,Other Small Contracts,Cintre,1241.96, 27-Aug-2021
954,Revenue,CAHD,18-25 Year Olds,Other Small Contracts,Cintre,916.20, 27-Aug-2021
955,Revenue,CAHD,Central - Commissioned Services,Other Small Contracts,Cintre,203.60, 27-Aug-2021
956,Revenue,CAHD,South - Commissioned Services,Other Small Contracts,Cintre,1343.76, 27-Aug-2021
957,Revenue,CAHD,18-25 Year Olds,Other Small Contracts,Cintre,916.20, 31-Aug-2021
958,Revenue,CAHD,Central - Commissioned Services,Other Small Contracts,Cintre,203.60, 31-Aug-2021
959,Revenue,CAHD,South - Commissioned Services,Other Small Contracts,Cintre,1364.12, 31-Aug-2021
960,Revenue,CAHD,North - Community based support,Permanent Residential,Clare House Residential Home,2135.37, 24-Aug-2021
961,Revenue,CAHD,North - Community based support,Fees & Charges Income - General,Clare House Residential Home,1034.56, 24-Aug-2021
962,Revenue,CAHD,Placements OLA Special Schools and RB,Other L.A.s - General,Claremont School,1981.43, 19-Aug-2021
963,Revenue,CAHD,Placements OLA Special Schools and RB,Other L.A.s - General,Claremont School,646.00, 19-Aug-2021
964,Revenue,CAHD,Placements OLA Special Schools and RB,Other L.A.s - General,Claremont School,2774.72, 19-Aug-2021
965,Revenue,CAHD,Placements OLA Special Schools and RB,Other L.A.s - General,Claremont School,646.00, 19-Aug-2021
966,Revenue,CAHD,Placements OLA Special Schools and RB,Other L.A.s - General,Claremont School,1981.43, 19-Aug-2021
967,Revenue,CAHD,Placements OLA Special Schools and RB,Other L.A.s - General,Claremont School,646.00, 19-Aug-2021
968,Revenue,CAHD,Placements OLA Special Schools and RB,Other L.A.s - General,Claremont School,1981.43, 19-Aug-2021
969,Revenue,CAHD,Placements OLA Special Schools and RB,Other L.A.s - General,Claremont School,646.00, 19-Aug-2021
970,Revenue,CAHD,Placements OLA Special Schools and RB,Other L.A.s - General,Claremont School,792.58, 19-Aug-2021
971,Revenue,CAHD,Placements OLA Special Schools and RB,Other L.A.s - General,Claremont School,2774.72, 19-Aug-2021
972,Revenue,CAHD,Placements OLA Special Schools and RB,Other L.A.s - General,Claremont School,1981.43, 19-Aug-2021
973,Revenue,CAHD,Placements OLA Special Schools and RB,Other L.A.s - General,Claremont School,646.00, 19-Aug-2021
974,Revenue,CAHD,Placements OLA Special Schools and RB,Other L.A.s - General,Claremont School,2774.72, 19-Aug-2021
975,Revenue,CAHD,Placements OLA Special Schools and RB,Other L.A.s - General,Claremont School,646.00, 19-Aug-2021
976,Revenue,CAHD,Placements OLA Special Schools and RB,Other L.A.s - General,Claremont School,1585.16, 19-Aug-2021
977,Revenue,CAHD,Placements OLA Special Schools and RB,Other L.A.s - General,Claremont School,516.77, 19-Aug-2021
978,Revenue,CAHD,Placements OLA Special Schools and RB,Other L.A.s - General,Claremont School,1981.43, 19-Aug-2021
979,Revenue,CAHD,Placements OLA Special Schools and RB,Other L.A.s - General,Claremont School,646.00, 19-Aug-2021
980,Revenue,CAHD,South - Commissioned Services,Permanent Residential,Clearwater Care,5414.92, 24-Aug-2021
981,Revenue,CAHD,South - Commissioned Services,Permanent Residential,Cleeve Lodge,3846.60, 24-Aug-2021
982,Revenue,CAHD,South - Commissioned Services,Permanent Residential,Cleeve Lodge,1365.28, 24-Aug-2021
983,Revenue,CAHD,South - Commissioned Services,Fees & Charges Income - General,Cleeve Lodge,2805.53, 24-Aug-2021
984,Revenue,CAHD,North - S117,Permanent Residential,Cleeve Lodge,3273.60, 24-Aug-2021
985,Revenue,CAHD,Central - Commissioned Services,Permanent Residential,Cleeve Lodge,3273.60, 24-Aug-2021
986,Revenue,CAHD,South - Commissioned Services,Permanent Residential,Cleeve Lodge,4501.20, 24-Aug-2021
987,Revenue,CAHD,North - Community based support,Permanent Residential,Cleeve Lodge,4400.00, 24-Aug-2021
988,Revenue,CAHD,Central - Commissioned Services,Respite Planned - Residential,Cleeve Lodge,9321.43, 24-Aug-2021
989,Revenue,CAHD,Central - Commissioned Services,Respite Planned - Residential,Cleeve Lodge,2571.43, 24-Aug-2021
990,Revenue,CAHD,South - Commissioned Services,Permanent Nursing,Cleeve Lodge,3273.60, 24-Aug-2021
991,Revenue,CAHD,South - Commissioned Services,Permanent Residential,Cleeve Lodge,3018.76, 24-Aug-2021
992,Revenue,CAHD,South - Commissioned Services,Permanent Residential,Cleeve Lodge,4092.00, 24-Aug-2021
993,Revenue,CAHD,South - Commissioned Services,Permanent Residential,Cleeve Lodge,3069.00, 24-Aug-2021
994,Revenue,CAHD,South - Commissioned Services,Permanent Residential,Cleeve Lodge,4910.40, 24-Aug-2021
995,Revenue,CAHD,Independent Special Placements - Pre 16,Other Private Contractors,Clifton College,8380.00, 24-Aug-2021
996,Revenue,CAHD,Drug and Alcohol Programme,Other Small Contracts,Close Farm Surgery,812.00, 25-Aug-2021
997,Revenue,CAHD,Central - Commissioned Services,Other Small Contracts,Clover Health and Home Care Ltd,1007.68, 11-Aug-2021
998,Revenue,CAHD,Central - Commissioned Services,Other Small Contracts,Clover Health and Home Care Ltd,1050.56, 17-Aug-2021
999,Revenue,CAHD,Central - Commissioned Services,Other Small Contracts,Clover Health and Home Care Ltd,1415.04, 17-Aug-2021
1000,Revenue,CAHD,Central - Commissioned Services,Other Small Contracts,Clover Health and Home Care Ltd,1093.44, 17-Aug-2021
1001,Revenue,CAHD,Central - Commissioned Services,Other Small Contracts,Clover Health and Home Care Ltd,1147.04, 23-Aug-2021
1002,Revenue,CAHD,Covid - ASC - Infection Control,Grants to Voluntary Bodies,Clover Health and Home Care Ltd,760.05, 17-Aug-2021
1003,Revenue,CAHD,Covid - ASC - Infection Control,Grants to Voluntary Bodies,Clover Health and Home Care Ltd,798.15, 17-Aug-2021
1004,Revenue,CAHD,CSC - Vinney Green Secure Unit,Service Contracts (Premises),Clover Technical Services,1633.50, 20-Aug-2021
1005,Revenue,CAHD,North - Community based support,Permanent Residential,Collingwood Care Home,3069.00, 24-Aug-2021
1006,Revenue,CAHD,South - Commissioned Services,Permanent Residential,Community Theraputic Services,7776.36, 24-Aug-2021
1007,Revenue,CAHD,Jointly Funded H&SC Packages,Permanent Residential,Community Theraputic Services,4992.88, 24-Aug-2021
1008,Revenue,CAHD,North - Community based support,Permanent Residential,Community Theraputic Services,8071.08, 24-Aug-2021
1009,Revenue,CAHD,Jointly Funded H&SC Packages,Permanent Residential,Community Theraputic Services,2076.20, 24-Aug-2021
1010,Revenue,CAHD,Drug and Alcohol Programme,Other Small Contracts,Concord Medical Centre,1015.00, 25-Aug-2021
1011,Revenue,CAHD,Drug and Alcohol Programme,Other Small Contracts,Coniston Medical Practice,1827.00, 25-Aug-2021
1012,Revenue,CAHD,Statemented Support Equipment,Educational Supplies & Equipment,Connevans Limited,1247.85, 05-Aug-2021
1013,Revenue,CAHD,Statemented Support Equipment,Educational Supplies & Equipment,Connevans Limited,1280.65, 05-Aug-2021
1014,Revenue,CAHD,Statemented Support Equipment,Educational Supplies & Equipment,Connevans Limited,1557.25, 05-Aug-2021
1015,Revenue,CAHD,Statemented Support Equipment,Educational Supplies & Equipment,Connevans Limited,1313.35, 06-Aug-2021
1016,Revenue,CAHD,Statemented Support Equipment,Educational Supplies & Equipment,Connevans Limited,1987.65, 11-Aug-2021
1017,Revenue,CAHD,Statemented Support Equipment,Educational Supplies & Equipment,Connevans Limited,1987.65, 11-Aug-2021
1018,Revenue,CAHD,Bed and Breakfast,Bed & Breakfast,Connolly & Callaghan Limited,508.20, 05-Aug-2021
1019,Revenue,CAHD,Bed and Breakfast,Bed & Breakfast,Connolly & Callaghan Limited,719.60, 05-Aug-2021
1020,Revenue,CAHD,Bed and Breakfast,Bed & Breakfast,Connolly & Callaghan Limited,727.30, 05-Aug-2021
1021,Revenue,CAHD,Bed and Breakfast,Bed & Breakfast,Connolly & Callaghan Limited,422.80, 05-Aug-2021
1022,Revenue,CAHD,Bed and Breakfast,Bed & Breakfast,Connolly & Callaghan Limited,422.80, 05-Aug-2021
1023,Revenue,CAHD,Bed and Breakfast,Bed & Breakfast,Connolly & Callaghan Limited,548.80, 05-Aug-2021
1024,Revenue,CAHD,Bed and Breakfast,Bed & Breakfast,Connolly & Callaghan Limited,807.10, 05-Aug-2021
1025,Revenue,CAHD,Bed and Breakfast,Bed & Breakfast,Connolly & Callaghan Limited,422.80, 05-Aug-2021
1026,Revenue,CAHD,Bed and Breakfast,Bed & Breakfast,Connolly & Callaghan Limited,1055.60, 05-Aug-2021
1027,Revenue,CAHD,Bed and Breakfast,Bed & Breakfast,Connolly & Callaghan Limited,508.20, 13-Aug-2021
1028,Revenue,CAHD,Bed and Breakfast,Bed & Breakfast,Connolly & Callaghan Limited,727.30, 18-Aug-2021
1029,Revenue,CAHD,Bed and Breakfast,Bed & Breakfast,Connolly & Callaghan Limited,422.80, 23-Aug-2021
1030,Revenue,CAHD,Bed and Breakfast,Bed & Breakfast,Connolly & Callaghan Limited,422.80, 23-Aug-2021
1031,Revenue,CAHD,Bed and Breakfast,Bed & Breakfast,Connolly & Callaghan Limited,548.80, 18-Aug-2021
1032,Revenue,CAHD,Bed and Breakfast,Bed & Breakfast,Connolly & Callaghan Limited,807.10, 16-Aug-2021
1033,Revenue,CAHD,Bed and Breakfast,Bed & Breakfast,Connolly & Callaghan Limited,422.80, 23-Aug-2021
1034,Revenue,CAHD,Bed and Breakfast,Bed & Breakfast,Connolly & Callaghan Limited,1055.60, 18-Aug-2021
1035,Revenue,CAHD,Bed and Breakfast,Bed & Breakfast,Connolly & Callaghan Limited,727.30, 20-Aug-2021
1036,Revenue,CAHD,Bed and Breakfast,Bed & Breakfast,Connolly & Callaghan Limited,422.80, 25-Aug-2021
1037,Revenue,CAHD,Bed and Breakfast,Bed & Breakfast,Connolly & Callaghan Limited,548.80, 20-Aug-2021
1038,Revenue,CAHD,Bed and Breakfast,Bed & Breakfast,Connolly & Callaghan Limited,807.10, 20-Aug-2021
1039,Revenue,CAHD,Bed and Breakfast,Bed & Breakfast,Connolly & Callaghan Limited,422.80, 25-Aug-2021
1040,Revenue,CAHD,Bed and Breakfast,Bed & Breakfast,Connolly & Callaghan Limited,719.60, 25-Aug-2021
1041,Revenue,CAHD,Bed and Breakfast,Bed & Breakfast,Connolly & Callaghan Limited,1055.60, 20-Aug-2021
1042,Revenue,CAHD,Bed and Breakfast,Bed & Breakfast,Connolly & Callaghan Limited,427.20, 25-Aug-2021
1043,Revenue,CAHD,Bed and Breakfast,Bed & Breakfast,Connolly & Callaghan Limited,498.40, 27-Aug-2021
1044,Revenue,CAHD,Bed and Breakfast,Bed & Breakfast,Connolly & Callaghan Limited,514.00, 27-Aug-2021
1045,Revenue,CAHD,Bed and Breakfast,Bed & Breakfast,Connolly & Callaghan Limited,727.30, 27-Aug-2021
1046,Revenue,CAHD,Bed and Breakfast,Bed & Breakfast,Connolly & Callaghan Limited,422.80, 31-Aug-2021
1047,Revenue,CAHD,Bed and Breakfast,Bed & Breakfast,Connolly & Callaghan Limited,422.80, 27-Aug-2021
1048,Revenue,CAHD,Bed and Breakfast,Bed & Breakfast,Connolly & Callaghan Limited,548.80, 27-Aug-2021
1049,Revenue,CAHD,Bed and Breakfast,Bed & Breakfast,Connolly & Callaghan Limited,807.10, 27-Aug-2021
1050,Revenue,CAHD,Bed and Breakfast,Bed & Breakfast,Connolly & Callaghan Limited,719.60, 27-Aug-2021
1051,Revenue,CAHD,Bed and Breakfast,Bed & Breakfast,Connolly & Callaghan Limited,422.80, 27-Aug-2021
1052,Revenue,CAHD,Bed and Breakfast,Bed & Breakfast,Connolly & Callaghan Limited,1055.60, 27-Aug-2021
1053,Revenue,CAHD,CSC - Vinney Green Secure Unit,Other Supplies & Services,Coram Voice,2247.50, 19-Aug-2021
1054,Revenue,CAHD,CSC - Fostering Carer Support,Membership Fees,CoramBAAF Ltd t/a Coram Academy Ltd,1056.00, 09-Aug-2021
1055,Revenue,CAHD,CSC - Fostering Carer Support,Care Mgt/Asesmnt Staff Pay,Core Assets Expert Services Ltd T/A Carter Brown,2500.00, 26-Aug-2021
1056,Revenue,CAHD,CSC - Fostering Carer Support,Care Mgt/Asesmnt Staff Pay,Core Assets Expert Services Ltd T/A Carter Brown,2500.00, 26-Aug-2021
1057,Revenue,CAHD,CSC - Fostering Carer Support,Care Mgt/Asesmnt Staff Pay,Core Assets Expert Services Ltd T/A Carter Brown,2500.00, 26-Aug-2021
1058,Revenue,CAHD,CSC - Fostering Carer Support,Care Mgt/Asesmnt Staff Pay,Core Assets Expert Services Ltd T/A Carter Brown,780.00, 26-Aug-2021
1059,Revenue,CAHD,Independent Special Placements - Pre 16,Other Private Contractors,Cotswold Chine School,25727.72, 20-Aug-2021
1060,Revenue,CAHD,Independent Special Placements - Pre 16,Other Private Contractors,Cotswold Chine School,25793.63, 20-Aug-2021
1061,Revenue,CAHD,Independent Special Placements - Pre 16,Other Private Contractors,Cotswold Chine School,26364.00, 20-Aug-2021
1062,Revenue,CAHD,Independent Special Placements - Pre 16,Other Private Contractors,Cotswold Chine School,26364.00, 20-Aug-2021
1063,Revenue,CAHD,Central - Commissioned Services,Permanent Nursing,Cotswold House Care Home,6968.64, 24-Aug-2021
1064,Revenue,CAHD,Alexandra Way,Cleaning & Domestic Services,Countrywide Healthcare Supplies Ltd,781.67, 20-Aug-2021
1065,Revenue,CAHD,Alexandra Way,Cleaning & Domestic Services,Countrywide Healthcare Supplies Ltd,691.51, 20-Aug-2021
1066,Revenue,CAHD,Alexandra Way,Cleaning & Domestic Services,Countrywide Healthcare Supplies Ltd,1230.64, 27-Aug-2021
1067,Revenue,CAHD,North - Community based support,Permanent Residential,Court House Residential C.H.,3400.00, 24-Aug-2021
1068,Revenue,CAHD,Drug and Alcohol Programme,Other Small Contracts,Courtside Surgery,1624.00, 25-Aug-2021
1069,Revenue,CAHD,S28A cases,Permanent Residential,Creedy Court,10597.96, 24-Aug-2021
1070,Revenue,CAHD,S28A cases,Permanent Residential,Creedy Court,8904.92, 24-Aug-2021
1071,Revenue,CAHD,North - Community based support,Permanent Residential,Creedy Court,14054.00, 24-Aug-2021
1072,Revenue,CAHD,Flexible Homelessness Support Grant,Other Small Contracts,Curo Places Limited,46771.00, 27-Aug-2021
1073,Revenue,CAHD,Central - Commissioned Services,Supported Living,Cygnet Healthcare Limited,3380.00, 24-Aug-2021
1074,Revenue,CAHD,Drug and Alcohol Programme,Publicity & Promotions,D H I,1000.00, 27-Aug-2021
1075,Revenue,CAHD,CSC - Vinney Green Secure Unit,Mechanical & Electrical Maintenance,Dale Power Solutions Ltd,728.19, 02-Aug-2021
1076,Revenue,CAHD,South - Commissioned Services,Permanent Residential,Daneswood,12759.56, 24-Aug-2021
1077,Revenue,CAHD,South - Commissioned Services,Day Care / Social Activities,Daneswood,1474.72, 24-Aug-2021
1078,Revenue,CAHD,North - Community based support,Permanent Residential,Daneswood,13579.68, 24-Aug-2021
1079,Revenue,CAHD,Learning Difficulties PSL,Rent,Individual,2400.00, 20-Aug-2021
1080,Revenue,CAHD,Drug and Alcohol Programme,Other Small Contracts,Day Lewis - Horfield Branch,975.00, 25-Aug-2021
1081,Revenue,CAHD,Central - Commissioned Services,Permanent Residential,Debt Recovery,4326.88, 24-Aug-2021
1082,Revenue,CAHD,South - Commissioned Services,Permanent Residential,Debt Recovery,4422.88, 24-Aug-2021
1083,Revenue,CAHD,North - Community based support,Permanent Nursing,Debt Recovery,4642.48, 24-Aug-2021
1084,Revenue,CAHD,North - Community based support,Permanent Nursing,Debt Recovery,3822.52, 24-Aug-2021
1085,Revenue,CAHD,Central - Commissioned Services,Permanent Residential,Debt Recovery,4786.48, 24-Aug-2021
1086,Revenue,CAHD,North - Community based support,Permanent Nursing,Debt Recovery,5723.32, 24-Aug-2021
1087,Revenue,CAHD,North - Community based support,Permanent Nursing,Debt Recovery,3586.16, 24-Aug-2021
1088,Revenue,CAHD,Central - Commissioned Services,Permanent Nursing,Debt Recovery,5735.40, 24-Aug-2021
1089,Revenue,CAHD,North - Community based support,Permanent Residential,Debt Recovery,3643.92, 24-Aug-2021
1090,Revenue,CAHD,North - Community based support,Permanent Nursing,Debt Recovery,4121.24, 24-Aug-2021
1091,Revenue,CAHD,South - Commissioned Services,Permanent Nursing,Deerhurst Nursing Home,3970.68, 24-Aug-2021
1092,Revenue,CAHD,South Glos Users in South Glos Homes,Permanent Nursing,Deerhurst Nursing Home,750.40, 24-Aug-2021
1093,Revenue,CAHD,South - Commissioned Services,Permanent Nursing,Deerhurst Nursing Home,4501.20, 24-Aug-2021
1094,Revenue,CAHD,South Glos Users in South Glos Homes,Permanent Nursing,Deerhurst Nursing Home,750.40, 24-Aug-2021
1095,Revenue,CAHD,South - Commissioned Services,Permanent Nursing,Deerhurst Nursing Home,4762.80, 24-Aug-2021
1096,Revenue,CAHD,South Glos Users in South Glos Homes,Permanent Nursing,Deerhurst Nursing Home,750.40, 24-Aug-2021
1097,Revenue,CAHD,South - Commissioned Services,Day Care / Social Activities,Deerhurst Nursing Home,581.28, 24-Aug-2021
1098,Revenue,CAHD,South - Commissioned Services,Permanent Nursing,Deerhurst Nursing Home,4800.00, 24-Aug-2021
1099,Revenue,CAHD,South Glos Users in South Glos Homes,Permanent Nursing,Deerhurst Nursing Home,750.40, 24-Aug-2021
1100,Revenue,CAHD,South Glos Users in South Glos Homes,Permanent Nursing,Deerhurst Nursing Home,750.40, 24-Aug-2021
1101,Revenue,CAHD,South - Commissioned Services,Permanent Nursing,Deerhurst Nursing Home,4006.00, 24-Aug-2021
1102,Revenue,CAHD,South Glos Users in South Glos Homes,Permanent Nursing,Deerhurst Nursing Home,750.40, 24-Aug-2021
1103,Revenue,CAHD,North - Community based support,Permanent Nursing,Deerhurst Nursing Home,3891.20, 24-Aug-2021
1104,Revenue,CAHD,South - Commissioned Services,Permanent Nursing,Deerhurst Nursing Home,3965.12, 24-Aug-2021
1105,Revenue,CAHD,South Glos Users in South Glos Homes,Permanent Nursing,Deerhurst Nursing Home,750.40, 24-Aug-2021
1106,Revenue,CAHD,North - Community based support,Permanent Nursing,Deerhurst Nursing Home,4140.00, 24-Aug-2021
1107,Revenue,CAHD,South - Commissioned Services,Permanent Nursing,Deerhurst Nursing Home,4129.40, 24-Aug-2021
1108,Revenue,CAHD,South Glos Users in South Glos Homes,Permanent Nursing,Deerhurst Nursing Home,750.40, 24-Aug-2021
1109,Revenue,CAHD,South - Commissioned Services,Permanent Nursing,Deerhurst Nursing Home,4182.12, 24-Aug-2021
1110,Revenue,CAHD,South Glos Users in South Glos Homes,Permanent Nursing,Deerhurst Nursing Home,750.40, 24-Aug-2021
1111,Revenue,CAHD,South Glos Users in South Glos Homes,Permanent Nursing,Deerhurst Nursing Home,750.40, 24-Aug-2021
1112,Revenue,CAHD,South Glos Users in South Glos Homes,Permanent Nursing,Deerhurst Nursing Home,750.40, 24-Aug-2021
1113,Revenue,CAHD,South - Commissioned Services,Permanent Nursing,Deerhurst Nursing Home,4180.04, 24-Aug-2021
1114,Revenue,CAHD,South Glos Users in South Glos Homes,Permanent Nursing,Deerhurst Nursing Home,750.40, 24-Aug-2021
1115,Revenue,CAHD,South Glos Users in South Glos Homes,Permanent Nursing,Deerhurst Nursing Home,750.40, 24-Aug-2021
1116,Revenue,CAHD,South - Commissioned Services,Permanent Nursing,Deerhurst Nursing Home,4060.32, 24-Aug-2021
1117,Revenue,CAHD,South Glos Users in South Glos Homes,Permanent Nursing,Deerhurst Nursing Home,750.40, 24-Aug-2021
1118,Revenue,CAHD,Central - Commissioned Services,Permanent Nursing,Deerhurst Nursing Home,4535.08, 24-Aug-2021
1119,Revenue,CAHD,South Glos Users in South Glos Homes,Permanent Nursing,Deerhurst Nursing Home,750.40, 24-Aug-2021
1120,Revenue,CAHD,South Glos Users in South Glos Homes,Permanent Nursing,Deerhurst Nursing Home,750.40, 24-Aug-2021
1121,Revenue,CAHD,South Glos Users in South Glos Homes,Permanent Nursing,Deerhurst Nursing Home,750.40, 24-Aug-2021
1122,Revenue,CAHD,South Glos Users in South Glos Homes,Permanent Nursing,Deerhurst Nursing Home,750.40, 24-Aug-2021
1123,Revenue,CAHD,South Glos Users in South Glos Homes,Permanent Nursing,Deerhurst Nursing Home,750.40, 24-Aug-2021
1124,Revenue,CAHD,South Glos Users in South Glos Homes,Permanent Nursing,Deerhurst Nursing Home,750.40, 24-Aug-2021
1125,Revenue,CAHD,South - Commissioned Services,Permanent Nursing,Deerhurst Nursing Home,4640.32, 24-Aug-2021
1126,Revenue,CAHD,South Glos Users in South Glos Homes,Permanent Nursing,Deerhurst Nursing Home,750.40, 24-Aug-2021
1127,Revenue,CAHD,South Glos Users in South Glos Homes,Permanent Nursing,Deerhurst Nursing Home,750.40, 24-Aug-2021
1128,Revenue,CAHD,South - Commissioned Services,Permanent Nursing,Deerhurst Nursing Home,4179.32, 24-Aug-2021
1129,Revenue,CAHD,South Glos Users in South Glos Homes,Permanent Nursing,Deerhurst Nursing Home,750.40, 24-Aug-2021
1130,Revenue,CAHD,South Glos Users in South Glos Homes,Permanent Nursing,Deerhurst Nursing Home,750.40, 24-Aug-2021
1131,Revenue,CAHD,South - Commissioned Services,Permanent Nursing,Deerhurst Nursing Home,4006.00, 24-Aug-2021
1132,Revenue,CAHD,South Glos Users in South Glos Homes,Permanent Nursing,Deerhurst Nursing Home,750.40, 24-Aug-2021
1133,Revenue,CAHD,South - Commissioned Services,Permanent Residential,Deerhurst Nursing Home,4129.00, 24-Aug-2021
1134,Revenue,CAHD,South - Commissioned Services,Permanent Nursing,Deerhurst Nursing Home,4760.00, 24-Aug-2021
1135,Revenue,CAHD,South Glos Users in South Glos Homes,Permanent Nursing,Deerhurst Nursing Home,750.40, 24-Aug-2021
1136,Revenue,CAHD,South Glos Users in South Glos Homes,Permanent Nursing,Deerhurst Nursing Home,750.40, 24-Aug-2021
1137,Revenue,CAHD,South Glos Users in South Glos Homes,Permanent Nursing,Deerhurst Nursing Home,750.40, 24-Aug-2021
1138,Revenue,CAHD,South Glos Users in South Glos Homes,Permanent Nursing,Deerhurst Nursing Home,6437.20, 24-Aug-2021
1139,Revenue,CAHD,South Glos Users in South Glos Homes,Permanent Nursing,Deerhurst Nursing Home,1751.58, 24-Aug-2021
1140,Revenue,CAHD,South Glos Users in South Glos Homes,Permanent Nursing,Deerhurst Nursing Home,750.40, 24-Aug-2021
1141,Revenue,CAHD,South Glos Users in South Glos Homes,Permanent Nursing,Deerhurst Nursing Home,750.40, 24-Aug-2021
1142,Revenue,CAHD,South Glos Users in South Glos Homes,Permanent Nursing,Deerhurst Nursing Home,750.40, 24-Aug-2021
1143,Revenue,CAHD,South Glos Users in South Glos Homes,Permanent Nursing,Deerhurst Nursing Home,750.40, 24-Aug-2021
1144,Revenue,CAHD,South Glos Users in South Glos Homes,Permanent Nursing,Deerhurst Nursing Home,750.40, 24-Aug-2021
1145,Revenue,CAHD,South Glos Users in South Glos Homes,Permanent Nursing,Deerhurst Nursing Home,750.40, 24-Aug-2021
1146,Revenue,CAHD,South Glos Users in South Glos Homes,Permanent Nursing,Deerhurst Nursing Home,750.40, 24-Aug-2021
1147,Revenue,CAHD,South Glos Users in South Glos Homes,Permanent Nursing,Deerhurst Nursing Home,562.80, 24-Aug-2021
1148,Revenue,CAHD,South - Commissioned Services,Permanent Nursing,Deerhurst Nursing Home,1001.50, 24-Aug-2021
1149,Revenue,CAHD,South - Commissioned Services,Permanent Residential,Deerhurst Nursing Home,3891.20, 24-Aug-2021
1150,Revenue,CAHD,South - Commissioned Services,Permanent Nursing,Deerhurst Nursing Home,4762.80, 24-Aug-2021
1151,Revenue,CAHD,South Glos Users in South Glos Homes,Permanent Nursing,Deerhurst Nursing Home,750.40, 24-Aug-2021
1152,Revenue,CAHD,South Glos Users in South Glos Homes,Permanent Nursing,Deerhurst Nursing Home,750.40, 24-Aug-2021
1153,Revenue,CAHD,South Glos Users in South Glos Homes,Permanent Nursing,Deerhurst Nursing Home,750.40, 24-Aug-2021
1154,Revenue,CAHD,South Glos Users in South Glos Homes,Permanent Nursing,Deerhurst Nursing Home,750.40, 24-Aug-2021
1155,Revenue,CAHD,South Glos Users in South Glos Homes,Permanent Nursing,Deerhurst Nursing Home,750.40, 24-Aug-2021
1156,Revenue,CAHD,Covid - ASC - Infection Control,Grants to Voluntary Bodies,Deerhurst Nursing Home,11103.18, 17-Aug-2021
1157,Revenue,CAHD,ASC Rapid Testing Fund,Grants to Voluntary Bodies,Deerhurst Nursing Home,11299.20, 17-Aug-2021
1158,Revenue,CAHD,HQ Office & Communications (ICT),Membership Fees,Derbyshire County Council,500.00, 31-Aug-2021
1159,Revenue,CAHD,Learning Difficulties Development Fund,Other Supplies & Services,Design 4 Life Ltd,1800.00, 06-Aug-2021
1160,Revenue,CAHD,South - Commissioned Services,Supported Living,Design House,2776.88, 24-Aug-2021
1161,Revenue,CAHD,South - Commissioned Services,Supported Living,Design House,3196.12, 24-Aug-2021
1162,Revenue,CAHD,South - Commissioned Services,Supported Living,Design House,3123.40, 24-Aug-2021
1163,Revenue,CAHD,18-25 Year Olds,Supported Living,Design House,3083.24, 24-Aug-2021
1164,Revenue,CAHD,18-25 Year Olds,Supported Living,Design House,4094.76, 24-Aug-2021
1165,Revenue,CAHD,Central - Commissioned Services,Day Care / Social Activities,Design House,3060.24, 24-Aug-2021
1166,Revenue,CAHD,18-25 Year Olds,Supported Living,Design House,4094.76, 24-Aug-2021
1167,Revenue,CAHD,South - Commissioned Services,Supported Living,Design House,2753.28, 24-Aug-2021
1168,Revenue,CAHD,South - Commissioned Services,Supported Living,Design House,2753.28, 24-Aug-2021
1169,Revenue,CAHD,South - Commissioned Services,Supported Living,Design House,2242.76, 24-Aug-2021
1170,Revenue,CAHD,South - Commissioned Services,Supported Living,Design House,1978.92, 24-Aug-2021
1171,Revenue,CAHD,South - Commissioned Services,Day Care / Social Activities,Design House,538.88, 24-Aug-2021
1172,Revenue,CAHD,South - Commissioned Services,Supported Living,Design House,2625.96, 24-Aug-2021
1173,Revenue,CAHD,South - Commissioned Services,Supported Living,Design House,4494.32, 24-Aug-2021
1174,Revenue,CAHD,North - Community based support,Supported Living,Design House,3434.00, 24-Aug-2021
1175,Revenue,CAHD,South - Commissioned Services,Supported Living,Design House,3051.76, 24-Aug-2021
1176,Revenue,CAHD,South - Commissioned Services,Supported Living,Design House,2653.28, 24-Aug-2021
1177,Revenue,CAHD,South - Commissioned Services,Supported Living,Design House,2355.60, 24-Aug-2021
1178,Revenue,CAHD,South - Commissioned Services,Supported Living,Design House,2355.60, 24-Aug-2021
1179,Revenue,CAHD,Bed and Breakfast,Bed & Breakfast,Designz Ltd,672.00, 31-Aug-2021
1180,Revenue,CAHD,Central - Commissioned Services,Other Small Contracts,Dhek Bhal,328.16, 06-Aug-2021
1181,Revenue,CAHD,South - Commissioned Services,Other Small Contracts,Dhek Bhal,257.28, 06-Aug-2021
1182,Revenue,CAHD,Central - Commissioned Services,Other Small Contracts,Dhek Bhal,316.24, 13-Aug-2021
1183,Revenue,CAHD,South - Commissioned Services,Other Small Contracts,Dhek Bhal,257.28, 13-Aug-2021
1184,Revenue,CAHD,Central - Commissioned Services,Other Small Contracts,Dhek Bhal,328.16, 27-Aug-2021
1185,Revenue,CAHD,South - Commissioned Services,Other Small Contracts,Dhek Bhal,257.28, 27-Aug-2021
1186,Revenue,CAHD,North - Community based support,Permanent Nursing,Douglas House,3599.80, 24-Aug-2021
1187,Revenue,CAHD,Drug and Alcohol Programme,Other Small Contracts,Downend Health Group,5785.50, 25-Aug-2021
1188,Revenue,CAHD,Statemented Support Academies,Other Public Bodies,Downend School,978.57, 20-Aug-2021
1189,Revenue,CAHD,Statemented Support Academies,Other Public Bodies,Downend School,660.24, 20-Aug-2021
1190,Revenue,CAHD,Statemented Support Academies,Other Public Bodies,Downend School,1025.73, 20-Aug-2021
1191,Revenue,CAHD,Statemented Support Academies,Other Public Bodies,Downend School,1013.94, 20-Aug-2021
1192,Revenue,CAHD,Statemented Support Academies,Other Public Bodies,Downend School,801.72, 20-Aug-2021
1193,Revenue,CAHD,Statemented Support Academies,Other Public Bodies,Downend School,530.67, 20-Aug-2021
1194,Revenue,CAHD,Statemented Support Academies,Other Public Bodies,Downend School,1108.26, 20-Aug-2021
1195,Revenue,CAHD,Statemented Support Academies,Other Public Bodies,Downend School,554.13, 20-Aug-2021
1196,Revenue,CAHD,Statemented Support Academies,Other Public Bodies,Downend School,666.00, 20-Aug-2021
1197,Revenue,CAHD,Statemented Support Academies,Other Public Bodies,Downend School,1079.67, 20-Aug-2021
1198,Revenue,CAHD,Statemented Support Academies,Other Public Bodies,Downend School,1438.38, 20-Aug-2021
1199,Revenue,CAHD,Statemented Support Academies,Other Public Bodies,Downend School,1709.55, 20-Aug-2021
1200,Revenue,CAHD,Statemented Support Academies,Other Public Bodies,Downend School,1192.50, 20-Aug-2021
1201,Revenue,CAHD,Statemented Support Academies,Other Public Bodies,Downend School,1544.49, 20-Aug-2021
1202,Revenue,CAHD,Social Lettings Agency,Rent,Individual,822.73, 20-Aug-2021
1203,Revenue,CAHD,Social Lettings Agency,Fees & Charges Income - General,Individual,-65.82, 20-Aug-2021
1204,Revenue,CAHD,CSC - Vinney Green Secure Unit,Educational Materials,Drum Depot Limited,999.17, 25-Aug-2021
1205,Revenue,CAHD,A & CL - Engagement Provision 20/21,Computer Equipment - Purchase,DSG Retail Limited,3465.00, 13-Aug-2021
1206,Revenue,CAHD,CSC - Professional Fees Foster Carers,Band 3 Foster Care,Individual,741.86, 20-Aug-2021
1207,Revenue,CAHD,CSC - Professional Fees Foster Carers,Therapeutic Fostering Fee,Individual,577.00, 06-Aug-2021
1208,Revenue,CAHD,CSC - Professional Fees Foster Carers,Therapeutic Fostering Fee,Individual,577.00, 13-Aug-2021
1209,Revenue,CAHD,CSC - Professional Fees Foster Carers,Therapeutic Fostering Fee,Individual,577.00, 20-Aug-2021
1210,Revenue,CAHD,CSC - Professional Fees Foster Carers,Therapeutic Fostering Fee,Individual,577.00, 27-Aug-2021
1211,Revenue,CAHD,North - Community based support,Permanent Residential,East Court,2763.56, 24-Aug-2021
1212,Revenue,CAHD,Central - Commissioned Services,Permanent Residential,Edendale Lodge,3000.00, 24-Aug-2021
1213,Revenue,CAHD,Training - Adult Services,Training Expenses,Edge Training & Consultancy Limited,875.00, 20-Aug-2021
1214,Revenue,CAHD,Central - Commissioned Services,Permanent Residential,Edgemont House Ltd,3200.00, 24-Aug-2021
1215,Revenue,CAHD,South - Commissioned Services,Permanent Residential,Edgemont House Ltd,3273.60, 24-Aug-2021
1216,Revenue,CAHD,South - Commissioned Services,Permanent Residential,Edgemont House Ltd,3339.08, 24-Aug-2021
1217,Revenue,CAHD,South - Commissioned Services,Permanent Residential,Edgemont House Ltd,3130.40, 24-Aug-2021
1218,Revenue,CAHD,Covid - ASC - Infection Control,Grants to Voluntary Bodies,Edgemont House Ltd,2355.22, 17-Aug-2021
1219,Revenue,CAHD,ASC Rapid Testing Fund,Grants to Voluntary Bodies,Edgemont House Ltd,2396.80, 17-Aug-2021
1220,Revenue,CAHD,South - Commissioned Services,Permanent Nursing,Edgemont View Ltd,3580.52, 24-Aug-2021
1221,Revenue,CAHD,South Glos Users in South Glos Homes,Permanent Nursing,Edgemont View Ltd,750.40, 24-Aug-2021
1222,Revenue,CAHD,South - Commissioned Services,Permanent Nursing,Edgemont View Ltd,3478.20, 24-Aug-2021
1223,Revenue,CAHD,South Glos Users in South Glos Homes,Permanent Nursing,Edgemont View Ltd,750.40, 24-Aug-2021
1224,Revenue,CAHD,South - Commissioned Services,Respite Planned - Nursing,Edgemont View Ltd,1750.00, 24-Aug-2021
1225,Revenue,CAHD,South Glos Users in South Glos Homes,Permanent Nursing,Edgemont View Ltd,750.40, 24-Aug-2021
1226,Revenue,CAHD,South - Commissioned Services,Respite Planned - Nursing,Edgemont View Ltd,1875.00, 24-Aug-2021
1227,Revenue,CAHD,South - Commissioned Services,Permanent Nursing,Edgemont View Ltd,3478.20, 24-Aug-2021
1228,Revenue,CAHD,South Glos Users in South Glos Homes,Permanent Nursing,Edgemont View Ltd,750.40, 24-Aug-2021
1229,Revenue,CAHD,South Glos Users in South Glos Homes,Permanent Nursing,Edgemont View Ltd,750.40, 24-Aug-2021
1230,Revenue,CAHD,South - Commissioned Services,Permanent Nursing,Edgemont View Ltd,3682.80, 24-Aug-2021
1231,Revenue,CAHD,South Glos Users in South Glos Homes,Permanent Nursing,Edgemont View Ltd,750.40, 24-Aug-2021
1232,Revenue,CAHD,South - Commissioned Services,Permanent Nursing,Edgemont View Ltd,3580.52, 24-Aug-2021
1233,Revenue,CAHD,South Glos Users in South Glos Homes,Permanent Nursing,Edgemont View Ltd,750.40, 24-Aug-2021
1234,Revenue,CAHD,South Glos Users in South Glos Homes,Permanent Nursing,Edgemont View Ltd,750.40, 24-Aug-2021
1235,Revenue,CAHD,South Glos Users in South Glos Homes,Permanent Nursing,Edgemont View Ltd,750.40, 24-Aug-2021
1236,Revenue,CAHD,South - Commissioned Services,Permanent Nursing,Edgemont View Ltd,3989.72, 24-Aug-2021
1237,Revenue,CAHD,South Glos Users in South Glos Homes,Permanent Nursing,Edgemont View Ltd,750.40, 24-Aug-2021
1238,Revenue,CAHD,South Glos Users in South Glos Homes,Permanent Nursing,Edgemont View Ltd,750.40, 24-Aug-2021
1239,Revenue,CAHD,South - Commissioned Services,Permanent Nursing,Edgemont View Ltd,3478.20, 24-Aug-2021
1240,Revenue,CAHD,South Glos Users in South Glos Homes,Permanent Nursing,Edgemont View Ltd,750.40, 24-Aug-2021
1241,Revenue,CAHD,South - Commissioned Services,Permanent Nursing,Edgemont View Ltd,3739.76, 24-Aug-2021
1242,Revenue,CAHD,South Glos Users in South Glos Homes,Permanent Nursing,Edgemont View Ltd,750.40, 24-Aug-2021
1243,Revenue,CAHD,Covid - ASC - Infection Control,Grants to Voluntary Bodies,Edgemont View Ltd,3532.83, 17-Aug-2021
1244,Revenue,CAHD,ASC Rapid Testing Fund,Grants to Voluntary Bodies,Edgemont View Ltd,3595.20, 17-Aug-2021
1245,Revenue,CAHD,Education Psychology,Training Expenses,EdPsychEd,1290.00, 20-Aug-2021
1246,Revenue,CAHD,Social Lettings Agency,Rent,Individual,1321.36, 13-Aug-2021
1247,Revenue,CAHD,Social Lettings Agency,Fees & Charges Income - General,Individual,-79.30, 13-Aug-2021
1248,Revenue,CAHD,CSC - Legal Fees,Legal Fees,Individual,500.00, 02-Aug-2021
1249,Revenue,CAHD,North - Community based support,Permanent Residential,Ellsworth House,10016.24, 24-Aug-2021
1250,Revenue,CAHD,Placements OLA Special Schools and RB,Other L.A.s - General,Elmfield School for Deaf Children,1268.03, 19-Aug-2021
1251,Revenue,CAHD,Placements OLA Special Schools and RB,Other L.A.s - General,Elmfield School for Deaf Children,792.40, 19-Aug-2021
1252,Revenue,CAHD,Placements OLA Special Schools and RB,Other L.A.s - General,Elmfield School for Deaf Children,1268.03, 19-Aug-2021
1253,Revenue,CAHD,Placements OLA Special Schools and RB,Other L.A.s - General,Elmfield School for Deaf Children,1268.03, 19-Aug-2021
1254,Revenue,CAHD,Placements OLA Special Schools and RB,Other L.A.s - General,Elmfield School for Deaf Children,1268.03, 19-Aug-2021
1255,Revenue,CAHD,Placements OLA Special Schools and RB,Other L.A.s - General,Elmfield School for Deaf Children,792.40, 19-Aug-2021
1256,Revenue,CAHD,Placements OLA Special Schools and RB,Other L.A.s - General,Elmfield School for Deaf Children,1268.03, 19-Aug-2021
1257,Revenue,CAHD,CSC - Vinney Green Secure Unit,Training Expenses,ELN Limited,1000.98, 19-Aug-2021
1258,Revenue,CAHD,CSC - Care Leavers Support Costs,Personal Needs of Clients,Emeraldz Cleaning,500.00, 27-Aug-2021
1259,Revenue,CAHD,Drug and Alcohol Programme,Other Small Contracts,Emersons Green Medical Centre,1624.00, 25-Aug-2021
1260,Revenue,CAHD,Special ISB,Other Public Bodies,Enable Trust,16794.58, 24-Aug-2021
1261,Revenue,CAHD,Special ISB,Other Public Bodies,Enable Trust,1540.83, 24-Aug-2021
1262,Revenue,CAHD,Special ISB,Other Public Bodies,Enable Trust,1175.87, 24-Aug-2021
1263,Revenue,CAHD,Special ISB,Other Public Bodies,Enable Trust,1175.87, 24-Aug-2021
1264,Revenue,CAHD,Special ISB,Other Public Bodies,Enable Trust,892.05, 24-Aug-2021
1265,Revenue,CAHD,Special ISB,Other Public Bodies,Enable Trust,1540.83, 24-Aug-2021
1266,Revenue,CAHD,Special ISB,Other Public Bodies,Enable Trust,1540.83, 24-Aug-2021
1267,Revenue,CAHD,Special ISB,Other Public Bodies,Enable Trust,1175.87, 24-Aug-2021
1268,Revenue,CAHD,Special ISB,Other Public Bodies,Enable Trust,1175.87, 24-Aug-2021
1269,Revenue,CAHD,Special ISB,Other Public Bodies,Enable Trust,1175.87, 24-Aug-2021
1270,Revenue,CAHD,Special ISB,Other Public Bodies,Enable Trust,1540.83, 24-Aug-2021
1271,Revenue,CAHD,Special ISB,Other Public Bodies,Enable Trust,648.70, 24-Aug-2021
1272,Revenue,CAHD,Special ISB,Other Public Bodies,Enable Trust,892.05, 24-Aug-2021
1273,Revenue,CAHD,Special ISB,Other Public Bodies,Enable Trust,892.05, 24-Aug-2021
1274,Revenue,CAHD,Special ISB,Other Public Bodies,Enable Trust,1175.87, 24-Aug-2021
1275,Revenue,CAHD,Special ISB,Other Public Bodies,Enable Trust,1175.87, 24-Aug-2021
1276,Revenue,CAHD,Special ISB,Other Public Bodies,Enable Trust,1175.87, 24-Aug-2021
1277,Revenue,CAHD,Special ISB,Other Public Bodies,Enable Trust,1540.83, 24-Aug-2021
1278,Revenue,CAHD,Special ISB,Other Public Bodies,Enable Trust,648.70, 24-Aug-2021
1279,Revenue,CAHD,Special ISB,Other Public Bodies,Enable Trust,1702.96, 24-Aug-2021
1280,Revenue,CAHD,Special ISB,Other Public Bodies,Enable Trust,1540.83, 24-Aug-2021
1281,Revenue,CAHD,Special ISB,Other Public Bodies,Enable Trust,1175.87, 24-Aug-2021
1282,Revenue,CAHD,Special ISB,Other Public Bodies,Enable Trust,1175.87, 24-Aug-2021
1283,Revenue,CAHD,Special ISB,Other Public Bodies,Enable Trust,892.05, 24-Aug-2021
1284,Revenue,CAHD,Special ISB,Other Public Bodies,Enable Trust,1175.87, 24-Aug-2021
1285,Revenue,CAHD,Special ISB,Other Public Bodies,Enable Trust,892.05, 24-Aug-2021
1286,Revenue,CAHD,Special ISB,Other Public Bodies,Enable Trust,2189.53, 24-Aug-2021
1287,Revenue,CAHD,Special ISB,Other Public Bodies,Enable Trust,1175.87, 24-Aug-2021
1288,Revenue,CAHD,Special ISB,Other Public Bodies,Enable Trust,1175.87, 24-Aug-2021
1289,Revenue,CAHD,Special ISB,Other Public Bodies,Enable Trust,1175.87, 24-Aug-2021
1290,Revenue,CAHD,Special ISB,Other Public Bodies,Enable Trust,1175.87, 24-Aug-2021
1291,Revenue,CAHD,Special ISB,Other Public Bodies,Enable Trust,2189.53, 24-Aug-2021
1292,Revenue,CAHD,Special ISB,Other Public Bodies,Enable Trust,1175.87, 24-Aug-2021
1293,Revenue,CAHD,Special ISB,Other Public Bodies,Enable Trust,1540.83, 24-Aug-2021
1294,Revenue,CAHD,Special ISB,Other Public Bodies,Enable Trust,892.05, 24-Aug-2021
1295,Revenue,CAHD,Special ISB,Other Public Bodies,Enable Trust,1540.83, 24-Aug-2021
1296,Revenue,CAHD,Special ISB,Other Public Bodies,Enable Trust,1175.87, 24-Aug-2021
1297,Revenue,CAHD,Special ISB,Other Public Bodies,Enable Trust,1540.83, 24-Aug-2021
1298,Revenue,CAHD,Special ISB,Other Public Bodies,Enable Trust,1175.87, 24-Aug-2021
1299,Revenue,CAHD,Special ISB,Other Public Bodies,Enable Trust,1540.83, 24-Aug-2021
1300,Revenue,CAHD,Special ISB,Other Public Bodies,Enable Trust,1175.87, 24-Aug-2021
1301,Revenue,CAHD,Special ISB,Other Public Bodies,Enable Trust,1175.87, 24-Aug-2021
1302,Revenue,CAHD,Special ISB,Other Public Bodies,Enable Trust,1175.87, 24-Aug-2021
1303,Revenue,CAHD,Special ISB,Other Public Bodies,Enable Trust,1175.87, 24-Aug-2021
1304,Revenue,CAHD,Special ISB,Other Public Bodies,Enable Trust,2189.53, 24-Aug-2021
1305,Revenue,CAHD,Special ISB,Other Public Bodies,Enable Trust,1540.83, 24-Aug-2021
1306,Revenue,CAHD,Special ISB,Other Public Bodies,Enable Trust,892.05, 24-Aug-2021
1307,Revenue,CAHD,Special ISB,Other Public Bodies,Enable Trust,892.05, 24-Aug-2021
1308,Revenue,CAHD,Special ISB,Other Public Bodies,Enable Trust,1540.83, 24-Aug-2021
1309,Revenue,CAHD,Special ISB,Other Public Bodies,Enable Trust,1540.83, 24-Aug-2021
1310,Revenue,CAHD,Special ISB,Other Public Bodies,Enable Trust,1175.87, 24-Aug-2021
1311,Revenue,CAHD,Special ISB,Other Public Bodies,Enable Trust,1175.87, 24-Aug-2021
1312,Revenue,CAHD,Special ISB,Other Public Bodies,Enable Trust,1540.83, 24-Aug-2021
1313,Revenue,CAHD,Special ISB,Other Public Bodies,Enable Trust,1540.83, 24-Aug-2021
1314,Revenue,CAHD,Special ISB,Other Public Bodies,Enable Trust,1175.87, 24-Aug-2021
1315,Revenue,CAHD,Special ISB,Other Public Bodies,Enable Trust,1175.87, 24-Aug-2021
1316,Revenue,CAHD,Special ISB,Other Public Bodies,Enable Trust,1175.87, 24-Aug-2021
1317,Revenue,CAHD,Special ISB,Other Public Bodies,Enable Trust,1175.87, 24-Aug-2021
1318,Revenue,CAHD,Special ISB,Other Public Bodies,Enable Trust,1175.87, 24-Aug-2021
1319,Revenue,CAHD,Special ISB,Other Public Bodies,Enable Trust,1540.83, 24-Aug-2021
1320,Revenue,CAHD,Special ISB,Other Public Bodies,Enable Trust,2189.53, 24-Aug-2021
1321,Revenue,CAHD,Special ISB,Other Public Bodies,Enable Trust,2189.53, 24-Aug-2021
1322,Revenue,CAHD,Special ISB,Other Public Bodies,Enable Trust,1175.87, 24-Aug-2021
1323,Revenue,CAHD,Special ISB,Other Public Bodies,Enable Trust,648.70, 24-Aug-2021
1324,Revenue,CAHD,Special ISB,Other Public Bodies,Enable Trust,1175.87, 24-Aug-2021
1325,Revenue,CAHD,Special ISB,Other Public Bodies,Enable Trust,1175.87, 24-Aug-2021
1326,Revenue,CAHD,Special ISB,Other Public Bodies,Enable Trust,892.05, 24-Aug-2021
1327,Revenue,CAHD,Special ISB,Other Public Bodies,Enable Trust,1175.87, 24-Aug-2021
1328,Revenue,CAHD,Special ISB,Other Public Bodies,Enable Trust,892.05, 24-Aug-2021
1329,Revenue,CAHD,Special ISB,Other Public Bodies,Enable Trust,1540.83, 24-Aug-2021
1330,Revenue,CAHD,Special ISB,Other Public Bodies,Enable Trust,1175.87, 24-Aug-2021
1331,Revenue,CAHD,Special ISB,Other Public Bodies,Enable Trust,892.05, 24-Aug-2021
1332,Revenue,CAHD,Special ISB,Other Public Bodies,Enable Trust,1540.83, 24-Aug-2021
1333,Revenue,CAHD,Special ISB,Other Public Bodies,Enable Trust,1540.83, 24-Aug-2021
1334,Revenue,CAHD,Special ISB,Other Public Bodies,Enable Trust,1175.87, 24-Aug-2021
1335,Revenue,CAHD,Special ISB,Other Public Bodies,Enable Trust,2189.53, 24-Aug-2021
1336,Revenue,CAHD,Special ISB,Other Public Bodies,Enable Trust,2189.53, 24-Aug-2021
1337,Revenue,CAHD,Special ISB,Other Public Bodies,Enable Trust,2189.53, 24-Aug-2021
1338,Revenue,CAHD,Special ISB,Other Public Bodies,Enable Trust,892.05, 24-Aug-2021
1339,Revenue,CAHD,Special ISB,Other Public Bodies,Enable Trust,892.05, 24-Aug-2021
1340,Revenue,CAHD,Special ISB,Other Public Bodies,Enable Trust,1702.96, 24-Aug-2021
1341,Revenue,CAHD,Special ISB,Other Public Bodies,Enable Trust,1175.87, 24-Aug-2021
1342,Revenue,CAHD,Special ISB,Other Public Bodies,Enable Trust,89100.00, 27-Aug-2021
1343,Revenue,CAHD,Special ISB,Other Public Bodies,Enable Trust,1698.64, 24-Aug-2021
1344,Revenue,CAHD,Special ISB,Other Public Bodies,Enable Trust,1175.87, 24-Aug-2021
1345,Revenue,CAHD,Special ISB,Other Public Bodies,Enable Trust,1702.96, 24-Aug-2021
1346,Revenue,CAHD,Special ISB,Other Public Bodies,Enable Trust,892.05, 24-Aug-2021
1347,Revenue,CAHD,Special ISB,Other Public Bodies,Enable Trust,1702.96, 24-Aug-2021
1348,Revenue,CAHD,Special ISB,Other Public Bodies,Enable Trust,1175.87, 24-Aug-2021
1349,Revenue,CAHD,Special ISB,Other Public Bodies,Enable Trust,2189.53, 24-Aug-2021
1350,Revenue,CAHD,Special ISB,Other Public Bodies,Enable Trust,2189.53, 24-Aug-2021
1351,Revenue,CAHD,Special ISB,Other Public Bodies,Enable Trust,1508.33, 24-Aug-2021
1352,Revenue,CAHD,Special ISB,Other Public Bodies,Enable Trust,892.05, 24-Aug-2021
1353,Revenue,CAHD,Special ISB,Other Public Bodies,Enable Trust,892.05, 24-Aug-2021
1354,Revenue,CAHD,Special ISB,Other Public Bodies,Enable Trust,2513.88, 24-Aug-2021
1355,Revenue,CAHD,Special ISB,Other Public Bodies,Enable Trust,892.05, 24-Aug-2021
1356,Revenue,CAHD,Special ISB,Other Public Bodies,Enable Trust,892.05, 24-Aug-2021
1357,Revenue,CAHD,Special ISB,Other Public Bodies,Enable Trust,1702.96, 24-Aug-2021
1358,Revenue,CAHD,Special ISB,Other Public Bodies,Enable Trust,1702.96, 24-Aug-2021
1359,Revenue,CAHD,Special ISB,Other Public Bodies,Enable Trust,1702.96, 24-Aug-2021
1360,Revenue,CAHD,Special ISB,Other Public Bodies,Enable Trust,1702.96, 24-Aug-2021
1361,Revenue,CAHD,Special ISB,Other Public Bodies,Enable Trust,1175.87, 24-Aug-2021
1362,Revenue,CAHD,Special ISB,Other Public Bodies,Enable Trust,1175.87, 24-Aug-2021
1363,Revenue,CAHD,Special ISB,Other Public Bodies,Enable Trust,1702.96, 24-Aug-2021
1364,Revenue,CAHD,Special ISB,Other Public Bodies,Enable Trust,1702.96, 24-Aug-2021
1365,Revenue,CAHD,Special ISB,Other Public Bodies,Enable Trust,1175.87, 24-Aug-2021
1366,Revenue,CAHD,Special ISB,Other Public Bodies,Enable Trust,1702.96, 24-Aug-2021
1367,Revenue,CAHD,Special ISB,Other Public Bodies,Enable Trust,1175.87, 24-Aug-2021
1368,Revenue,CAHD,Special ISB,Other Public Bodies,Enable Trust,1175.87, 24-Aug-2021
1369,Revenue,CAHD,Special ISB,Other Public Bodies,Enable Trust,1175.87, 24-Aug-2021
1370,Revenue,CAHD,Special ISB,Other Public Bodies,Enable Trust,1175.87, 24-Aug-2021
1371,Revenue,CAHD,Special ISB,Other Public Bodies,Enable Trust,1175.87, 24-Aug-2021
1372,Revenue,CAHD,Special ISB,Other Public Bodies,Enable Trust,1175.87, 24-Aug-2021
1373,Revenue,CAHD,Special ISB,Other Public Bodies,Enable Trust,2189.53, 24-Aug-2021
1374,Revenue,CAHD,Special ISB,Other Public Bodies,Enable Trust,1702.96, 24-Aug-2021
1375,Revenue,CAHD,Special ISB,Other Public Bodies,Enable Trust,1702.96, 24-Aug-2021
1376,Revenue,CAHD,Special ISB,Other Public Bodies,Enable Trust,892.05, 24-Aug-2021
1377,Revenue,CAHD,Special ISB,Other Public Bodies,Enable Trust,648.70, 24-Aug-2021
1378,Revenue,CAHD,Special ISB,Other Public Bodies,Enable Trust,1175.87, 24-Aug-2021
1379,Revenue,CAHD,Special ISB,Other Public Bodies,Enable Trust,892.05, 24-Aug-2021
1380,Revenue,CAHD,Special ISB,Other Public Bodies,Enable Trust,1175.87, 24-Aug-2021
1381,Revenue,CAHD,Special ISB,Other Public Bodies,Enable Trust,1702.96, 24-Aug-2021
1382,Revenue,CAHD,Special ISB,Other Public Bodies,Enable Trust,1540.83, 24-Aug-2021
1383,Revenue,CAHD,Special ISB,Other Public Bodies,Enable Trust,892.05, 24-Aug-2021
1384,Revenue,CAHD,Special ISB,Other Public Bodies,Enable Trust,1702.96, 24-Aug-2021
1385,Revenue,CAHD,Special ISB,Other Public Bodies,Enable Trust,1175.87, 24-Aug-2021
1386,Revenue,CAHD,Special ISB,Other Public Bodies,Enable Trust,1175.87, 24-Aug-2021
1387,Revenue,CAHD,Special ISB,Other Public Bodies,Enable Trust,1175.87, 24-Aug-2021
1388,Revenue,CAHD,Special ISB,Other Public Bodies,Enable Trust,892.05, 24-Aug-2021
1389,Revenue,CAHD,Special ISB,Other Public Bodies,Enable Trust,892.05, 24-Aug-2021
1390,Revenue,CAHD,Special ISB,Other Public Bodies,Enable Trust,892.05, 24-Aug-2021
1391,Revenue,CAHD,Special ISB,Other Public Bodies,Enable Trust,1175.87, 24-Aug-2021
1392,Revenue,CAHD,Special ISB,Other Public Bodies,Enable Trust,892.05, 24-Aug-2021
1393,Revenue,CAHD,Special ISB,Other Public Bodies,Enable Trust,1175.87, 24-Aug-2021
1394,Revenue,CAHD,Special ISB,Other Public Bodies,Enable Trust,1175.87, 24-Aug-2021
1395,Revenue,CAHD,Special ISB,Other Public Bodies,Enable Trust,892.05, 24-Aug-2021
1396,Revenue,CAHD,Special ISB,Other Public Bodies,Enable Trust,892.05, 24-Aug-2021
1397,Revenue,CAHD,Special ISB,Other Public Bodies,Enable Trust,1175.87, 24-Aug-2021
1398,Revenue,CAHD,Special ISB,Other Public Bodies,Enable Trust,1175.87, 24-Aug-2021
1399,Revenue,CAHD,Special ISB,Other Public Bodies,Enable Trust,1175.87, 24-Aug-2021
1400,Revenue,CAHD,Special ISB,Other Public Bodies,Enable Trust,1702.96, 24-Aug-2021
1401,Revenue,CAHD,Special ISB,Other Public Bodies,Enable Trust,1175.87, 24-Aug-2021
1402,Revenue,CAHD,Special ISB,Other Public Bodies,Enable Trust,892.05, 24-Aug-2021
1403,Revenue,CAHD,Special ISB,Other Public Bodies,Enable Trust,892.05, 24-Aug-2021
1404,Revenue,CAHD,Special ISB,Other Public Bodies,Enable Trust,2189.53, 24-Aug-2021
1405,Revenue,CAHD,Special ISB,Other Public Bodies,Enable Trust,1175.87, 24-Aug-2021
1406,Revenue,CAHD,Special ISB,Other Public Bodies,Enable Trust,892.05, 24-Aug-2021
1407,Revenue,CAHD,Special ISB,Other Public Bodies,Enable Trust,2189.53, 24-Aug-2021
1408,Revenue,CAHD,Special ISB,Other Public Bodies,Enable Trust,1540.83, 24-Aug-2021
1409,Revenue,CAHD,Special ISB,Other Public Bodies,Enable Trust,648.70, 24-Aug-2021
1410,Revenue,CAHD,Special ISB,Other Public Bodies,Enable Trust,1175.87, 24-Aug-2021
1411,Revenue,CAHD,Special ISB,Other Public Bodies,Enable Trust,2189.53, 24-Aug-2021
1412,Revenue,CAHD,Special ISB,Other Public Bodies,Enable Trust,1175.87, 24-Aug-2021
1413,Revenue,CAHD,Special ISB,Other Public Bodies,Enable Trust,2189.53, 24-Aug-2021
1414,Revenue,CAHD,Special ISB,Other Public Bodies,Enable Trust,1021.76, 24-Aug-2021
1415,Revenue,CAHD,Special ISB,Other Public Bodies,Enable Trust,1702.96, 24-Aug-2021
1416,Revenue,CAHD,Special ISB,Other Public Bodies,Enable Trust,1702.96, 24-Aug-2021
1417,Revenue,CAHD,Special ISB,Other Public Bodies,Enable Trust,1702.96, 24-Aug-2021
1418,Revenue,CAHD,Special ISB,Other Public Bodies,Enable Trust,2513.88, 24-Aug-2021
1419,Revenue,CAHD,Special ISB,Other Public Bodies,Enable Trust,2189.53, 24-Aug-2021
1420,Revenue,CAHD,Special ISB,Other Public Bodies,Enable Trust,1702.96, 24-Aug-2021
1421,Revenue,CAHD,Special ISB,Other Public Bodies,Enable Trust,1702.96, 24-Aug-2021
1422,Revenue,CAHD,Special ISB,Other Public Bodies,Enable Trust,1175.87, 24-Aug-2021
1423,Revenue,CAHD,Special ISB,Other Public Bodies,Enable Trust,1702.96, 24-Aug-2021
1424,Revenue,CAHD,Special ISB,Other Public Bodies,Enable Trust,2513.88, 24-Aug-2021
1425,Revenue,CAHD,Special ISB,Other Public Bodies,Enable Trust,2513.88, 24-Aug-2021
1426,Revenue,CAHD,Special ISB,Other Public Bodies,Enable Trust,1313.74, 24-Aug-2021
1427,Revenue,CAHD,Special ISB,Other Public Bodies,Enable Trust,1175.87, 24-Aug-2021
1428,Revenue,CAHD,Special ISB,Other Public Bodies,Enable Trust,2189.53, 24-Aug-2021
1429,Revenue,CAHD,Special ISB,Other Public Bodies,Enable Trust,1175.87, 24-Aug-2021
1430,Revenue,CAHD,Special ISB,Other Public Bodies,Enable Trust,1540.83, 24-Aug-2021
1431,Revenue,CAHD,Special ISB,Other Public Bodies,Enable Trust,1702.96, 24-Aug-2021
1432,Revenue,CAHD,Special ISB,Other Public Bodies,Enable Trust,1702.96, 24-Aug-2021
1433,Revenue,CAHD,Special ISB,Other Public Bodies,Enable Trust,2189.53, 24-Aug-2021
1434,Revenue,CAHD,Special ISB,Other Public Bodies,Enable Trust,1175.87, 24-Aug-2021
1435,Revenue,CAHD,Special ISB,Other Public Bodies,Enable Trust,25000.00, 06-Aug-2021
1436,Revenue,CAHD,Special ISB,Other Public Bodies,Enable Trust,79200.00, 27-Aug-2021
1437,Revenue,CAHD,CSC - Agency Fostering,Foster Parent Allowances,Enhanced Foster Care Limited,4839.10, 16-Aug-2021
1438,Revenue,CAHD,CSC - Agency Fostering,Foster Parent Allowances,Enhanced Foster Care Limited,4839.10, 16-Aug-2021
1439,Revenue,CAHD,18-25 Year Olds,Other Small Contracts,Epiphany In Care,789.36, 19-Aug-2021
1440,Revenue,CAHD,South - Commissioned Services,Other Small Contracts,Epiphany In Care,1723.66, 24-Aug-2021
1441,Revenue,CAHD,South - Commissioned Services,Other Small Contracts,Epiphany In Care,4099.44, 11-Aug-2021
1442,Revenue,CAHD,South - Commissioned Services,Other Small Contracts,Epiphany In Care,3608.40, 11-Aug-2021
1443,Revenue,CAHD,North - Community based support,Other Small Contracts,Epiphany In Care,4209.92, 11-Aug-2021
1444,Revenue,CAHD,North - Community based support,Other Small Contracts,Epiphany In Care,11074.56, 11-Aug-2021
1445,Revenue,CAHD,North - S117,Permanent Residential,Evolve House,3276.80, 24-Aug-2021
1446,Revenue,CAHD,Placements OLA Special Schools and RB,Other L.A.s - General,Excalibur Academies Trust T/A,2238.78, 19-Aug-2021
1447,Revenue,CAHD,Covid - ASC - Infection Control,Grants to Voluntary Bodies,Excel Living Limited,912.06, 17-Aug-2021
1448,Revenue,CAHD,Covid - ASC - Infection Control,Grants to Voluntary Bodies,Excel Living Limited,957.78, 17-Aug-2021
1449,Revenue,CAHD,CSC - Residential Placements,Permanent Residential,Exceptional Care Limited,32050.00, 03-Aug-2021
1450,Revenue,CAHD,Social Lettings Agency,Prop.Serv. General Repairs,Express Property Services Limited,39.00, 11-Aug-2021
1451,Revenue,CAHD,Social Lettings Agency,Prop.Serv. General Repairs,Express Property Services Limited,48.00, 11-Aug-2021
1452,Revenue,CAHD,Social Lettings Agency,Prop.Serv. General Repairs,Express Property Services Limited,182.00, 11-Aug-2021
1453,Revenue,CAHD,Social Lettings Agency,Prop.Serv. General Repairs,Express Property Services Limited,330.00, 11-Aug-2021
1454,Revenue,CAHD,Social Lettings Agency,Prop.Serv. General Repairs,Express Property Services Limited,60.00, 11-Aug-2021
1455,Revenue,CAHD,Social Lettings Agency,Prop.Serv. General Repairs,Express Property Services Limited,235.00, 11-Aug-2021
1456,Revenue,CAHD,Social Lettings Agency,Prop.Serv. General Repairs,Express Property Services Limited,60.00, 11-Aug-2021
1457,Revenue,CAHD,Homeless - Private Sector Leasing,Prop.Serv. General Repairs,Express Property Services Limited,60.00, 11-Aug-2021
1458,Revenue,CAHD,Extra Care Housing,Private & Voluntary Home Care,Extra Care Charitable Trust,27505.67, 12-Aug-2021
1459,Revenue,CAHD,Covid - ASC - Infection Control,Grants to Voluntary Bodies,Extra Care Charitable Trust,5067.00, 17-Aug-2021
1460,Revenue,CAHD,Covid - ASC - Infection Control,Grants to Voluntary Bodies,Extra Care Charitable Trust,5321.00, 17-Aug-2021
1461,Revenue,CAHD,North - Community based support,Permanent Residential,Eyre Court,5400.00, 24-Aug-2021
1462,Revenue,CAHD,North - Community based support,Permanent Residential,Eyre Court,5430.00, 24-Aug-2021
1463,Revenue,CAHD,Covid - ASC - Infection Control,Grants to Voluntary Bodies,Eyre Court,8579.73, 09-Aug-2021
1464,Revenue,CAHD,ASC Rapid Testing Fund,Grants to Voluntary Bodies,Eyre Court,8731.20, 09-Aug-2021
1465,Revenue,CAHD,Accreditation and Duke of Edinburgh,Project Funding,FACE,1583.00, 05-Aug-2021
1466,Revenue,CAHD,South - Commissioned Services,Permanent Nursing,Fairview Court,3976.16, 24-Aug-2021
1467,Revenue,CAHD,South Glos Users in South Glos Homes,Permanent Nursing,Fairview Court,750.40, 24-Aug-2021
1468,Revenue,CAHD,South - Commissioned Services,Permanent Nursing,Fairview Court,29142.86, 24-Aug-2021
1469,Revenue,CAHD,South - Commissioned Services,Permanent Nursing,Fairview Court,10412.36, 24-Aug-2021
1470,Revenue,CAHD,South - Commissioned Services,Fees & Charges Income - General,Fairview Court,693.67, 24-Aug-2021
1471,Revenue,CAHD,South Glos Users in South Glos Homes,Permanent Nursing,Fairview Court,750.40, 24-Aug-2021
1472,Revenue,CAHD,South Glos Users in South Glos Homes,Permanent Nursing,Fairview Court,750.40, 24-Aug-2021
1473,Revenue,CAHD,Central - Commissioned Services,Permanent Nursing,Fairview Court,4800.00, 24-Aug-2021
1474,Revenue,CAHD,South Glos Users in South Glos Homes,Permanent Nursing,Fairview Court,750.40, 24-Aug-2021
1475,Revenue,CAHD,South - Commissioned Services,Permanent Nursing,Fairview Court,6535.89, 24-Aug-2021
1476,Revenue,CAHD,South - Commissioned Services,Permanent Nursing,Fairview Court,5545.60, 24-Aug-2021
1477,Revenue,CAHD,South Glos Users in South Glos Homes,Permanent Nursing,Fairview Court,750.40, 24-Aug-2021
1478,Revenue,CAHD,South - S117,Permanent Nursing,Fairview Court,4355.24, 24-Aug-2021
1479,Revenue,CAHD,South Glos Users in South Glos Homes,Permanent Nursing,Fairview Court,750.40, 24-Aug-2021
1480,Revenue,CAHD,South - Commissioned Services,Permanent Nursing,Fairview Court,4078.24, 24-Aug-2021
1481,Revenue,CAHD,South Glos Users in South Glos Homes,Permanent Nursing,Fairview Court,750.40, 24-Aug-2021
1482,Revenue,CAHD,South - Commissioned Services,Permanent Nursing,Fairview Court,4800.00, 24-Aug-2021
1483,Revenue,CAHD,South Glos Users in South Glos Homes,Permanent Nursing,Fairview Court,750.40, 24-Aug-2021
1484,Revenue,CAHD,South - Commissioned Services,Permanent Nursing,Fairview Court,4800.00, 24-Aug-2021
1485,Revenue,CAHD,South Glos Users in South Glos Homes,Permanent Nursing,Fairview Court,750.40, 24-Aug-2021
1486,Revenue,CAHD,South Glos Users in South Glos Homes,Permanent Nursing,Fairview Court,750.40, 24-Aug-2021
1487,Revenue,CAHD,South Glos Users in South Glos Homes,Permanent Nursing,Fairview Court,750.40, 24-Aug-2021
1488,Revenue,CAHD,South - Commissioned Services,Fees & Charges Income - General,Fairview Court,701.35, 24-Aug-2021
1489,Revenue,CAHD,South - Commissioned Services,Permanent Nursing,Fairview Court,4910.40, 24-Aug-2021
1490,Revenue,CAHD,South Glos Users in South Glos Homes,Permanent Nursing,Fairview Court,750.40, 24-Aug-2021
1491,Revenue,CAHD,South Glos Users in South Glos Homes,Permanent Nursing,Fairview Court,750.40, 24-Aug-2021
1492,Revenue,CAHD,South - Commissioned Services,Permanent Nursing,Fairview Court,3887.40, 24-Aug-2021
1493,Revenue,CAHD,South Glos Users in South Glos Homes,Permanent Nursing,Fairview Court,750.40, 24-Aug-2021
1494,Revenue,CAHD,North - Community based support,Permanent Residential,Fairview Court,3397.84, 24-Aug-2021
1495,Revenue,CAHD,South - Commissioned Services,Permanent Nursing,Fairview Court,4232.92, 24-Aug-2021
1496,Revenue,CAHD,South Glos Users in South Glos Homes,Permanent Nursing,Fairview Court,750.40, 24-Aug-2021
1497,Revenue,CAHD,South Glos Users in South Glos Homes,Permanent Nursing,Fairview Court,750.40, 24-Aug-2021
1498,Revenue,CAHD,South Glos Users in South Glos Homes,Permanent Nursing,Fairview Court,750.40, 24-Aug-2021
1499,Revenue,CAHD,South - Commissioned Services,Permanent Nursing,Fairview Court,4800.00, 24-Aug-2021
1500,Revenue,CAHD,South Glos Users in South Glos Homes,Permanent Nursing,Fairview Court,750.40, 24-Aug-2021
1501,Revenue,CAHD,South Glos Users in South Glos Homes,Permanent Nursing,Fairview Court,750.40, 24-Aug-2021
1502,Revenue,CAHD,South Glos Users in South Glos Homes,Permanent Nursing,Fairview Court,750.40, 24-Aug-2021
1503,Revenue,CAHD,South - Commissioned Services,Permanent Nursing,Fairview Court,5237.76, 24-Aug-2021
1504,Revenue,CAHD,South Glos Users in South Glos Homes,Permanent Nursing,Fairview Court,750.40, 24-Aug-2021
1505,Revenue,CAHD,South Glos Users in South Glos Homes,Permanent Nursing,Fairview Court,750.40, 24-Aug-2021
1506,Revenue,CAHD,South Glos Users in South Glos Homes,Permanent Nursing,Fairview Court,750.40, 24-Aug-2021
1507,Revenue,CAHD,South Glos Users in South Glos Homes,Permanent Nursing,Fairview Court,750.40, 24-Aug-2021
1508,Revenue,CAHD,South - Commissioned Services,Permanent Nursing,Fairview Court,3635.08, 24-Aug-2021
1509,Revenue,CAHD,South Glos Users in South Glos Homes,Permanent Nursing,Fairview Court,750.40, 24-Aug-2021
1510,Revenue,CAHD,North - Community based support,Permanent Nursing,Fairview Court,4800.00, 24-Aug-2021
1511,Revenue,CAHD,South - Commissioned Services,Permanent Nursing,Fairview Court,3701.96, 24-Aug-2021
1512,Revenue,CAHD,South Glos Users in South Glos Homes,Permanent Nursing,Fairview Court,750.40, 24-Aug-2021
1513,Revenue,CAHD,South - Commissioned Services,Permanent Nursing,Fairview Court,4232.92, 24-Aug-2021
1514,Revenue,CAHD,South Glos Users in South Glos Homes,Permanent Nursing,Fairview Court,750.40, 24-Aug-2021
1515,Revenue,CAHD,South - Commissioned Services,Permanent Residential,Fairview House,3800.00, 24-Aug-2021
1516,Revenue,CAHD,South - Commissioned Services,Permanent Residential,Fairview House,2403.64, 24-Aug-2021
1517,Revenue,CAHD,Central - Commissioned Services,Permanent Residential,Fairview House,1821.43, 24-Aug-2021
1518,Revenue,CAHD,Central - Commissioned Services,Permanent Residential,Fairview House,1578.57, 24-Aug-2021
1519,Revenue,CAHD,South - Commissioned Services,Permanent Residential,Fairview House,3478.20, 24-Aug-2021
1520,Revenue,CAHD,North - Community based support,Permanent Residential,Fairview House,3800.00, 24-Aug-2021
1521,Revenue,CAHD,South - Commissioned Services,Permanent Residential,Fairview House,3600.00, 24-Aug-2021
1522,Revenue,CAHD,South - Commissioned Services,Permanent Residential,Fairview House,3800.00, 24-Aug-2021
1523,Revenue,CAHD,Central - Commissioned Services,Permanent Residential,Fairview House,3800.00, 24-Aug-2021
1524,Revenue,CAHD,North - Community based support,Permanent Residential,Faith House,3263.72, 24-Aug-2021
1525,Revenue,CAHD,North - Community based support,Permanent Residential,Faith House,3414.00, 24-Aug-2021
1526,Revenue,CAHD,North - Community based support,Permanent Residential,Faith House,5852.57, 24-Aug-2021
1527,Revenue,CAHD,South - Commissioned Services,Permanent Residential,Faith House,3965.36, 24-Aug-2021
1528,Revenue,CAHD,CSC - Parent & Child Assessments,Foster Parent Allowances,Families First (SW) Ltd,7512.23, 31-Aug-2021
1529,Revenue,CAHD,CSC - OT Equipment - Children,Daily Living Equipment,Felgains Ltd,6121.00, 13-Aug-2021
1530,Revenue,CAHD,Central - Commissioned Services,Permanent Nursing,Field House Care Home,7405.71, 24-Aug-2021
1531,Revenue,CAHD,Central - Commissioned Services,Permanent Nursing,Field House Care Home,3840.00, 24-Aug-2021
1532,Revenue,CAHD,North - Community based support,Permanent Nursing,Field House Care Home,3403.60, 24-Aug-2021
1533,Revenue,CAHD,North - Community based support,Permanent Nursing,Field House Care Home,3589.48, 24-Aug-2021
1534,Revenue,CAHD,Central - Commissioned Services,Permanent Nursing,Field House Care Home,3760.00, 24-Aug-2021
1535,Revenue,CAHD,North - Community based support,Permanent Nursing,Field House Care Home,2320.12, 24-Aug-2021
1536,Revenue,CAHD,Central - Commissioned Services,Permanent Nursing,Field House Care Home,3740.00, 24-Aug-2021
1537,Revenue,CAHD,North - Community based support,Permanent Nursing,Field House Care Home,2320.12, 24-Aug-2021
1538,Revenue,CAHD,North - Community based support,Permanent Nursing,Field House Care Home,3506.00, 24-Aug-2021
1539,Revenue,CAHD,Statemented Support Payments to OLAs,Other L.A.s - General,Filton Avenue Primary School,1131.84, 19-Aug-2021
1540,Revenue,CAHD,Statemented Support Payments to OLAs,Other L.A.s - General,Filton Avenue Primary School,1332.27, 19-Aug-2021
1541,Revenue,CAHD,South - Commissioned Services,Permanent Nursing,First Floor  Lingfield House,3846.48, 24-Aug-2021
1542,Revenue,CAHD,South Glos Users in South Glos Homes,Permanent Nursing,First Floor  Lingfield House,750.40, 24-Aug-2021
1543,Revenue,CAHD,South - Commissioned Services,Respite Planned - Residential,First Floor  Lingfield House,1477.14, 24-Aug-2021
1544,Revenue,CAHD,South - Commissioned Services,Permanent Nursing,First Floor  Lingfield House,3480.00, 24-Aug-2021
1545,Revenue,CAHD,South - Commissioned Services,Permanent Residential,First Floor  Lingfield House,3560.00, 24-Aug-2021
1546,Revenue,CAHD,South - Commissioned Services,Permanent Nursing,First Floor  Lingfield House,2613.12, 24-Aug-2021
1547,Revenue,CAHD,South Glos Users in South Glos Homes,Permanent Nursing,First Floor  Lingfield House,750.40, 24-Aug-2021
1548,Revenue,CAHD,South Glos Users in South Glos Homes,Permanent Nursing,First Floor  Lingfield House,750.40, 24-Aug-2021
1549,Revenue,CAHD,South Glos Users in South Glos Homes,Permanent Nursing,First Floor  Lingfield House,750.40, 24-Aug-2021
1550,Revenue,CAHD,Central - Commissioned Services,Permanent Nursing,First Floor  Lingfield House,3880.00, 24-Aug-2021
1551,Revenue,CAHD,South - Commissioned Services,Permanent Nursing,First Floor  Lingfield House,3760.00, 24-Aug-2021
1552,Revenue,CAHD,South Glos Users in South Glos Homes,Permanent Nursing,First Floor  Lingfield House,750.40, 24-Aug-2021
1553,Revenue,CAHD,South - Commissioned Services,Permanent Residential,First Floor  Lingfield House,3160.00, 24-Aug-2021
1554,Revenue,CAHD,South - Commissioned Services,Permanent Nursing,First Floor  Lingfield House,3480.00, 24-Aug-2021
1555,Revenue,CAHD,South - Commissioned Services,Respite Emergency - Residential,First Floor  Lingfield House,5640.00, 24-Aug-2021
1556,Revenue,CAHD,South - Commissioned Services,Permanent Residential,First Floor  Lingfield House,3360.00, 24-Aug-2021
1557,Revenue,CAHD,South - Commissioned Services,Permanent Residential,First Floor  Lingfield House,3480.00, 24-Aug-2021
1558,Revenue,CAHD,North - Community based support,Permanent Residential,First Floor  Q4  The Square,8834.36, 24-Aug-2021
1559,Revenue,CAHD,Jointly Funded H&SC Packages,Permanent Residential,First Floor  Q4  The Square,5728.52, 24-Aug-2021
1560,Revenue,CAHD,North - Community based support,Permanent Residential,First Floor  Q4  The Square,8810.60, 24-Aug-2021
1561,Revenue,CAHD,Jointly Funded H&SC Packages,Permanent Residential,First Floor  Q4  The Square,2639.56, 24-Aug-2021
1562,Revenue,CAHD,Early Years High Needs Support,Other Private Contractors,First Step Pre School Ltd,910.07, 19-Aug-2021
1563,Revenue,CAHD,CSC - Vinney Green Secure Unit,Operational Equipment,Fitness Superstore,581.66, 19-Aug-2021
1564,Revenue,CAHD,CSC - Agency Fostering,Foster Parent Allowances,Five Rivers Child Care Limited,3481.80, 16-Aug-2021
1565,Revenue,CAHD,CSC - Agency Fostering,Foster Parent Allowances,Five Rivers Child Care Limited,2250.14, 24-Aug-2021
1566,Revenue,CAHD,CSC - Agency Fostering,Foster Parent Allowances,Five Rivers Child Care Limited,3627.00, 02-Aug-2021
1567,Revenue,CAHD,CSC - Agency Fostering,Foster Parent Allowances,Five Rivers Child Care Limited,2223.76, 02-Aug-2021
1568,Revenue,CAHD,CSC - Agency Fostering,Foster Parent Allowances,Five Rivers Child Care Limited,3597.86, 02-Aug-2021
1569,Revenue,CAHD,CSC - Agency Fostering,Foster Parent Allowances,Five Rivers Child Care Limited,3483.34, 02-Aug-2021
1570,Revenue,CAHD,CSC - Agency Fostering,Foster Parent Allowances,Five Rivers Child Care Limited,3483.34, 02-Aug-2021
1571,Revenue,CAHD,CSC - Residential Placements,Permanent Residential,Five Rivers Child Care Limited,30202.86, 03-Aug-2021
1572,Revenue,CAHD,CSC - Residential Placements,Permanent Residential,Five Rivers Child Care Limited,30202.86, 20-Aug-2021
1573,Revenue,CAHD,CSC - Residential Placements,Permanent Residential,Five Rivers Child Care Limited,30202.86, 31-Aug-2021
1574,Revenue,CAHD,Health Promotion in Schools,Other Small Contracts,Foster & Brown Research LTD,17482.50, 20-Aug-2021
1575,Revenue,CAHD,CSC - Agency Fostering,Foster Parent Allowances,Foster Care Associates Limited,3858.26, 24-Aug-2021
1576,Revenue,CAHD,CSC - Fostering Carer Support,Membership Fees,Fostering Network,2384.10, 27-Aug-2021
1577,Revenue,CAHD,Covid 19- Spend on behalf of NHS,Other Small Contracts,Fourways Care Limited,73106.00, 09-Aug-2021
1578,Revenue,CAHD,Central - Commissioned Services,Other Small Contracts,Fourways Care Limited,1229.11, 09-Aug-2021
1579,Revenue,CAHD,South - Commissioned Services,Other Small Contracts,Fourways Care Limited,956.21, 09-Aug-2021
1580,Revenue,CAHD,North - Community based support,Other Small Contracts,Fourways Care Limited,8762.00, 09-Aug-2021
1581,Revenue,CAHD,Central - Commissioned Services,Other Small Contracts,Fourways Care Limited,1239.29, 06-Aug-2021
1582,Revenue,CAHD,South - Commissioned Services,Other Small Contracts,Fourways Care Limited,940.94, 06-Aug-2021
1583,Revenue,CAHD,North - Community based support,Other Small Contracts,Fourways Care Limited,8482.79, 06-Aug-2021
1584,Revenue,CAHD,Central - Commissioned Services,Other Small Contracts,Fourways Care Limited,1234.20, 11-Aug-2021
1585,Revenue,CAHD,South - Commissioned Services,Other Small Contracts,Fourways Care Limited,905.31, 11-Aug-2021
1586,Revenue,CAHD,North - Community based support,Other Small Contracts,Fourways Care Limited,8202.84, 11-Aug-2021
1587,Revenue,CAHD,Central - Commissioned Services,Other Small Contracts,Fourways Care Limited,1239.29, 27-Aug-2021
1588,Revenue,CAHD,South - Commissioned Services,Other Small Contracts,Fourways Care Limited,961.30, 27-Aug-2021
1589,Revenue,CAHD,North - Community based support,Other Small Contracts,Fourways Care Limited,8259.74, 27-Aug-2021
1590,Revenue,CAHD,Covid - ASC - Infection Control,Grants to Voluntary Bodies,Fourways Care Limited,3800.25, 17-Aug-2021
1591,Revenue,CAHD,Covid - ASC - Infection Control,Grants to Voluntary Bodies,Fourways Care Limited,3990.75, 17-Aug-2021
1592,Revenue,CAHD,18-25 Year Olds,Other Small Contracts,Freeways Trust Limited,3179.36, 11-Aug-2021
1593,Revenue,CAHD,Central - Commissioned Services,Permanent Residential,Freeways Trust Ltd,4059.28, 24-Aug-2021
1594,Revenue,CAHD,Central - Commissioned Services,Permanent Residential,Freeways Trust Ltd,4098.72, 24-Aug-2021
1595,Revenue,CAHD,Central - Commissioned Services,Permanent Residential,Freeways Trust Ltd,4564.92, 24-Aug-2021
1596,Revenue,CAHD,Central - Commissioned Services,Permanent Residential,Freeways Trust Ltd,5270.84, 24-Aug-2021
1597,Revenue,CAHD,North - Community based support,Permanent Residential,Freeways Trust Ltd,4101.56, 24-Aug-2021
1598,Revenue,CAHD,Central - Commissioned Services,Permanent Residential,Freeways Trust Ltd,4379.80, 24-Aug-2021
1599,Revenue,CAHD,South - Commissioned Services,Permanent Residential,Freeways Trust Ltd,4533.88, 24-Aug-2021
1600,Revenue,CAHD,Central - Commissioned Services,Permanent Residential,Freeways Trust Ltd,4098.72, 24-Aug-2021
1601,Revenue,CAHD,Central - Commissioned Services,Permanent Residential,Freeways Trust Ltd,4098.72, 24-Aug-2021
1602,Revenue,CAHD,North - Community based support,Permanent Residential,Freeways Trust Ltd,4101.56, 24-Aug-2021
1603,Revenue,CAHD,Central - Commissioned Services,Permanent Residential,Freeways Trust Ltd,6129.72, 24-Aug-2021
1604,Revenue,CAHD,Younger MH non-res purchasing,Supported Living,Freeways Trust Ltd,916.80, 24-Aug-2021
1605,Revenue,CAHD,South - Commissioned Services,Supported Living,Freeways Trust Ltd,1971.68, 24-Aug-2021
1606,Revenue,CAHD,North - Community based support,Supported Living,Freeways Trust Ltd,1971.68, 24-Aug-2021
1607,Revenue,CAHD,S28A cases,Permanent Residential,Freeways Trust Ltd,6237.68, 24-Aug-2021
1608,Revenue,CAHD,North - Community based support,Permanent Residential,Freeways Trust Ltd,16586.59, 24-Aug-2021
1609,Revenue,CAHD,North - Community based support,Permanent Residential,Freeways Trust Ltd,3935.80, 24-Aug-2021
1610,Revenue,CAHD,North - Community based support,Fees & Charges Income - General,Freeways Trust Ltd,1808.80, 24-Aug-2021
1611,Revenue,CAHD,North - Community based support,Permanent Residential,Freeways Trust Ltd,14548.89, 24-Aug-2021
1612,Revenue,CAHD,North - Community based support,Permanent Residential,Freeways Trust Ltd,3452.28, 24-Aug-2021
1613,Revenue,CAHD,North - Community based support,Fees & Charges Income - General,Freeways Trust Ltd,2587.40, 24-Aug-2021
1614,Revenue,CAHD,North - Community based support,Permanent Residential,Freeways Trust Ltd,16460.49, 24-Aug-2021
1615,Revenue,CAHD,North - Community based support,Permanent Residential,Freeways Trust Ltd,3905.88, 24-Aug-2021
1616,Revenue,CAHD,North - Community based support,Fees & Charges Income - General,Freeways Trust Ltd,1808.80, 24-Aug-2021
1617,Revenue,CAHD,North - Community based support,Permanent Residential,Freeways Trust Ltd,16358.59, 24-Aug-2021
1618,Revenue,CAHD,North - Community based support,Permanent Residential,Freeways Trust Ltd,3849.08, 24-Aug-2021
1619,Revenue,CAHD,Section 117 Placements MH Younger,Permanent Residential,Freeways Trust Ltd,14841.00, 24-Aug-2021
1620,Revenue,CAHD,Section 117 Placements MH Younger,Permanent Residential,Freeways Trust Ltd,3492.00, 24-Aug-2021
1621,Revenue,CAHD,Central - Commissioned Services,Day Care / Social Activities,Frenchay Beckspool Building,1255.20, 24-Aug-2021
1622,Revenue,CAHD,South - Commissioned Services,Day Care / Social Activities,Frenchay Beckspool Building,941.60, 24-Aug-2021
1623,Revenue,CAHD,South - Commissioned Services,Day Care / Social Activities,Frenchay Beckspool Building,667.88, 24-Aug-2021
1624,Revenue,CAHD,North - Community based support,Permanent Nursing,Frenchay Park Nursing Home,3400.00, 24-Aug-2021
1625,Revenue,CAHD,Early Years High Needs Support,Other Private Contractors,Frenchay Pre School Playgroup,637.05, 19-Aug-2021
1626,Revenue,CAHD,Drug and Alcohol Programme,Other Small Contracts,Frome Valley Medical Centre,1015.00, 25-Aug-2021
1627,Revenue,CAHD,Drug and Alcohol Programme,Other Supplies & Services,Frontier NX Ltd,1800.00, 27-Aug-2021
1628,Revenue,CAHD,CSC - Through & Leaving Care Team,Agency Staff (Admin/Support Staff) Pay,Frontline Staffing Ltd,1871.60, 02-Aug-2021
1629,Revenue,CAHD,CSC - Through & Leaving Care Team,Agency Staff (Admin/Support Staff) Pay,Frontline Staffing Ltd,1871.60, 02-Aug-2021
1630,Revenue,CAHD,CSC - Through & Leaving Care Team,Agency Staff (Admin/Support Staff) Pay,Frontline Staffing Ltd,1871.60, 02-Aug-2021
1631,Revenue,CAHD,CSC - Through & Leaving Care Team,Agency Staff (Admin/Support Staff) Pay,Frontline Staffing Ltd,1871.60, 02-Aug-2021
1632,Revenue,CAHD,CSC - Agency Fostering,Foster Parent Allowances,Fusion Fostering Ltd,3546.93, 23-Aug-2021
1633,Revenue,CAHD,CSC - Asylum Seekers - Unaccompanied,Foster Parent Allowances,Fusion Fostering Ltd,2635.00, 23-Aug-2021
1634,Revenue,CAHD,CSC - Agency Fostering,Foster Parent Allowances,Fusion Fostering Ltd,4209.05, 24-Aug-2021
1635,Revenue,CAHD,CSC - Section 17 0-25,Preventative Assistance,Future Sports Development,560.00, 02-Aug-2021
1636,Revenue,CAHD,Contain Outbreak Mgmt Fund,Furniture & Fittings Loose,GB Sport & Leisure UK Limited,1450.00, 06-Aug-2021
1637,Revenue,CAHD,Contain Outbreak Mgmt Fund,Furniture & Fittings Loose,GB Sport & Leisure UK Limited,524.27, 06-Aug-2021
1638,Revenue,CAHD,School Improvement and Support,Training Expenses,George Croxford Education Consultancy,500.00, 13-Aug-2021
1639,Revenue,CAHD,North - Community based support,Supported Living,Gladstone House,3312.12, 24-Aug-2021
1640,Revenue,CAHD,18-25 Year Olds,Supported Living,Gladstone House,3312.12, 24-Aug-2021
1641,Revenue,CAHD,South - Commissioned Services,Permanent Residential,Gladstone House,5999.84, 24-Aug-2021
1642,Revenue,CAHD,MH Purchasing - Younger,Permanent Residential,Gladstone House,3135.90, 24-Aug-2021
1643,Revenue,CAHD,Jointly Funded H&SC Packages,Permanent Residential,Gladstone House,783.98, 24-Aug-2021
1644,Revenue,CAHD,North - Community based support,Permanent Residential,Glan Y Felin,7075.52, 24-Aug-2021
1645,Revenue,CAHD,South - Commissioned Services,Permanent Residential,Glasallt Fawr,5635.08, 24-Aug-2021
1646,Revenue,CAHD,North - Community based support,Permanent Nursing,Glebe House Nursing Home,3823.40, 24-Aug-2021
1647,Revenue,CAHD,South Glos Users in South Glos Homes,Permanent Nursing,Glebe House Nursing Home,750.40, 24-Aug-2021
1648,Revenue,CAHD,North - Community based support,Permanent Nursing,Glebe House Nursing Home,4145.80, 24-Aug-2021
1649,Revenue,CAHD,South Glos Users in South Glos Homes,Permanent Nursing,Glebe House Nursing Home,750.40, 24-Aug-2021
1650,Revenue,CAHD,South Glos Users in South Glos Homes,Permanent Nursing,Glebe House Nursing Home,750.40, 24-Aug-2021
1651,Revenue,CAHD,South Glos Users in South Glos Homes,Permanent Nursing,Glebe House Nursing Home,750.40, 24-Aug-2021
1652,Revenue,CAHD,North - Community based support,Permanent Residential,Glebe House Nursing Home,4120.00, 24-Aug-2021
1653,Revenue,CAHD,North - Community based support,Permanent Nursing,Glebe House Nursing Home,4090.36, 24-Aug-2021
1654,Revenue,CAHD,South Glos Users in South Glos Homes,Permanent Nursing,Glebe House Nursing Home,750.40, 24-Aug-2021
1655,Revenue,CAHD,North - Community based support,Permanent Residential,Glebe House Nursing Home,4000.48, 24-Aug-2021
1656,Revenue,CAHD,South Glos Users in South Glos Homes,Permanent Nursing,Glebe House Nursing Home,750.40, 24-Aug-2021
1657,Revenue,CAHD,South Glos Users in South Glos Homes,Permanent Nursing,Glebe House Nursing Home,750.40, 24-Aug-2021
1658,Revenue,CAHD,South Glos Users in South Glos Homes,Permanent Nursing,Glebe House Nursing Home,750.40, 24-Aug-2021
1659,Revenue,CAHD,North - Community based support,Permanent Nursing,Glebe House Nursing Home,4141.72, 24-Aug-2021
1660,Revenue,CAHD,South Glos Users in South Glos Homes,Permanent Nursing,Glebe House Nursing Home,750.40, 24-Aug-2021
1661,Revenue,CAHD,Central - Commissioned Services,Permanent Residential,Glebe House Nursing Home,4071.56, 24-Aug-2021
1662,Revenue,CAHD,South Glos Users in South Glos Homes,Permanent Nursing,Glebe House Nursing Home,750.40, 24-Aug-2021
1663,Revenue,CAHD,Central - Commissioned Services,Permanent Nursing,Glebe House Nursing Home,4120.00, 24-Aug-2021
1664,Revenue,CAHD,North - Community based support,Permanent Nursing,Glebe House Nursing Home,4173.84, 24-Aug-2021
1665,Revenue,CAHD,South Glos Users in South Glos Homes,Permanent Nursing,Glebe House Nursing Home,750.40, 24-Aug-2021
1666,Revenue,CAHD,South Glos Users in South Glos Homes,Permanent Nursing,Glebe House Nursing Home,750.40, 24-Aug-2021
1667,Revenue,CAHD,North - Community based support,Permanent Nursing,Glebe House Nursing Home,4132.28, 24-Aug-2021
1668,Revenue,CAHD,South Glos Users in South Glos Homes,Permanent Nursing,Glebe House Nursing Home,750.40, 24-Aug-2021
1669,Revenue,CAHD,North - Community based support,Permanent Nursing,Glebe House Nursing Home,4173.84, 24-Aug-2021
1670,Revenue,CAHD,South Glos Users in South Glos Homes,Permanent Nursing,Glebe House Nursing Home,750.40, 24-Aug-2021
1671,Revenue,CAHD,North - Community based support,Permanent Residential,Glebe House Nursing Home,5167.40, 24-Aug-2021
1672,Revenue,CAHD,South Glos Users in South Glos Homes,Permanent Nursing,Glebe House Nursing Home,750.40, 24-Aug-2021
1673,Revenue,CAHD,South Glos Users in South Glos Homes,Permanent Nursing,Glebe House Nursing Home,750.40, 24-Aug-2021
1674,Revenue,CAHD,South Glos Users in South Glos Homes,Permanent Nursing,Glebe House Nursing Home,750.40, 24-Aug-2021
1675,Revenue,CAHD,South Glos Users in South Glos Homes,Permanent Nursing,Glebe House Nursing Home,750.40, 24-Aug-2021
1676,Revenue,CAHD,South Glos Users in South Glos Homes,Permanent Nursing,Glebe House Nursing Home,750.40, 24-Aug-2021
1677,Revenue,CAHD,South Glos Users in South Glos Homes,Permanent Nursing,Glebe House Nursing Home,750.40, 24-Aug-2021
1678,Revenue,CAHD,South Glos Users in South Glos Homes,Permanent Nursing,Glebe House Nursing Home,696.80, 24-Aug-2021
1679,Revenue,CAHD,South Glos Users in South Glos Homes,Permanent Nursing,Glebe House Nursing Home,750.40, 24-Aug-2021
1680,Revenue,CAHD,Central - Commissioned Services,Permanent Nursing,Glenview Care Home,3224.00, 24-Aug-2021
1681,Revenue,CAHD,South - Commissioned Services,Permanent Nursing,Glenview Care Home,3220.00, 24-Aug-2021
1682,Revenue,CAHD,North - Community based support,Permanent Nursing,Glenview Care Home,3600.00, 24-Aug-2021
1683,Revenue,CAHD,North - Community based support,Permanent Nursing,Glenview Care Home,3200.00, 24-Aug-2021
1684,Revenue,CAHD,LOMP Local Outbreak Mgmt Plan,Agency Staff (Admin/Support Staff) Pay,Gloucestershire Hospitals NHSFT,18979.00, 25-Aug-2021
1685,Revenue,CAHD,South - Commissioned Services,Permanent Residential,Gordena Care Home,4111.36, 24-Aug-2021
1686,Revenue,CAHD,South - Commissioned Services,Permanent Residential,Gordena Care Home,2855.04, 24-Aug-2021
1687,Revenue,CAHD,South - Commissioned Services,Permanent Residential,Gordena Care Home,4064.72, 24-Aug-2021
1688,Revenue,CAHD,South - Commissioned Services,Permanent Residential,Gordena Care Home,4077.12, 24-Aug-2021
1689,Revenue,CAHD,CSC - Legal Fees,Legal Fees,Individual,600.00, 24-Aug-2021
1690,Revenue,CAHD,CSC - Legal Fees,Legal Fees,Individual,800.00, 02-Aug-2021
1691,Revenue,CAHD,18-25 Year Olds,Supported Living,Granville House,1985.24, 24-Aug-2021
1692,Revenue,CAHD,South - Commissioned Services,Supported Living,Granville House,1985.84, 24-Aug-2021
1693,Revenue,CAHD,South - Commissioned Services,Supported Living,Granville House,1984.96, 24-Aug-2021
1694,Revenue,CAHD,North - S117,Permanent Nursing,Grasmere Rest Home,3800.00, 24-Aug-2021
1695,Revenue,CAHD,Statemented Support Academies,Other Public Bodies,Greenshaw Learning Trust T/A Woodlands Primary,554.13, 20-Aug-2021
1696,Revenue,CAHD,Statemented Support Academies,Other Public Bodies,Greenshaw Learning Trust T/A Woodlands Primary,1072.89, 20-Aug-2021
1697,Revenue,CAHD,Statemented Support Academies,Other Public Bodies,Greenshaw Learning Trust T/A Woodlands Primary,577.71, 20-Aug-2021
1698,Revenue,CAHD,Statemented Support Academies,Other Public Bodies,Greenshaw Learning Trust T/A Woodlands Primary,932.17, 20-Aug-2021
1699,Revenue,CAHD,Statemented Support Academies,Other Public Bodies,Greenshaw Learning Trust T/A Woodlands Primary,837.09, 20-Aug-2021
1700,Revenue,CAHD,Statemented Support Academies,Other Public Bodies,Greenshaw Learning Trust T/A Woodlands Primary,742.77, 20-Aug-2021
1701,Revenue,CAHD,Statemented Support Academies,Other Public Bodies,Greenshaw Learning Trust T/A Woodlands Primary,778.14, 20-Aug-2021
1702,Revenue,CAHD,Statemented Support Academies,Other Public Bodies,Greenshaw Learning Trust T/A Woodlands Primary,860.67, 20-Aug-2021
1703,Revenue,CAHD,Academy Resource Base Funding,Other Public Bodies,Greenshaw Learning Trust T/A Woodlands Primary,648.70, 24-Aug-2021
1704,Revenue,CAHD,Academy Resource Base Funding,Other Public Bodies,Greenshaw Learning Trust T/A Woodlands Primary,1175.87, 24-Aug-2021
1705,Revenue,CAHD,Academy Resource Base Funding,Other Public Bodies,Greenshaw Learning Trust T/A Woodlands Primary,2915.00, 27-Aug-2021
1706,Revenue,CAHD,Statemented Support Academies,Other Public Bodies,Greenshaw Learning Trust T/A Yate Academy,526.83, 20-Aug-2021
1707,Revenue,CAHD,Statemented Support Academies,Other Public Bodies,Greenshaw Learning Trust T/A Yate Academy,589.50, 20-Aug-2021
1708,Revenue,CAHD,Statemented Support Academies,Other Public Bodies,Greenshaw Learning Trust T/A Yate Academy,707.40, 20-Aug-2021
1709,Revenue,CAHD,Statemented Support Academies,Other Public Bodies,Greenshaw Learning Trust T/A Yate Academy,1320.48, 20-Aug-2021
1710,Revenue,CAHD,Statemented Support Academies,Other Public Bodies,Greenshaw Learning Trust T/A Yate Academy,1320.48, 20-Aug-2021
1711,Revenue,CAHD,Statemented Support Academies,Other Public Bodies,Greenshaw Learning Trust T/A Yate Academy,1209.92, 20-Aug-2021
1712,Revenue,CAHD,Statemented Support Academies,Other Public Bodies,Greenshaw Learning Trust T/A Yate Academy,1072.89, 20-Aug-2021
1713,Revenue,CAHD,Statemented Support Academies,Other Public Bodies,Greenshaw Learning Trust T/A Yate Academy,801.72, 20-Aug-2021
1714,Revenue,CAHD,Statemented Support Academies,Other Public Bodies,Greenshaw Learning Trust T/A Yate Academy,541.58, 20-Aug-2021
1715,Revenue,CAHD,Statemented Support Academies,Other Public Bodies,Greenshaw Learning Trust T/A Yate Academy,601.29, 20-Aug-2021
1716,Revenue,CAHD,Statemented Support Academies,Other Public Bodies,Greenshaw Learning Trust T/A Yate Academy,673.50, 20-Aug-2021
1717,Revenue,CAHD,Statemented Support Academies,Other Public Bodies,Greenshaw Learning Trust T/A Yate Academy,624.87, 20-Aug-2021
1718,Revenue,CAHD,Statemented Support Academies,Other Public Bodies,Greenshaw Learning Trust T/A Yate Academy,624.87, 20-Aug-2021
1719,Revenue,CAHD,Academy Resource Base Funding,Other Public Bodies,Greenshaw Learning Trust T/A Yate Academy,849.32, 24-Aug-2021
1720,Revenue,CAHD,Academy Resource Base Funding,Other Public Bodies,Greenshaw Learning Trust T/A Yate Academy,1540.83, 24-Aug-2021
1721,Revenue,CAHD,Academy Resource Base Funding,Other Public Bodies,Greenshaw Learning Trust T/A Yate Academy,1013.74, 24-Aug-2021
1722,Revenue,CAHD,Academy Resource Base Funding,Other Public Bodies,Greenshaw Learning Trust T/A Yate Academy,1540.83, 24-Aug-2021
1723,Revenue,CAHD,Academy Resource Base Funding,Other Public Bodies,Greenshaw Learning Trust T/A Yate Academy,2365.00, 27-Aug-2021
1724,Revenue,CAHD,South - Commissioned Services,Permanent Residential,Gwendoline House,2966.72, 24-Aug-2021
1725,Revenue,CAHD,South - Commissioned Services,Permanent Residential,Gwendoline House,2580.92, 24-Aug-2021
1726,Revenue,CAHD,South - Commissioned Services,Permanent Residential,Gwendoline House,2713.00, 24-Aug-2021
1727,Revenue,CAHD,Social Lettings Agency,Rent,Individual,700.00, 27-Aug-2021
1728,Revenue,CAHD,Social Lettings Agency,Fees & Charges Income - General,Individual,-70.00, 27-Aug-2021
1729,Revenue,CAHD,Schools Specific Grant Income,Other Public Bodies,Hampshire County Council T/A The Key Education Cen,630.00, 09-Aug-2021
1730,Revenue,CAHD,Drug and Alcohol Programme,Other Small Contracts,Hanham Health,2131.50, 25-Aug-2021
1731,Revenue,CAHD,Early Years High Needs Support,Other Private Contractors,Happy Days Day Nursery,910.07, 19-Aug-2021
1732,Revenue,CAHD,CSC - Residential Placements,Permanent Residential,Haven Care Group,24357.01, 23-Aug-2021
1733,Revenue,CAHD,North - Community based support,Permanent Nursing,Head Office,4554.08, 24-Aug-2021
1734,Revenue,CAHD,CSC - Residential Placements,Permanent Residential,Headway Adolescent Resources Limited,15200.00, 23-Aug-2021
1735,Revenue,CAHD,CSC - Residential Placements,Permanent Residential,Headway Adolescent Resources Limited,15200.00, 23-Aug-2021
1736,Revenue,CAHD,CSC - Residential Placements,Permanent Residential,Headway Adolescent Resources Limited,15200.00, 23-Aug-2021
1737,Revenue,CAHD,Central - Commissioned Services,Other Small Contracts,Headway Bristol,451.20, 23-Aug-2021
1738,Revenue,CAHD,South - Commissioned Services,Day Care / Social Activities,Headway Bristol,135.36, 23-Aug-2021
1739,Revenue,CAHD,South - Commissioned Services,Other Small Contracts,Headway Bristol,180.48, 23-Aug-2021
1740,Revenue,CAHD,North - Community based support,Other Small Contracts,Headway Bristol,90.24, 23-Aug-2021
1741,Revenue,CAHD,Central - Commissioned Services,Other Small Contracts,Headway Bristol,586.56, 27-Aug-2021
1742,Revenue,CAHD,South - Commissioned Services,Other Small Contracts,Headway Bristol,112.80, 27-Aug-2021
1743,Revenue,CAHD,North - Community based support,Other Small Contracts,Headway Bristol,90.24, 27-Aug-2021
1744,Revenue,CAHD,Younger MH non-res purchasing,Day Care / Social Activities,Headway Bristol,45.12, 27-Aug-2021
1745,Revenue,CAHD,South - Commissioned Services,Permanent Residential,Healthcare Home Spring Limited,2831.68, 24-Aug-2021
1746,Revenue,CAHD,South - Commissioned Services,Fees & Charges Income - General,Healthcare Home Spring Limited,2565.66, 24-Aug-2021
1747,Revenue,CAHD,South - Commissioned Services,Fees & Charges Income - General,Healthcare Home Spring Limited,1552.29, 24-Aug-2021
1748,Revenue,CAHD,South - Commissioned Services,Fees & Charges Income - General,Healthcare Home Spring Limited,2626.50, 24-Aug-2021
1749,Revenue,CAHD,South Glos Users in South Glos Homes,Permanent Nursing,Healthcare Home Spring Limited,750.40, 24-Aug-2021
1750,Revenue,CAHD,Central - Commissioned Services,Permanent Residential,Healthcare Home Spring Limited,2831.68, 24-Aug-2021
1751,Revenue,CAHD,Central - Commissioned Services,Permanent Nursing,Healthcare Home Spring Limited,2502.20, 24-Aug-2021
1752,Revenue,CAHD,South Glos Users in South Glos Homes,Permanent Nursing,Healthcare Home Spring Limited,750.40, 24-Aug-2021
1753,Revenue,CAHD,Central - Commissioned Services,Permanent Nursing,Healthcare Home Spring Limited,2502.20, 24-Aug-2021
1754,Revenue,CAHD,South Glos Users in South Glos Homes,Permanent Nursing,Healthcare Home Spring Limited,750.40, 24-Aug-2021
1755,Revenue,CAHD,Central - Commissioned Services,Permanent Residential,Healthcare Home Spring Limited,2831.68, 24-Aug-2021
1756,Revenue,CAHD,South Glos Users in South Glos Homes,Permanent Nursing,Healthcare Home Spring Limited,750.40, 24-Aug-2021
1757,Revenue,CAHD,Central - Commissioned Services,Permanent Residential,Healthcare Home Spring Limited,2327.24, 24-Aug-2021
1758,Revenue,CAHD,Central - Commissioned Services,Permanent Residential,Healthcare Home Spring Limited,2281.68, 24-Aug-2021
1759,Revenue,CAHD,South Glos Users in South Glos Homes,Permanent Nursing,Healthcare Home Spring Limited,750.40, 24-Aug-2021
1760,Revenue,CAHD,South Glos Users in South Glos Homes,Permanent Nursing,Healthcare Home Spring Limited,750.40, 24-Aug-2021
1761,Revenue,CAHD,Central - Commissioned Services,Permanent Residential,Healthcare Home Spring Limited,2281.68, 24-Aug-2021
1762,Revenue,CAHD,North - Community based support,Permanent Nursing,Healthcare Home Spring Limited,2502.20, 24-Aug-2021
1763,Revenue,CAHD,South Glos Users in South Glos Homes,Permanent Nursing,Healthcare Home Spring Limited,750.40, 24-Aug-2021
1764,Revenue,CAHD,South Glos Users in South Glos Homes,Permanent Nursing,Healthcare Home Spring Limited,750.40, 24-Aug-2021
1765,Revenue,CAHD,Central - Commissioned Services,Permanent Residential,Healthcare Home Spring Limited,2888.28, 24-Aug-2021
1766,Revenue,CAHD,North - Community based support,Permanent Nursing,Healthcare Home Spring Limited,2502.20, 24-Aug-2021
1767,Revenue,CAHD,South Glos Users in South Glos Homes,Permanent Nursing,Healthcare Home Spring Limited,750.40, 24-Aug-2021
1768,Revenue,CAHD,South Glos Users in South Glos Homes,Permanent Nursing,Healthcare Home Spring Limited,750.40, 24-Aug-2021
1769,Revenue,CAHD,Central - Commissioned Services,Permanent Nursing,Healthcare Home Spring Limited,2579.04, 24-Aug-2021
1770,Revenue,CAHD,South Glos Users in South Glos Homes,Permanent Nursing,Healthcare Home Spring Limited,750.40, 24-Aug-2021
1771,Revenue,CAHD,South Glos Users in South Glos Homes,Permanent Nursing,Healthcare Home Spring Limited,750.40, 24-Aug-2021
1772,Revenue,CAHD,North - Community based support,Permanent Residential,Healthcare Home Spring Limited,3864.00, 24-Aug-2021
1773,Revenue,CAHD,Central - Commissioned Services,Permanent Residential,Healthcare Home Spring Limited,8196.43, 24-Aug-2021
1774,Revenue,CAHD,Central - Commissioned Services,Permanent Residential,Healthcare Home Spring Limited,4590.00, 24-Aug-2021
1775,Revenue,CAHD,Central - Commissioned Services,Permanent Residential,Healthcare Home Spring Limited,3060.00, 24-Aug-2021
1776,Revenue,CAHD,Central - Commissioned Services,Fees & Charges Income - General,Healthcare Home Spring Limited,753.11, 24-Aug-2021
1777,Revenue,CAHD,Central - Commissioned Services,Fees & Charges Income - General,Healthcare Home Spring Limited,1010.73, 24-Aug-2021
1778,Revenue,CAHD,Central - Commissioned Services,Fees & Charges Income - General,Healthcare Home Spring Limited,911.65, 24-Aug-2021
1779,Revenue,CAHD,South Glos Users in South Glos Homes,Permanent Nursing,Healthcare Home Spring Limited,750.40, 24-Aug-2021
1780,Revenue,CAHD,Central - Commissioned Services,Permanent Nursing,Healthcare Home Spring Limited,2502.20, 24-Aug-2021
1781,Revenue,CAHD,South Glos Users in South Glos Homes,Permanent Nursing,Healthcare Home Spring Limited,750.40, 24-Aug-2021
1782,Revenue,CAHD,Central - Commissioned Services,Permanent Residential,Healthcare Home Spring Limited,2888.28, 24-Aug-2021
1783,Revenue,CAHD,Central - Commissioned Services,Permanent Nursing,Healthcare Home Spring Limited,2528.44, 24-Aug-2021
1784,Revenue,CAHD,South Glos Users in South Glos Homes,Permanent Nursing,Healthcare Home Spring Limited,750.40, 24-Aug-2021
1785,Revenue,CAHD,South Glos Users in South Glos Homes,Permanent Nursing,Healthcare Home Spring Limited,750.40, 24-Aug-2021
1786,Revenue,CAHD,Central - Commissioned Services,Permanent Nursing,Healthcare Home Spring Limited,2502.20, 24-Aug-2021
1787,Revenue,CAHD,South Glos Users in South Glos Homes,Permanent Nursing,Healthcare Home Spring Limited,750.40, 24-Aug-2021
1788,Revenue,CAHD,South Glos Users in South Glos Homes,Permanent Nursing,Healthcare Home Spring Limited,750.40, 24-Aug-2021
1789,Revenue,CAHD,South Glos Users in South Glos Homes,Permanent Nursing,Healthcare Home Spring Limited,750.40, 24-Aug-2021
1790,Revenue,CAHD,South Glos Users in South Glos Homes,Permanent Nursing,Healthcare Home Spring Limited,750.40, 24-Aug-2021
1791,Revenue,CAHD,South Glos Users in South Glos Homes,Permanent Nursing,Healthcare Home Spring Limited,750.40, 24-Aug-2021
1792,Revenue,CAHD,Central - Commissioned Services,Permanent Nursing,Healthcare Home Spring Limited,2502.20, 24-Aug-2021
1793,Revenue,CAHD,South Glos Users in South Glos Homes,Permanent Nursing,Healthcare Home Spring Limited,750.40, 24-Aug-2021
1794,Revenue,CAHD,South Glos Users in South Glos Homes,Permanent Nursing,Healthcare Home Spring Limited,750.40, 24-Aug-2021
1795,Revenue,CAHD,North - Community based support,Permanent Nursing,Healthcare Home Spring Limited,2543.04, 24-Aug-2021
1796,Revenue,CAHD,South Glos Users in South Glos Homes,Permanent Nursing,Healthcare Home Spring Limited,750.40, 24-Aug-2021
1797,Revenue,CAHD,Central - Commissioned Services,Permanent Nursing,Healthcare Home Spring Limited,2502.20, 24-Aug-2021
1798,Revenue,CAHD,South Glos Users in South Glos Homes,Permanent Nursing,Healthcare Home Spring Limited,750.40, 24-Aug-2021
1799,Revenue,CAHD,Central - Commissioned Services,Permanent Residential,Healthcare Home Spring Limited,2957.60, 24-Aug-2021
1800,Revenue,CAHD,North - Community based support,Permanent Nursing,Healthcare Home Spring Limited,2502.20, 24-Aug-2021
1801,Revenue,CAHD,South Glos Users in South Glos Homes,Permanent Nursing,Healthcare Home Spring Limited,750.40, 24-Aug-2021
